Payment Date,Transaction Number,Net Amount,Supplier (Beneficiary) Name,Local Supplier Internal Reference,Directorate / Service Where Expenditure Incurred,Service Category Label,Service Category URI,SeRCOP Expenditure Category,SeRCOP Expenditure Code,Purpose of Spend,SeRCOP Detailed Expenditure Code,Capital/Revenue,Procurement Classification
31-Oct-2017,227,-6.00,PALGRAVE LTD,393477,"Environment, Housing & Leisure",Cultural & Related Services,104,Supplies and Services,504,Equipment,5023,Revenue,06.ART & CRAFT
31-Oct-2017,7004124,35.48,SUI GENERIS INTERNATIONAL LTD,395654,"Health, Education, Care and Safeguarding",Children's & Education Services,103,Supplies and Services,504,Equipment,5023,Revenue,SPORTS EQUIP
31-Oct-2017,7004125,13.95,ECO SOL LTD,395653,"Environment, Housing & Leisure",Cultural & Related Services,104,Supplies and Services,504,Equipment,5023,Revenue,FIRE EQUIP
31-Oct-2017,7004126,78.00,EARLY EXCELLENCE LIMITED,355794,"Health, Education, Care and Safeguarding",Children's & Education Services,103,Employees,501,Indirect Employee Expenses,5002,Revenue,18.CONFERENCING
31-Oct-2017,7004127,130.50,DIRECT HYGIENE.COM,395652,"Environment, Housing & Leisure",Cultural & Related Services,104,Supplies and Services,504,Equipment,5023,Revenue,CLEANING WASHROOM
31-Oct-2017,7004127,-130.50,DIRECT HYGIENE.COM,395652,"Environment, Housing & Leisure",Cultural & Related Services,104,Supplies and Services,504,Equipment,5023,Revenue,CLEANING WASHROOM
31-Oct-2017,7004128,99.96,DF SALES LTD,395651,"Environment, Housing & Leisure",Environmental & Regulatory Services,105,Supplies and Services,504,Equipment,5023,Revenue,13.EQUIPMENT
31-Oct-2017,7004129,6.05,VERIFONE TAXI,395650,Business & Economic Development,Planning Services ,110,Supplies and Services,504,"Printing, Stationery and General Office Expenses",5026,Revenue,26.TAXIS
31-Oct-2017,7004129,5.50,VERIFONE TAXI,395650,Business & Economic Development,Planning Services ,110,Supplies and Services,504,"Printing, Stationery and General Office Expenses",5026,Revenue,26.TAXIS
31-Oct-2017,7004129,10.27,VERIFONE TAXI,395650,Business & Economic Development,Planning Services ,110,Supplies and Services,504,"Printing, Stationery and General Office Expenses",5026,Revenue,26.TAXIS
31-Oct-2017,7004129,10.27,VERIFONE TAXI,395650,Business & Economic Development,Planning Services ,110,Supplies and Services,504,"Printing, Stationery and General Office Expenses",5026,Revenue,26.TAXIS
31-Oct-2017,7004129,11.00,VERIFONE TAXI,395650,Business & Economic Development,Planning Services ,110,Supplies and Services,504,"Printing, Stationery and General Office Expenses",5026,Revenue,26.TAXIS
31-Oct-2017,7004129,6.23,VERIFONE TAXI,395650,Business & Economic Development,Planning Services ,110,Supplies and Services,504,"Printing, Stationery and General Office Expenses",5026,Revenue,26.TAXIS
31-Oct-2017,7004129,12.47,VERIFONE TAXI,395650,Business & Economic Development,Planning Services ,110,Supplies and Services,504,"Printing, Stationery and General Office Expenses",5026,Revenue,26.TAXIS
31-Oct-2017,7004129,11.55,VERIFONE TAXI,395650,Business & Economic Development,Planning Services ,110,Supplies and Services,504,"Printing, Stationery and General Office Expenses",5026,Revenue,26.TAXIS
31-Oct-2017,7004130,344.46,VAN MEUWEN,395649,"Environment, Housing & Leisure",Cultural & Related Services,104,Supplies and Services,504,Equipment,5023,Revenue,HORT SEEDS
31-Oct-2017,7004130,-413.35,VAN MEUWEN,395649,"Environment, Housing & Leisure",Cultural & Related Services,104,Supplies and Services,504,Equipment,5023,Revenue,HORT SEEDS
31-Oct-2017,7004131,33.33,THE VIEW,395648,"Environment, Housing & Leisure",Cultural & Related Services,104,Supplies and Services,504,Miscellaneous Expenses,5034,Revenue,03.GROCERIES & PROVISIONS
31-Oct-2017,7004132,118.30,RAWLINS PAINTS,395647,Capital,Capital,Capital,Supplies and Services,504,Miscellaneous Expenses,5034,Capital,NULL
31-Oct-2017,7004133,7.39,KENABLE LTD,395646,"Health, Education, Care and Safeguarding",Children's & Education Services,103,Supplies and Services,504,Communications & Computing,5028,Revenue,15.HARDWARE
31-Oct-2017,7004134,182.28,INTERSERVE FS (UK) LTD,339208,"Environment, Housing & Leisure",Cultural & Related Services,104,Supplies and Services,504,Equipment,5023,Revenue,FIRE ALARMS
31-Oct-2017,7004135,32.50,HUGO BOSS,395645,"Health, Education, Care and Safeguarding",Children's & Education Services,103,Supplies and Services,504,Miscellaneous Expenses,5034,Revenue,00.NON INFLUENCIBLE
31-Oct-2017,7004136,133.05,HOTELL OSKAR,395644,"Health, Education, Care and Safeguarding",Children's & Education Services,103,Supplies and Services,504,Expenses,5030,Revenue,18.CONFERENCING
31-Oct-2017,7004137,600.00,INTO ELDON SQUARE,392118,"Health, Education, Care and Safeguarding",Children's & Education Services,103,Supplies and Services,504,Equipment,5023,Revenue,00.NON INFLUENCIBLE
31-Oct-2017,7004137,500.00,INTO ELDON SQUARE,392118,"Health, Education, Care and Safeguarding",Children's & Education Services,103,Supplies and Services,504,Equipment,5023,Revenue,00.NON INFLUENCIBLE
31-Oct-2017,7004138,24.17,FIRTREE FARM EQUESTRIAN CENTRE,393328,"Health, Education, Care and Safeguarding",Children's & Education Services,103,Supplies and Services,504,Miscellaneous Expenses,5034,Revenue,PLAY ACTIVITY
31-Oct-2017,7004139,148.33,THE ASSOCIATION FOR SCIENCE EDUCATION,302049,"Health, Education, Care and Safeguarding",Children's & Education Services,103,Employees,501,Indirect Employee Expenses,5002,Revenue,18.CONFERENCING
31-Oct-2017,7004140,161.18,CENTRAL BEDFORDSHIRE COUNCIL,236887,"Environment, Housing & Leisure",Environmental & Regulatory Services,105,Third Party Payments,505,Private Contractors,5042,Revenue,00.PUBLIC SECTOR
31-Oct-2017,7004141,79.99,CARECO.CO.UK,395643,"Health, Education, Care and Safeguarding",Adult Social Care,101,Supplies and Services,504,Equipment,5023,Revenue,28.HIRE AND LEASE
31-Oct-2017,7004142,23.37,BLS MOVIE MAKER SOFTWAE,395642,"Health, Education, Care and Safeguarding",Children's & Education Services,103,Supplies and Services,504,Equipment,5023,Revenue,15.SOFTWARE
31-Oct-2017,7004143,17.17,AECC MANAGED & OPERATED,395641,Business & Economic Development,Planning Services ,110,Supplies and Services,504,"Printing, Stationery and General Office Expenses",5026,Revenue,00.NON INFLUENCIBLE
31-Oct-2017,7004144,307.50,ABAKUS DIRECT LTD,395640,"Health, Education, Care and Safeguarding",Children's & Education Services,103,Third Party Payments,505,Other Establishments,5041,Revenue,10.HOUSEHOLD
31-Oct-2017,7004145,43.24,COMPLETE CARE SHOP,395383,"Health, Education, Care and Safeguarding",Adult Social Care,101,Supplies and Services,504,Equipment,5023,Revenue,SOCIAL FITTED
31-Oct-2017,7004145,43.24,COMPLETE CARE SHOP,395383,"Health, Education, Care and Safeguarding",Adult Social Care,101,Supplies and Services,504,Equipment,5023,Revenue,SOCIAL FITTED
31-Oct-2017,7004146,8.99,UNLIMITED WEBHOSTING,394828,"Health, Education, Care and Safeguarding",Children's & Education Services,103,Supplies and Services,504,Communications & Computing,5028,Revenue,ICT WEB
31-Oct-2017,7004147,4.94,UK HOSTING,394827,Corporate Strategy,Central Services,102,Supplies and Services,504,"Printing, Stationery and General Office Expenses",5026,Revenue,ICT WEB
31-Oct-2017,7004148,102.40,TAYLOR FOODS,394743,Commissioning & Investment,Children's & Education Services,103,Supplies and Services,504,Equipment,5023,Revenue,03.GROCERIES & PROVISIONS
31-Oct-2017,7004148,174.93,TAYLOR FOODS,394743,"Environment, Housing & Leisure",Adult Social Care,101,Supplies and Services,504,Equipment,5023,Revenue,03.GROCERIES & PROVISIONS
31-Oct-2017,7004148,115.19,TAYLOR FOODS,394743,Commissioning & Investment,Children's & Education Services,103,Supplies and Services,504,Equipment,5023,Revenue,03.GROCERIES & PROVISIONS
31-Oct-2017,7004148,137.52,TAYLOR FOODS,394743,Commissioning & Investment,Children's & Education Services,103,Supplies and Services,504,Equipment,5023,Revenue,03.GROCERIES & PROVISIONS
31-Oct-2017,7004148,178.60,TAYLOR FOODS,394743,Commissioning & Investment,Children's & Education Services,103,Supplies and Services,504,Equipment,5023,Revenue,03.GROCERIES & PROVISIONS
31-Oct-2017,7004149,50.72,MORE HANDLES LIMITED,394655,"Health, Education, Care and Safeguarding",Children's & Education Services,103,Premises-Related Expenditure,502,"Repairs, alterations and maintenance of buildings",5005,Revenue,BUILD GEN
31-Oct-2017,7004150,16.66,THE PERFUME SHOP,394541,"Health, Education, Care and Safeguarding",Children's & Education Services,103,Supplies and Services,504,Miscellaneous Expenses,5034,Revenue,SOCIAL CONS
31-Oct-2017,7004151,64.57,TRAVEL.CLOUD,394406,"Health, Education, Care and Safeguarding",Children's & Education Services,103,Supplies and Services,504,Miscellaneous Expenses,5034,Revenue,18.TRAVEL
31-Oct-2017,7004151,99.55,TRAVEL.CLOUD,394406,"Health, Education, Care and Safeguarding",Children's & Education Services,103,Supplies and Services,504,Miscellaneous Expenses,5034,Revenue,18.TRAVEL
31-Oct-2017,7004151,106.23,TRAVEL.CLOUD,394406,"Health, Education, Care and Safeguarding",Children's & Education Services,103,Supplies and Services,504,Expenses,5030,Revenue,18.TRAVEL
31-Oct-2017,7004151,56.04,TRAVEL.CLOUD,394406,"Health, Education, Care and Safeguarding",Children's & Education Services,103,Supplies and Services,504,Expenses,5030,Revenue,18.TRAVEL
31-Oct-2017,7004151,218.16,TRAVEL.CLOUD,394406,Corporate Strategy,Children's & Education Services,103,Transport,503,Direct Transport Costs,5016,Revenue,18.TRAVEL
31-Oct-2017,7004151,420.54,TRAVEL.CLOUD,394406,Commissioning & Investment,Children's & Education Services,103,Supplies and Services,504,Expenses,5030,Revenue,18.TRAVEL
31-Oct-2017,7004151,179.57,TRAVEL.CLOUD,394406,Commissioning & Investment,Children's & Education Services,103,Supplies and Services,504,Expenses,5030,Revenue,18.TRAVEL
31-Oct-2017,7004151,65.21,TRAVEL.CLOUD,394406,"Health, Education, Care and Safeguarding",Children's & Education Services,103,Supplies and Services,504,Expenses,5030,Revenue,18.TRAVEL
31-Oct-2017,7004152,93.33,MOJO HELPDESK,394317,"Health, Education, Care and Safeguarding",Children's & Education Services,103,Supplies and Services,504,Communications & Computing,5028,Revenue,15.SOFTWARE
31-Oct-2017,7004152,90.22,MOJO HELPDESK,394317,"Health, Education, Care and Safeguarding",Children's & Education Services,103,Supplies and Services,504,Communications & Computing,5028,Revenue,15.SOFTWARE
31-Oct-2017,7004153,17.67,ARK WILDLIFE LTD,394036,"Environment, Housing & Leisure",Cultural & Related Services,104,Supplies and Services,504,Equipment,5023,Revenue,ENVIRO ANIMAL
31-Oct-2017,7004154,124.17,WWW.ASE.ORG.UK,385751,"Health, Education, Care and Safeguarding",Children's & Education Services,103,Supplies and Services,504,Grants and Subscriptions,5031,Revenue,18.SUBSCRIPTIONS
31-Oct-2017,7004155,390.00,HILLHEADS POULTRY FARM,315771,"Environment, Housing & Leisure",Cultural & Related Services,104,Supplies and Services,504,Equipment,5023,Revenue,03.GROCERIES & PROVISIONS
31-Oct-2017,7004155,450.00,HILLHEADS POULTRY FARM,315771,"Environment, Housing & Leisure",Cultural & Related Services,104,Supplies and Services,504,Equipment,5023,Revenue,03.GROCERIES & PROVISIONS
31-Oct-2017,7004156,704.06,MARK TONEY & CO LTD,013184,"Environment, Housing & Leisure",Cultural & Related Services,104,Supplies and Services,504,Equipment,5023,Revenue,16.EVENTS & PROMOTIONS
31-Oct-2017,7004156,831.83,MARK TONEY & CO LTD,013184,"Environment, Housing & Leisure",Adult Social Care,101,Supplies and Services,504,Equipment,5023,Revenue,16.EVENTS & PROMOTIONS
31-Oct-2017,7004156,714.28,MARK TONEY & CO LTD,013184,"Environment, Housing & Leisure",Cultural & Related Services,104,Supplies and Services,504,Equipment,5023,Revenue,16.EVENTS & PROMOTIONS
31-Oct-2017,7004156,142.07,MARK TONEY & CO LTD,013184,"Environment, Housing & Leisure",Cultural & Related Services,104,Supplies and Services,504,Equipment,5023,Revenue,16.EVENTS & PROMOTIONS
31-Oct-2017,7004156,129.17,MARK TONEY & CO LTD,013184,"Environment, Housing & Leisure",Cultural & Related Services,104,Supplies and Services,504,Equipment,5023,Revenue,16.EVENTS & PROMOTIONS
31-Oct-2017,7004156,307.50,MARK TONEY & CO LTD,013184,"Environment, Housing & Leisure",Cultural & Related Services,104,Supplies and Services,504,Equipment,5023,Revenue,16.EVENTS & PROMOTIONS
31-Oct-2017,7004157,119.54,C/GAS KENDAL,385638,"Health, Education, Care and Safeguarding",Children's & Education Services,103,Premises-Related Expenditure,502,Energy Costs,5006,Revenue,27.GAS
31-Oct-2017,7004158,11.84,CHICKEN JOES LTD T/A LOVE JOES,375810,Commissioning & Investment,Children's & Education Services,103,Supplies and Services,504,Equipment,5023,Revenue,03.GROCERIES & PROVISIONS
31-Oct-2017,7004158,120.00,CHICKEN JOES LTD T/A LOVE JOES,375810,Commissioning & Investment,Children's & Education Services,103,Supplies and Services,504,Equipment,5023,Revenue,03.GROCERIES & PROVISIONS
31-Oct-2017,7004158,15.12,CHICKEN JOES LTD T/A LOVE JOES,375810,Commissioning & Investment,Children's & Education Services,103,Supplies and Services,504,Equipment,5023,Revenue,03.GROCERIES & PROVISIONS
31-Oct-2017,7004158,31.05,CHICKEN JOES LTD T/A LOVE JOES,375810,Commissioning & Investment,Children's & Education Services,103,Supplies and Services,504,Equipment,5023,Revenue,03.GROCERIES & PROVISIONS
31-Oct-2017,7004158,11.84,CHICKEN JOES LTD T/A LOVE JOES,375810,Commissioning & Investment,Children's & Education Services,103,Supplies and Services,504,Equipment,5023,Revenue,03.GROCERIES & PROVISIONS
31-Oct-2017,7004158,15.12,CHICKEN JOES LTD T/A LOVE JOES,375810,Commissioning & Investment,Children's & Education Services,103,Supplies and Services,504,Equipment,5023,Revenue,03.GROCERIES & PROVISIONS
31-Oct-2017,7004158,120.00,CHICKEN JOES LTD T/A LOVE JOES,375810,Commissioning & Investment,Children's & Education Services,103,Supplies and Services,504,Equipment,5023,Revenue,03.GROCERIES & PROVISIONS
31-Oct-2017,7004158,16.89,CHICKEN JOES LTD T/A LOVE JOES,375810,Commissioning & Investment,Children's & Education Services,103,Supplies and Services,504,Equipment,5023,Revenue,03.GROCERIES & PROVISIONS
31-Oct-2017,7004158,23.68,CHICKEN JOES LTD T/A LOVE JOES,375810,Commissioning & Investment,Children's & Education Services,103,Supplies and Services,504,Equipment,5023,Revenue,03.GROCERIES & PROVISIONS
31-Oct-2017,7004158,11.84,CHICKEN JOES LTD T/A LOVE JOES,375810,Commissioning & Investment,Children's & Education Services,103,Supplies and Services,504,Equipment,5023,Revenue,03.GROCERIES & PROVISIONS
31-Oct-2017,7004158,17.56,CHICKEN JOES LTD T/A LOVE JOES,375810,Commissioning & Investment,Children's & Education Services,103,Supplies and Services,504,Equipment,5023,Revenue,03.GROCERIES & PROVISIONS
31-Oct-2017,7004158,23.68,CHICKEN JOES LTD T/A LOVE JOES,375810,Commissioning & Investment,Children's & Education Services,103,Supplies and Services,504,Equipment,5023,Revenue,03.GROCERIES & PROVISIONS
31-Oct-2017,7004158,14.95,CHICKEN JOES LTD T/A LOVE JOES,375810,Commissioning & Investment,Children's & Education Services,103,Supplies and Services,504,Equipment,5023,Revenue,03.GROCERIES & PROVISIONS
31-Oct-2017,7004158,14.74,CHICKEN JOES LTD T/A LOVE JOES,375810,Commissioning & Investment,Children's & Education Services,103,Supplies and Services,504,Equipment,5023,Revenue,03.GROCERIES & PROVISIONS
31-Oct-2017,7004158,4.16,CHICKEN JOES LTD T/A LOVE JOES,375810,Commissioning & Investment,Children's & Education Services,103,Supplies and Services,504,Equipment,5023,Revenue,03.GROCERIES & PROVISIONS
31-Oct-2017,7004158,7.56,CHICKEN JOES LTD T/A LOVE JOES,375810,Commissioning & Investment,Children's & Education Services,103,Supplies and Services,504,Equipment,5023,Revenue,03.GROCERIES & PROVISIONS
31-Oct-2017,7004158,36.74,CHICKEN JOES LTD T/A LOVE JOES,375810,Commissioning & Investment,Children's & Education Services,103,Supplies and Services,504,Equipment,5023,Revenue,03.GROCERIES & PROVISIONS
31-Oct-2017,7004158,11.84,CHICKEN JOES LTD T/A LOVE JOES,375810,Commissioning & Investment,Children's & Education Services,103,Supplies and Services,504,Equipment,5023,Revenue,03.GROCERIES & PROVISIONS
31-Oct-2017,7004158,11.84,CHICKEN JOES LTD T/A LOVE JOES,375810,Commissioning & Investment,Children's & Education Services,103,Supplies and Services,504,Equipment,5023,Revenue,03.GROCERIES & PROVISIONS
31-Oct-2017,7004158,36.74,CHICKEN JOES LTD T/A LOVE JOES,375810,Commissioning & Investment,Children's & Education Services,103,Supplies and Services,504,Equipment,5023,Revenue,03.GROCERIES & PROVISIONS
31-Oct-2017,7004158,11.84,CHICKEN JOES LTD T/A LOVE JOES,375810,Commissioning & Investment,Children's & Education Services,103,Supplies and Services,504,Equipment,5023,Revenue,03.GROCERIES & PROVISIONS
31-Oct-2017,7004158,11.84,CHICKEN JOES LTD T/A LOVE JOES,375810,Commissioning & Investment,Children's & Education Services,103,Supplies and Services,504,Equipment,5023,Revenue,03.GROCERIES & PROVISIONS
31-Oct-2017,7004158,28.91,CHICKEN JOES LTD T/A LOVE JOES,375810,Commissioning & Investment,Children's & Education Services,103,Supplies and Services,504,Equipment,5023,Revenue,03.GROCERIES & PROVISIONS
31-Oct-2017,7004158,24.96,CHICKEN JOES LTD T/A LOVE JOES,375810,Commissioning & Investment,Children's & Education Services,103,Supplies and Services,504,Equipment,5023,Revenue,03.GROCERIES & PROVISIONS
31-Oct-2017,7004158,2.08,CHICKEN JOES LTD T/A LOVE JOES,375810,Commissioning & Investment,Children's & Education Services,103,Supplies and Services,504,Equipment,5023,Revenue,03.GROCERIES & PROVISIONS
31-Oct-2017,7004158,31.05,CHICKEN JOES LTD T/A LOVE JOES,375810,Commissioning & Investment,Children's & Education Services,103,Supplies and Services,504,Equipment,5023,Revenue,03.GROCERIES & PROVISIONS
31-Oct-2017,7004158,12.42,CHICKEN JOES LTD T/A LOVE JOES,375810,Commissioning & Investment,Children's & Education Services,103,Supplies and Services,504,Equipment,5023,Revenue,03.GROCERIES & PROVISIONS
31-Oct-2017,7004158,31.80,CHICKEN JOES LTD T/A LOVE JOES,375810,Commissioning & Investment,Children's & Education Services,103,Supplies and Services,504,Equipment,5023,Revenue,03.GROCERIES & PROVISIONS
31-Oct-2017,7004158,11.84,CHICKEN JOES LTD T/A LOVE JOES,375810,Commissioning & Investment,Children's & Education Services,103,Supplies and Services,504,Equipment,5023,Revenue,03.GROCERIES & PROVISIONS
31-Oct-2017,7004158,120.00,CHICKEN JOES LTD T/A LOVE JOES,375810,Commissioning & Investment,Children's & Education Services,103,Supplies and Services,504,Equipment,5023,Revenue,03.GROCERIES & PROVISIONS
31-Oct-2017,7004158,12.06,CHICKEN JOES LTD T/A LOVE JOES,375810,Commissioning & Investment,Children's & Education Services,103,Supplies and Services,504,Equipment,5023,Revenue,03.GROCERIES & PROVISIONS
31-Oct-2017,7004158,11.84,CHICKEN JOES LTD T/A LOVE JOES,375810,Commissioning & Investment,Children's & Education Services,103,Supplies and Services,504,Equipment,5023,Revenue,03.GROCERIES & PROVISIONS
31-Oct-2017,7004158,4.80,CHICKEN JOES LTD T/A LOVE JOES,375810,Commissioning & Investment,Children's & Education Services,103,Supplies and Services,504,Equipment,5023,Revenue,03.GROCERIES & PROVISIONS
31-Oct-2017,7004158,12.00,CHICKEN JOES LTD T/A LOVE JOES,375810,Commissioning & Investment,Children's & Education Services,103,Supplies and Services,504,Equipment,5023,Revenue,03.GROCERIES & PROVISIONS
31-Oct-2017,7004158,41.60,CHICKEN JOES LTD T/A LOVE JOES,375810,Commissioning & Investment,Children's & Education Services,103,Supplies and Services,504,Equipment,5023,Revenue,03.GROCERIES & PROVISIONS
31-Oct-2017,7004158,11.84,CHICKEN JOES LTD T/A LOVE JOES,375810,Commissioning & Investment,Children's & Education Services,103,Supplies and Services,504,Equipment,5023,Revenue,03.GROCERIES & PROVISIONS
31-Oct-2017,7004158,11.84,CHICKEN JOES LTD T/A LOVE JOES,375810,Commissioning & Investment,Children's & Education Services,103,Supplies and Services,504,Equipment,5023,Revenue,03.GROCERIES & PROVISIONS
31-Oct-2017,7004158,18.38,CHICKEN JOES LTD T/A LOVE JOES,375810,Commissioning & Investment,Children's & Education Services,103,Supplies and Services,504,Equipment,5023,Revenue,03.GROCERIES & PROVISIONS
31-Oct-2017,7004158,24.00,CHICKEN JOES LTD T/A LOVE JOES,375810,Commissioning & Investment,Children's & Education Services,103,Supplies and Services,504,Equipment,5023,Revenue,03.GROCERIES & PROVISIONS
31-Oct-2017,7004158,11.84,CHICKEN JOES LTD T/A LOVE JOES,375810,Commissioning & Investment,Children's & Education Services,103,Supplies and Services,504,Equipment,5023,Revenue,03.GROCERIES & PROVISIONS
31-Oct-2017,7004158,13.62,CHICKEN JOES LTD T/A LOVE JOES,375810,Commissioning & Investment,Children's & Education Services,103,Supplies and Services,504,Equipment,5023,Revenue,03.GROCERIES & PROVISIONS
31-Oct-2017,7004158,23.68,CHICKEN JOES LTD T/A LOVE JOES,375810,Commissioning & Investment,Children's & Education Services,103,Supplies and Services,504,Equipment,5023,Revenue,03.GROCERIES & PROVISIONS
31-Oct-2017,7004158,31.05,CHICKEN JOES LTD T/A LOVE JOES,375810,Commissioning & Investment,Children's & Education Services,103,Supplies and Services,504,Equipment,5023,Revenue,03.GROCERIES & PROVISIONS
31-Oct-2017,7004158,60.00,CHICKEN JOES LTD T/A LOVE JOES,375810,Commissioning & Investment,Children's & Education Services,103,Supplies and Services,504,Equipment,5023,Revenue,03.GROCERIES & PROVISIONS
31-Oct-2017,7004158,2.40,CHICKEN JOES LTD T/A LOVE JOES,375810,Commissioning & Investment,Children's & Education Services,103,Supplies and Services,504,Equipment,5023,Revenue,03.GROCERIES & PROVISIONS
31-Oct-2017,7004158,11.84,CHICKEN JOES LTD T/A LOVE JOES,375810,Commissioning & Investment,Children's & Education Services,103,Supplies and Services,504,Equipment,5023,Revenue,03.GROCERIES & PROVISIONS
31-Oct-2017,7004158,11.84,CHICKEN JOES LTD T/A LOVE JOES,375810,Commissioning & Investment,Children's & Education Services,103,Supplies and Services,504,Equipment,5023,Revenue,03.GROCERIES & PROVISIONS
31-Oct-2017,7004158,12.00,CHICKEN JOES LTD T/A LOVE JOES,375810,Commissioning & Investment,Children's & Education Services,103,Supplies and Services,504,Equipment,5023,Revenue,03.GROCERIES & PROVISIONS
31-Oct-2017,7004158,31.36,CHICKEN JOES LTD T/A LOVE JOES,375810,Commissioning & Investment,Children's & Education Services,103,Supplies and Services,504,Equipment,5023,Revenue,03.GROCERIES & PROVISIONS
31-Oct-2017,7004158,4.88,CHICKEN JOES LTD T/A LOVE JOES,375810,Commissioning & Investment,Children's & Education Services,103,Supplies and Services,504,Equipment,5023,Revenue,03.GROCERIES & PROVISIONS
31-Oct-2017,7004158,6.24,CHICKEN JOES LTD T/A LOVE JOES,375810,Commissioning & Investment,Children's & Education Services,103,Supplies and Services,504,Equipment,5023,Revenue,03.GROCERIES & PROVISIONS
31-Oct-2017,7004158,7.56,CHICKEN JOES LTD T/A LOVE JOES,375810,Commissioning & Investment,Children's & Education Services,103,Supplies and Services,504,Equipment,5023,Revenue,03.GROCERIES & PROVISIONS
31-Oct-2017,7004158,11.84,CHICKEN JOES LTD T/A LOVE JOES,375810,Commissioning & Investment,Children's & Education Services,103,Supplies and Services,504,Equipment,5023,Revenue,03.GROCERIES & PROVISIONS
31-Oct-2017,7004158,38.58,CHICKEN JOES LTD T/A LOVE JOES,375810,Commissioning & Investment,Children's & Education Services,103,Supplies and Services,504,Equipment,5023,Revenue,03.GROCERIES & PROVISIONS
31-Oct-2017,7004158,31.05,CHICKEN JOES LTD T/A LOVE JOES,375810,Commissioning & Investment,Children's & Education Services,103,Supplies and Services,504,Equipment,5023,Revenue,03.GROCERIES & PROVISIONS
31-Oct-2017,7004158,4.16,CHICKEN JOES LTD T/A LOVE JOES,375810,Commissioning & Investment,Children's & Education Services,103,Supplies and Services,504,Equipment,5023,Revenue,03.GROCERIES & PROVISIONS
31-Oct-2017,7004158,11.84,CHICKEN JOES LTD T/A LOVE JOES,375810,Commissioning & Investment,Children's & Education Services,103,Supplies and Services,504,Equipment,5023,Revenue,03.GROCERIES & PROVISIONS
31-Oct-2017,7004158,6.24,CHICKEN JOES LTD T/A LOVE JOES,375810,Commissioning & Investment,Children's & Education Services,103,Supplies and Services,504,Equipment,5023,Revenue,03.GROCERIES & PROVISIONS
31-Oct-2017,7004158,60.00,CHICKEN JOES LTD T/A LOVE JOES,375810,Commissioning & Investment,Children's & Education Services,103,Supplies and Services,504,Equipment,5023,Revenue,03.GROCERIES & PROVISIONS
31-Oct-2017,7004158,36.74,CHICKEN JOES LTD T/A LOVE JOES,375810,Commissioning & Investment,Children's & Education Services,103,Supplies and Services,504,Equipment,5023,Revenue,03.GROCERIES & PROVISIONS
31-Oct-2017,7004158,11.84,CHICKEN JOES LTD T/A LOVE JOES,375810,Commissioning & Investment,Children's & Education Services,103,Supplies and Services,504,Equipment,5023,Revenue,03.GROCERIES & PROVISIONS
31-Oct-2017,7004158,60.00,CHICKEN JOES LTD T/A LOVE JOES,375810,Commissioning & Investment,Children's & Education Services,103,Supplies and Services,504,Equipment,5023,Revenue,03.GROCERIES & PROVISIONS
31-Oct-2017,7004158,11.84,CHICKEN JOES LTD T/A LOVE JOES,375810,Commissioning & Investment,Children's & Education Services,103,Supplies and Services,504,Equipment,5023,Revenue,03.GROCERIES & PROVISIONS
31-Oct-2017,7004158,2.40,CHICKEN JOES LTD T/A LOVE JOES,375810,Commissioning & Investment,Children's & Education Services,103,Supplies and Services,504,Equipment,5023,Revenue,03.GROCERIES & PROVISIONS
31-Oct-2017,7004158,11.84,CHICKEN JOES LTD T/A LOVE JOES,375810,Commissioning & Investment,Children's & Education Services,103,Supplies and Services,504,Equipment,5023,Revenue,03.GROCERIES & PROVISIONS
31-Oct-2017,7004158,120.00,CHICKEN JOES LTD T/A LOVE JOES,375810,Commissioning & Investment,Children's & Education Services,103,Supplies and Services,504,Equipment,5023,Revenue,03.GROCERIES & PROVISIONS
31-Oct-2017,7004158,60.00,CHICKEN JOES LTD T/A LOVE JOES,375810,Commissioning & Investment,Children's & Education Services,103,Supplies and Services,504,Equipment,5023,Revenue,03.GROCERIES & PROVISIONS
31-Oct-2017,7004158,29.05,CHICKEN JOES LTD T/A LOVE JOES,375810,Commissioning & Investment,Children's & Education Services,103,Supplies and Services,504,Equipment,5023,Revenue,03.GROCERIES & PROVISIONS
31-Oct-2017,7004158,4.16,CHICKEN JOES LTD T/A LOVE JOES,375810,Commissioning & Investment,Children's & Education Services,103,Supplies and Services,504,Equipment,5023,Revenue,03.GROCERIES & PROVISIONS
31-Oct-2017,7004158,12.42,CHICKEN JOES LTD T/A LOVE JOES,375810,Commissioning & Investment,Children's & Education Services,103,Supplies and Services,504,Equipment,5023,Revenue,03.GROCERIES & PROVISIONS
31-Oct-2017,7004158,11.84,CHICKEN JOES LTD T/A LOVE JOES,375810,Commissioning & Investment,Children's & Education Services,103,Supplies and Services,504,Equipment,5023,Revenue,03.GROCERIES & PROVISIONS
31-Oct-2017,7004158,20.80,CHICKEN JOES LTD T/A LOVE JOES,375810,Commissioning & Investment,Children's & Education Services,103,Supplies and Services,504,Equipment,5023,Revenue,03.GROCERIES & PROVISIONS
31-Oct-2017,7004158,120.00,CHICKEN JOES LTD T/A LOVE JOES,375810,Commissioning & Investment,Children's & Education Services,103,Supplies and Services,504,Equipment,5023,Revenue,03.GROCERIES & PROVISIONS
31-Oct-2017,7004158,5.10,CHICKEN JOES LTD T/A LOVE JOES,375810,Commissioning & Investment,Children's & Education Services,103,Supplies and Services,504,Equipment,5023,Revenue,03.GROCERIES & PROVISIONS
31-Oct-2017,7004158,9.19,CHICKEN JOES LTD T/A LOVE JOES,375810,Commissioning & Investment,Children's & Education Services,103,Supplies and Services,504,Equipment,5023,Revenue,03.GROCERIES & PROVISIONS
31-Oct-2017,7004158,2.40,CHICKEN JOES LTD T/A LOVE JOES,375810,Commissioning & Investment,Children's & Education Services,103,Supplies and Services,504,Equipment,5023,Revenue,03.GROCERIES & PROVISIONS
31-Oct-2017,7004158,11.84,CHICKEN JOES LTD T/A LOVE JOES,375810,Commissioning & Investment,Children's & Education Services,103,Supplies and Services,504,Equipment,5023,Revenue,03.GROCERIES & PROVISIONS
31-Oct-2017,7004158,47.36,CHICKEN JOES LTD T/A LOVE JOES,375810,Commissioning & Investment,Children's & Education Services,103,Supplies and Services,504,Equipment,5023,Revenue,03.GROCERIES & PROVISIONS
31-Oct-2017,7004158,12.42,CHICKEN JOES LTD T/A LOVE JOES,375810,Commissioning & Investment,Children's & Education Services,103,Supplies and Services,504,Equipment,5023,Revenue,03.GROCERIES & PROVISIONS
31-Oct-2017,7004158,11.84,CHICKEN JOES LTD T/A LOVE JOES,375810,Commissioning & Investment,Children's & Education Services,103,Supplies and Services,504,Equipment,5023,Revenue,03.GROCERIES & PROVISIONS
31-Oct-2017,7004158,23.68,CHICKEN JOES LTD T/A LOVE JOES,375810,Commissioning & Investment,Children's & Education Services,103,Supplies and Services,504,Equipment,5023,Revenue,03.GROCERIES & PROVISIONS
31-Oct-2017,7004158,31.05,CHICKEN JOES LTD T/A LOVE JOES,375810,Commissioning & Investment,Children's & Education Services,103,Supplies and Services,504,Equipment,5023,Revenue,03.GROCERIES & PROVISIONS
31-Oct-2017,7004158,120.00,CHICKEN JOES LTD T/A LOVE JOES,375810,Commissioning & Investment,Children's & Education Services,103,Supplies and Services,504,Equipment,5023,Revenue,03.GROCERIES & PROVISIONS
31-Oct-2017,7004158,12.42,CHICKEN JOES LTD T/A LOVE JOES,375810,Commissioning & Investment,Children's & Education Services,103,Supplies and Services,504,Equipment,5023,Revenue,03.GROCERIES & PROVISIONS
31-Oct-2017,7004158,17.56,CHICKEN JOES LTD T/A LOVE JOES,375810,Commissioning & Investment,Children's & Education Services,103,Supplies and Services,504,Equipment,5023,Revenue,03.GROCERIES & PROVISIONS
31-Oct-2017,7004158,360.00,CHICKEN JOES LTD T/A LOVE JOES,375810,Commissioning & Investment,Children's & Education Services,103,Supplies and Services,504,Equipment,5023,Revenue,03.GROCERIES & PROVISIONS
31-Oct-2017,7004158,7.20,CHICKEN JOES LTD T/A LOVE JOES,375810,Commissioning & Investment,Children's & Education Services,103,Supplies and Services,504,Equipment,5023,Revenue,03.GROCERIES & PROVISIONS
31-Oct-2017,7004158,11.84,CHICKEN JOES LTD T/A LOVE JOES,375810,Commissioning & Investment,Children's & Education Services,103,Supplies and Services,504,Equipment,5023,Revenue,03.GROCERIES & PROVISIONS
31-Oct-2017,7004158,2.44,CHICKEN JOES LTD T/A LOVE JOES,375810,Commissioning & Investment,Children's & Education Services,103,Supplies and Services,504,Equipment,5023,Revenue,03.GROCERIES & PROVISIONS
31-Oct-2017,7004158,29.05,CHICKEN JOES LTD T/A LOVE JOES,375810,Commissioning & Investment,Children's & Education Services,103,Supplies and Services,504,Equipment,5023,Revenue,03.GROCERIES & PROVISIONS
31-Oct-2017,7004158,2.40,CHICKEN JOES LTD T/A LOVE JOES,375810,Commissioning & Investment,Children's & Education Services,103,Supplies and Services,504,Equipment,5023,Revenue,03.GROCERIES & PROVISIONS
31-Oct-2017,7004158,28.00,CHICKEN JOES LTD T/A LOVE JOES,375810,Commissioning & Investment,Children's & Education Services,103,Supplies and Services,504,Equipment,5023,Revenue,03.GROCERIES & PROVISIONS
31-Oct-2017,7004158,11.84,CHICKEN JOES LTD T/A LOVE JOES,375810,Commissioning & Investment,Children's & Education Services,103,Supplies and Services,504,Equipment,5023,Revenue,03.GROCERIES & PROVISIONS
31-Oct-2017,7004158,4.16,CHICKEN JOES LTD T/A LOVE JOES,375810,Commissioning & Investment,Children's & Education Services,103,Supplies and Services,504,Equipment,5023,Revenue,03.GROCERIES & PROVISIONS
31-Oct-2017,7004158,14.95,CHICKEN JOES LTD T/A LOVE JOES,375810,Commissioning & Investment,Children's & Education Services,103,Supplies and Services,504,Equipment,5023,Revenue,03.GROCERIES & PROVISIONS
31-Oct-2017,7004158,36.74,CHICKEN JOES LTD T/A LOVE JOES,375810,Commissioning & Investment,Children's & Education Services,103,Supplies and Services,504,Equipment,5023,Revenue,03.GROCERIES & PROVISIONS
31-Oct-2017,7004158,23.68,CHICKEN JOES LTD T/A LOVE JOES,375810,Commissioning & Investment,Children's & Education Services,103,Supplies and Services,504,Equipment,5023,Revenue,03.GROCERIES & PROVISIONS
31-Oct-2017,7004158,24.00,CHICKEN JOES LTD T/A LOVE JOES,375810,Commissioning & Investment,Children's & Education Services,103,Supplies and Services,504,Equipment,5023,Revenue,03.GROCERIES & PROVISIONS
31-Oct-2017,7004158,44.22,CHICKEN JOES LTD T/A LOVE JOES,375810,Commissioning & Investment,Children's & Education Services,103,Supplies and Services,504,Equipment,5023,Revenue,03.GROCERIES & PROVISIONS
31-Oct-2017,7004158,62.10,CHICKEN JOES LTD T/A LOVE JOES,375810,Commissioning & Investment,Children's & Education Services,103,Supplies and Services,504,Equipment,5023,Revenue,03.GROCERIES & PROVISIONS
31-Oct-2017,7004158,41.60,CHICKEN JOES LTD T/A LOVE JOES,375810,Commissioning & Investment,Children's & Education Services,103,Supplies and Services,504,Equipment,5023,Revenue,03.GROCERIES & PROVISIONS
31-Oct-2017,7004158,59.20,CHICKEN JOES LTD T/A LOVE JOES,375810,Commissioning & Investment,Children's & Education Services,103,Supplies and Services,504,Equipment,5023,Revenue,03.GROCERIES & PROVISIONS
31-Oct-2017,7004158,11.84,CHICKEN JOES LTD T/A LOVE JOES,375810,Commissioning & Investment,Children's & Education Services,103,Supplies and Services,504,Equipment,5023,Revenue,03.GROCERIES & PROVISIONS
31-Oct-2017,7004158,10.56,CHICKEN JOES LTD T/A LOVE JOES,375810,Commissioning & Investment,Children's & Education Services,103,Supplies and Services,504,Equipment,5023,Revenue,03.GROCERIES & PROVISIONS
31-Oct-2017,7004158,4.16,CHICKEN JOES LTD T/A LOVE JOES,375810,Commissioning & Investment,Children's & Education Services,103,Supplies and Services,504,Equipment,5023,Revenue,03.GROCERIES & PROVISIONS
31-Oct-2017,7004158,120.00,CHICKEN JOES LTD T/A LOVE JOES,375810,Commissioning & Investment,Children's & Education Services,103,Supplies and Services,504,Equipment,5023,Revenue,03.GROCERIES & PROVISIONS
31-Oct-2017,7004158,11.84,CHICKEN JOES LTD T/A LOVE JOES,375810,Commissioning & Investment,Children's & Education Services,103,Supplies and Services,504,Equipment,5023,Revenue,03.GROCERIES & PROVISIONS
31-Oct-2017,7004158,28.91,CHICKEN JOES LTD T/A LOVE JOES,375810,Commissioning & Investment,Children's & Education Services,103,Supplies and Services,504,Equipment,5023,Revenue,03.GROCERIES & PROVISIONS
31-Oct-2017,7004158,12.42,CHICKEN JOES LTD T/A LOVE JOES,375810,Commissioning & Investment,Children's & Education Services,103,Supplies and Services,504,Equipment,5023,Revenue,03.GROCERIES & PROVISIONS
31-Oct-2017,7004158,4.16,CHICKEN JOES LTD T/A LOVE JOES,375810,Commissioning & Investment,Children's & Education Services,103,Supplies and Services,504,Equipment,5023,Revenue,03.GROCERIES & PROVISIONS
31-Oct-2017,7004158,-14.95,CHICKEN JOES LTD T/A LOVE JOES,375810,Commissioning & Investment,Children's & Education Services,103,Supplies and Services,504,Equipment,5023,Revenue,03.GROCERIES & PROVISIONS
31-Oct-2017,7004158,18.37,CHICKEN JOES LTD T/A LOVE JOES,375810,Commissioning & Investment,Children's & Education Services,103,Supplies and Services,504,Equipment,5023,Revenue,03.GROCERIES & PROVISIONS
31-Oct-2017,7004158,11.84,CHICKEN JOES LTD T/A LOVE JOES,375810,Commissioning & Investment,Children's & Education Services,103,Supplies and Services,504,Equipment,5023,Revenue,03.GROCERIES & PROVISIONS
31-Oct-2017,7004158,11.84,CHICKEN JOES LTD T/A LOVE JOES,375810,Commissioning & Investment,Children's & Education Services,103,Supplies and Services,504,Equipment,5023,Revenue,03.GROCERIES & PROVISIONS
31-Oct-2017,7004158,28.34,CHICKEN JOES LTD T/A LOVE JOES,375810,Commissioning & Investment,Children's & Education Services,103,Supplies and Services,504,Equipment,5023,Revenue,03.GROCERIES & PROVISIONS
31-Oct-2017,7004158,36.74,CHICKEN JOES LTD T/A LOVE JOES,375810,Commissioning & Investment,Children's & Education Services,103,Supplies and Services,504,Equipment,5023,Revenue,03.GROCERIES & PROVISIONS
31-Oct-2017,7004158,4.16,CHICKEN JOES LTD T/A LOVE JOES,375810,Commissioning & Investment,Children's & Education Services,103,Supplies and Services,504,Equipment,5023,Revenue,03.GROCERIES & PROVISIONS
31-Oct-2017,7004158,47.36,CHICKEN JOES LTD T/A LOVE JOES,375810,Commissioning & Investment,Children's & Education Services,103,Supplies and Services,504,Equipment,5023,Revenue,03.GROCERIES & PROVISIONS
31-Oct-2017,7004158,4.80,CHICKEN JOES LTD T/A LOVE JOES,375810,Commissioning & Investment,Children's & Education Services,103,Supplies and Services,504,Equipment,5023,Revenue,03.GROCERIES & PROVISIONS
31-Oct-2017,7004158,120.00,CHICKEN JOES LTD T/A LOVE JOES,375810,Commissioning & Investment,Children's & Education Services,103,Supplies and Services,504,Equipment,5023,Revenue,03.GROCERIES & PROVISIONS
31-Oct-2017,7004158,12.42,CHICKEN JOES LTD T/A LOVE JOES,375810,Commissioning & Investment,Children's & Education Services,103,Supplies and Services,504,Equipment,5023,Revenue,03.GROCERIES & PROVISIONS
31-Oct-2017,7004158,23.68,CHICKEN JOES LTD T/A LOVE JOES,375810,Commissioning & Investment,Children's & Education Services,103,Supplies and Services,504,Equipment,5023,Revenue,03.GROCERIES & PROVISIONS
31-Oct-2017,7004158,60.00,CHICKEN JOES LTD T/A LOVE JOES,375810,Commissioning & Investment,Children's & Education Services,103,Supplies and Services,504,Equipment,5023,Revenue,03.GROCERIES & PROVISIONS
31-Oct-2017,7004158,12.42,CHICKEN JOES LTD T/A LOVE JOES,375810,Commissioning & Investment,Children's & Education Services,103,Supplies and Services,504,Equipment,5023,Revenue,03.GROCERIES & PROVISIONS
31-Oct-2017,7004158,36.74,CHICKEN JOES LTD T/A LOVE JOES,375810,Commissioning & Investment,Children's & Education Services,103,Supplies and Services,504,Equipment,5023,Revenue,03.GROCERIES & PROVISIONS
31-Oct-2017,7004158,6.03,CHICKEN JOES LTD T/A LOVE JOES,375810,Commissioning & Investment,Children's & Education Services,103,Supplies and Services,504,Equipment,5023,Revenue,03.GROCERIES & PROVISIONS
31-Oct-2017,7004158,36.74,CHICKEN JOES LTD T/A LOVE JOES,375810,Commissioning & Investment,Children's & Education Services,103,Supplies and Services,504,Equipment,5023,Revenue,03.GROCERIES & PROVISIONS
31-Oct-2017,7004158,144.00,CHICKEN JOES LTD T/A LOVE JOES,375810,Commissioning & Investment,Children's & Education Services,103,Supplies and Services,504,Equipment,5023,Revenue,03.GROCERIES & PROVISIONS
31-Oct-2017,7004158,20.80,CHICKEN JOES LTD T/A LOVE JOES,375810,Commissioning & Investment,Children's & Education Services,103,Supplies and Services,504,Equipment,5023,Revenue,03.GROCERIES & PROVISIONS
31-Oct-2017,7004158,-290.85,CHICKEN JOES LTD T/A LOVE JOES,375810,Commissioning & Investment,Children's & Education Services,103,Supplies and Services,504,Equipment,5023,Revenue,03.GROCERIES & PROVISIONS
31-Oct-2017,7004158,23.68,CHICKEN JOES LTD T/A LOVE JOES,375810,Commissioning & Investment,Children's & Education Services,103,Supplies and Services,504,Equipment,5023,Revenue,03.GROCERIES & PROVISIONS
31-Oct-2017,7004158,60.00,CHICKEN JOES LTD T/A LOVE JOES,375810,Commissioning & Investment,Children's & Education Services,103,Supplies and Services,504,Equipment,5023,Revenue,03.GROCERIES & PROVISIONS
31-Oct-2017,7004158,11.05,CHICKEN JOES LTD T/A LOVE JOES,375810,Commissioning & Investment,Children's & Education Services,103,Supplies and Services,504,Equipment,5023,Revenue,03.GROCERIES & PROVISIONS
31-Oct-2017,7004158,20.80,CHICKEN JOES LTD T/A LOVE JOES,375810,Commissioning & Investment,Children's & Education Services,103,Supplies and Services,504,Equipment,5023,Revenue,03.GROCERIES & PROVISIONS
31-Oct-2017,7004158,60.00,CHICKEN JOES LTD T/A LOVE JOES,375810,Commissioning & Investment,Children's & Education Services,103,Supplies and Services,504,Equipment,5023,Revenue,03.GROCERIES & PROVISIONS
31-Oct-2017,7004158,8.32,CHICKEN JOES LTD T/A LOVE JOES,375810,Commissioning & Investment,Children's & Education Services,103,Supplies and Services,504,Equipment,5023,Revenue,03.GROCERIES & PROVISIONS
31-Oct-2017,7004158,4.16,CHICKEN JOES LTD T/A LOVE JOES,375810,Commissioning & Investment,Children's & Education Services,103,Supplies and Services,504,Equipment,5023,Revenue,03.GROCERIES & PROVISIONS
31-Oct-2017,7004158,18.37,CHICKEN JOES LTD T/A LOVE JOES,375810,Commissioning & Investment,Children's & Education Services,103,Supplies and Services,504,Equipment,5023,Revenue,03.GROCERIES & PROVISIONS
31-Oct-2017,7004158,14.95,CHICKEN JOES LTD T/A LOVE JOES,375810,Commissioning & Investment,Children's & Education Services,103,Supplies and Services,504,Equipment,5023,Revenue,03.GROCERIES & PROVISIONS
31-Oct-2017,7004158,7.56,CHICKEN JOES LTD T/A LOVE JOES,375810,Commissioning & Investment,Children's & Education Services,103,Supplies and Services,504,Equipment,5023,Revenue,03.GROCERIES & PROVISIONS
31-Oct-2017,7004158,20.80,CHICKEN JOES LTD T/A LOVE JOES,375810,Commissioning & Investment,Children's & Education Services,103,Supplies and Services,504,Equipment,5023,Revenue,03.GROCERIES & PROVISIONS
31-Oct-2017,7004158,20.72,CHICKEN JOES LTD T/A LOVE JOES,375810,Commissioning & Investment,Children's & Education Services,103,Supplies and Services,504,Equipment,5023,Revenue,03.GROCERIES & PROVISIONS
31-Oct-2017,7004158,72.00,CHICKEN JOES LTD T/A LOVE JOES,375810,Commissioning & Investment,Children's & Education Services,103,Supplies and Services,504,Equipment,5023,Revenue,03.GROCERIES & PROVISIONS
31-Oct-2017,7004158,11.41,CHICKEN JOES LTD T/A LOVE JOES,375810,Commissioning & Investment,Children's & Education Services,103,Supplies and Services,504,Equipment,5023,Revenue,03.GROCERIES & PROVISIONS
31-Oct-2017,7004158,12.00,CHICKEN JOES LTD T/A LOVE JOES,375810,Commissioning & Investment,Children's & Education Services,103,Supplies and Services,504,Equipment,5023,Revenue,03.GROCERIES & PROVISIONS
31-Oct-2017,7004158,30.76,CHICKEN JOES LTD T/A LOVE JOES,375810,Commissioning & Investment,Children's & Education Services,103,Supplies and Services,504,Equipment,5023,Revenue,03.GROCERIES & PROVISIONS
31-Oct-2017,7004158,11.84,CHICKEN JOES LTD T/A LOVE JOES,375810,Commissioning & Investment,Children's & Education Services,103,Supplies and Services,504,Equipment,5023,Revenue,03.GROCERIES & PROVISIONS
31-Oct-2017,7004158,60.00,CHICKEN JOES LTD T/A LOVE JOES,375810,Commissioning & Investment,Children's & Education Services,103,Supplies and Services,504,Equipment,5023,Revenue,03.GROCERIES & PROVISIONS
31-Oct-2017,7004158,47.36,CHICKEN JOES LTD T/A LOVE JOES,375810,Commissioning & Investment,Children's & Education Services,103,Supplies and Services,504,Equipment,5023,Revenue,03.GROCERIES & PROVISIONS
31-Oct-2017,7004158,4.16,CHICKEN JOES LTD T/A LOVE JOES,375810,Commissioning & Investment,Children's & Education Services,103,Supplies and Services,504,Equipment,5023,Revenue,03.GROCERIES & PROVISIONS
31-Oct-2017,7004158,41.60,CHICKEN JOES LTD T/A LOVE JOES,375810,Commissioning & Investment,Children's & Education Services,103,Supplies and Services,504,Equipment,5023,Revenue,03.GROCERIES & PROVISIONS
31-Oct-2017,7004158,9.84,CHICKEN JOES LTD T/A LOVE JOES,375810,Commissioning & Investment,Children's & Education Services,103,Supplies and Services,504,Equipment,5023,Revenue,03.GROCERIES & PROVISIONS
31-Oct-2017,7004158,18.37,CHICKEN JOES LTD T/A LOVE JOES,375810,Commissioning & Investment,Children's & Education Services,103,Supplies and Services,504,Equipment,5023,Revenue,03.GROCERIES & PROVISIONS
31-Oct-2017,7004158,15.00,CHICKEN JOES LTD T/A LOVE JOES,375810,Commissioning & Investment,Children's & Education Services,103,Supplies and Services,504,Equipment,5023,Revenue,03.GROCERIES & PROVISIONS
31-Oct-2017,7004158,12.42,CHICKEN JOES LTD T/A LOVE JOES,375810,Commissioning & Investment,Children's & Education Services,103,Supplies and Services,504,Equipment,5023,Revenue,03.GROCERIES & PROVISIONS
31-Oct-2017,7004158,11.84,CHICKEN JOES LTD T/A LOVE JOES,375810,Commissioning & Investment,Children's & Education Services,103,Supplies and Services,504,Equipment,5023,Revenue,03.GROCERIES & PROVISIONS
31-Oct-2017,7004158,36.74,CHICKEN JOES LTD T/A LOVE JOES,375810,Commissioning & Investment,Children's & Education Services,103,Supplies and Services,504,Equipment,5023,Revenue,03.GROCERIES & PROVISIONS
31-Oct-2017,7004158,18.37,CHICKEN JOES LTD T/A LOVE JOES,375810,Commissioning & Investment,Children's & Education Services,103,Supplies and Services,504,Equipment,5023,Revenue,03.GROCERIES & PROVISIONS
31-Oct-2017,7004158,20.80,CHICKEN JOES LTD T/A LOVE JOES,375810,Commissioning & Investment,Children's & Education Services,103,Supplies and Services,504,Equipment,5023,Revenue,03.GROCERIES & PROVISIONS
31-Oct-2017,7004158,34.28,CHICKEN JOES LTD T/A LOVE JOES,375810,Commissioning & Investment,Children's & Education Services,103,Supplies and Services,504,Equipment,5023,Revenue,03.GROCERIES & PROVISIONS
31-Oct-2017,7004158,22.48,CHICKEN JOES LTD T/A LOVE JOES,375810,Commissioning & Investment,Children's & Education Services,103,Supplies and Services,504,Equipment,5023,Revenue,03.GROCERIES & PROVISIONS
31-Oct-2017,7004158,28.00,CHICKEN JOES LTD T/A LOVE JOES,375810,Commissioning & Investment,Children's & Education Services,103,Supplies and Services,504,Equipment,5023,Revenue,03.GROCERIES & PROVISIONS
31-Oct-2017,7004158,15.12,CHICKEN JOES LTD T/A LOVE JOES,375810,Commissioning & Investment,Children's & Education Services,103,Supplies and Services,504,Equipment,5023,Revenue,03.GROCERIES & PROVISIONS
31-Oct-2017,7004158,120.00,CHICKEN JOES LTD T/A LOVE JOES,375810,Commissioning & Investment,Children's & Education Services,103,Supplies and Services,504,Equipment,5023,Revenue,03.GROCERIES & PROVISIONS
31-Oct-2017,7004158,10.40,CHICKEN JOES LTD T/A LOVE JOES,375810,Commissioning & Investment,Children's & Education Services,103,Supplies and Services,504,Equipment,5023,Revenue,03.GROCERIES & PROVISIONS
31-Oct-2017,7004158,4.16,CHICKEN JOES LTD T/A LOVE JOES,375810,Commissioning & Investment,Children's & Education Services,103,Supplies and Services,504,Equipment,5023,Revenue,03.GROCERIES & PROVISIONS
31-Oct-2017,7004158,59.20,CHICKEN JOES LTD T/A LOVE JOES,375810,Commissioning & Investment,Children's & Education Services,103,Supplies and Services,504,Equipment,5023,Revenue,03.GROCERIES & PROVISIONS
31-Oct-2017,7004158,6.21,CHICKEN JOES LTD T/A LOVE JOES,375810,Commissioning & Investment,Children's & Education Services,103,Supplies and Services,504,Equipment,5023,Revenue,03.GROCERIES & PROVISIONS
31-Oct-2017,7004158,18.38,CHICKEN JOES LTD T/A LOVE JOES,375810,Commissioning & Investment,Children's & Education Services,103,Supplies and Services,504,Equipment,5023,Revenue,03.GROCERIES & PROVISIONS
31-Oct-2017,7004158,8.32,CHICKEN JOES LTD T/A LOVE JOES,375810,Commissioning & Investment,Children's & Education Services,103,Supplies and Services,504,Equipment,5023,Revenue,03.GROCERIES & PROVISIONS
31-Oct-2017,7004158,6.24,CHICKEN JOES LTD T/A LOVE JOES,375810,Commissioning & Investment,Children's & Education Services,103,Supplies and Services,504,Equipment,5023,Revenue,03.GROCERIES & PROVISIONS
31-Oct-2017,7004158,38.58,CHICKEN JOES LTD T/A LOVE JOES,375810,Commissioning & Investment,Children's & Education Services,103,Supplies and Services,504,Equipment,5023,Revenue,03.GROCERIES & PROVISIONS
31-Oct-2017,7004158,8.32,CHICKEN JOES LTD T/A LOVE JOES,375810,Commissioning & Investment,Children's & Education Services,103,Supplies and Services,504,Equipment,5023,Revenue,03.GROCERIES & PROVISIONS
31-Oct-2017,7004158,8.32,CHICKEN JOES LTD T/A LOVE JOES,375810,Commissioning & Investment,Children's & Education Services,103,Supplies and Services,504,Equipment,5023,Revenue,03.GROCERIES & PROVISIONS
31-Oct-2017,7004158,4.16,CHICKEN JOES LTD T/A LOVE JOES,375810,Commissioning & Investment,Children's & Education Services,103,Supplies and Services,504,Equipment,5023,Revenue,03.GROCERIES & PROVISIONS
31-Oct-2017,7004158,10.40,CHICKEN JOES LTD T/A LOVE JOES,375810,Commissioning & Investment,Children's & Education Services,103,Supplies and Services,504,Equipment,5023,Revenue,03.GROCERIES & PROVISIONS
31-Oct-2017,7004158,41.60,CHICKEN JOES LTD T/A LOVE JOES,375810,Commissioning & Investment,Children's & Education Services,103,Supplies and Services,504,Equipment,5023,Revenue,03.GROCERIES & PROVISIONS
31-Oct-2017,7004158,7.84,CHICKEN JOES LTD T/A LOVE JOES,375810,Commissioning & Investment,Children's & Education Services,103,Supplies and Services,504,Equipment,5023,Revenue,03.GROCERIES & PROVISIONS
31-Oct-2017,7004158,7.84,CHICKEN JOES LTD T/A LOVE JOES,375810,Commissioning & Investment,Children's & Education Services,103,Supplies and Services,504,Equipment,5023,Revenue,03.GROCERIES & PROVISIONS
31-Oct-2017,7004158,480.00,CHICKEN JOES LTD T/A LOVE JOES,375810,Commissioning & Investment,Children's & Education Services,103,Supplies and Services,504,Equipment,5023,Revenue,03.GROCERIES & PROVISIONS
31-Oct-2017,7004158,47.36,CHICKEN JOES LTD T/A LOVE JOES,375810,Commissioning & Investment,Children's & Education Services,103,Supplies and Services,504,Equipment,5023,Revenue,03.GROCERIES & PROVISIONS
31-Oct-2017,7004158,11.84,CHICKEN JOES LTD T/A LOVE JOES,375810,Commissioning & Investment,Children's & Education Services,103,Supplies and Services,504,Equipment,5023,Revenue,03.GROCERIES & PROVISIONS
31-Oct-2017,7004158,23.68,CHICKEN JOES LTD T/A LOVE JOES,375810,Commissioning & Investment,Children's & Education Services,103,Supplies and Services,504,Equipment,5023,Revenue,03.GROCERIES & PROVISIONS
31-Oct-2017,7004158,28.34,CHICKEN JOES LTD T/A LOVE JOES,375810,Commissioning & Investment,Children's & Education Services,103,Supplies and Services,504,Equipment,5023,Revenue,03.GROCERIES & PROVISIONS
31-Oct-2017,7004158,2.89,CHICKEN JOES LTD T/A LOVE JOES,375810,Commissioning & Investment,Children's & Education Services,103,Supplies and Services,504,Equipment,5023,Revenue,03.GROCERIES & PROVISIONS
31-Oct-2017,7004158,18.63,CHICKEN JOES LTD T/A LOVE JOES,375810,Commissioning & Investment,Children's & Education Services,103,Supplies and Services,504,Equipment,5023,Revenue,03.GROCERIES & PROVISIONS
31-Oct-2017,7004158,8.32,CHICKEN JOES LTD T/A LOVE JOES,375810,Commissioning & Investment,Children's & Education Services,103,Supplies and Services,504,Equipment,5023,Revenue,03.GROCERIES & PROVISIONS
31-Oct-2017,7004158,4.80,CHICKEN JOES LTD T/A LOVE JOES,375810,Commissioning & Investment,Children's & Education Services,103,Supplies and Services,504,Equipment,5023,Revenue,03.GROCERIES & PROVISIONS
31-Oct-2017,7004158,11.84,CHICKEN JOES LTD T/A LOVE JOES,375810,Commissioning & Investment,Children's & Education Services,103,Supplies and Services,504,Equipment,5023,Revenue,03.GROCERIES & PROVISIONS
31-Oct-2017,7004158,120.00,CHICKEN JOES LTD T/A LOVE JOES,375810,Commissioning & Investment,Children's & Education Services,103,Supplies and Services,504,Equipment,5023,Revenue,03.GROCERIES & PROVISIONS
31-Oct-2017,7004158,47.36,CHICKEN JOES LTD T/A LOVE JOES,375810,Commissioning & Investment,Children's & Education Services,103,Supplies and Services,504,Equipment,5023,Revenue,03.GROCERIES & PROVISIONS
31-Oct-2017,7004158,8.32,CHICKEN JOES LTD T/A LOVE JOES,375810,Commissioning & Investment,Children's & Education Services,103,Supplies and Services,504,Equipment,5023,Revenue,03.GROCERIES & PROVISIONS
31-Oct-2017,7004158,12.42,CHICKEN JOES LTD T/A LOVE JOES,375810,Commissioning & Investment,Children's & Education Services,103,Supplies and Services,504,Equipment,5023,Revenue,03.GROCERIES & PROVISIONS
31-Oct-2017,7004158,7.56,CHICKEN JOES LTD T/A LOVE JOES,375810,Commissioning & Investment,Children's & Education Services,103,Supplies and Services,504,Equipment,5023,Revenue,03.GROCERIES & PROVISIONS
31-Oct-2017,7004158,11.41,CHICKEN JOES LTD T/A LOVE JOES,375810,Commissioning & Investment,Children's & Education Services,103,Supplies and Services,504,Equipment,5023,Revenue,03.GROCERIES & PROVISIONS
31-Oct-2017,7004158,20.80,CHICKEN JOES LTD T/A LOVE JOES,375810,Commissioning & Investment,Children's & Education Services,103,Supplies and Services,504,Equipment,5023,Revenue,03.GROCERIES & PROVISIONS
31-Oct-2017,7004158,2.08,CHICKEN JOES LTD T/A LOVE JOES,375810,Commissioning & Investment,Children's & Education Services,103,Supplies and Services,504,Equipment,5023,Revenue,03.GROCERIES & PROVISIONS
31-Oct-2017,7004158,28.34,CHICKEN JOES LTD T/A LOVE JOES,375810,Commissioning & Investment,Children's & Education Services,103,Supplies and Services,504,Equipment,5023,Revenue,03.GROCERIES & PROVISIONS
31-Oct-2017,7004158,19.12,CHICKEN JOES LTD T/A LOVE JOES,375810,Commissioning & Investment,Children's & Education Services,103,Supplies and Services,504,Equipment,5023,Revenue,03.GROCERIES & PROVISIONS
31-Oct-2017,7004158,28.00,CHICKEN JOES LTD T/A LOVE JOES,375810,Commissioning & Investment,Children's & Education Services,103,Supplies and Services,504,Equipment,5023,Revenue,03.GROCERIES & PROVISIONS
31-Oct-2017,7004158,9.19,CHICKEN JOES LTD T/A LOVE JOES,375810,Commissioning & Investment,Children's & Education Services,103,Supplies and Services,504,Equipment,5023,Revenue,03.GROCERIES & PROVISIONS
31-Oct-2017,7004158,11.84,CHICKEN JOES LTD T/A LOVE JOES,375810,Commissioning & Investment,Children's & Education Services,103,Supplies and Services,504,Equipment,5023,Revenue,03.GROCERIES & PROVISIONS
31-Oct-2017,7004158,8.32,CHICKEN JOES LTD T/A LOVE JOES,375810,Commissioning & Investment,Children's & Education Services,103,Supplies and Services,504,Equipment,5023,Revenue,03.GROCERIES & PROVISIONS
31-Oct-2017,7004158,240.00,CHICKEN JOES LTD T/A LOVE JOES,375810,Commissioning & Investment,Children's & Education Services,103,Supplies and Services,504,Equipment,5023,Revenue,03.GROCERIES & PROVISIONS
31-Oct-2017,7004158,120.00,CHICKEN JOES LTD T/A LOVE JOES,375810,Commissioning & Investment,Children's & Education Services,103,Supplies and Services,504,Equipment,5023,Revenue,03.GROCERIES & PROVISIONS
31-Oct-2017,7004158,12.42,CHICKEN JOES LTD T/A LOVE JOES,375810,Commissioning & Investment,Children's & Education Services,103,Supplies and Services,504,Equipment,5023,Revenue,03.GROCERIES & PROVISIONS
31-Oct-2017,7004158,13.62,CHICKEN JOES LTD T/A LOVE JOES,375810,Commissioning & Investment,Children's & Education Services,103,Supplies and Services,504,Equipment,5023,Revenue,03.GROCERIES & PROVISIONS
31-Oct-2017,7004158,20.80,CHICKEN JOES LTD T/A LOVE JOES,375810,Commissioning & Investment,Children's & Education Services,103,Supplies and Services,504,Equipment,5023,Revenue,03.GROCERIES & PROVISIONS
31-Oct-2017,7004158,28.34,CHICKEN JOES LTD T/A LOVE JOES,375810,Commissioning & Investment,Children's & Education Services,103,Supplies and Services,504,Equipment,5023,Revenue,03.GROCERIES & PROVISIONS
31-Oct-2017,7004158,11.84,CHICKEN JOES LTD T/A LOVE JOES,375810,Commissioning & Investment,Children's & Education Services,103,Supplies and Services,504,Equipment,5023,Revenue,03.GROCERIES & PROVISIONS
31-Oct-2017,7004158,10.56,CHICKEN JOES LTD T/A LOVE JOES,375810,Commissioning & Investment,Children's & Education Services,103,Supplies and Services,504,Equipment,5023,Revenue,03.GROCERIES & PROVISIONS
31-Oct-2017,7004158,27.57,CHICKEN JOES LTD T/A LOVE JOES,375810,Commissioning & Investment,Children's & Education Services,103,Supplies and Services,504,Equipment,5023,Revenue,03.GROCERIES & PROVISIONS
31-Oct-2017,7004158,36.74,CHICKEN JOES LTD T/A LOVE JOES,375810,Commissioning & Investment,Children's & Education Services,103,Supplies and Services,504,Equipment,5023,Revenue,03.GROCERIES & PROVISIONS
31-Oct-2017,7004158,48.00,CHICKEN JOES LTD T/A LOVE JOES,375810,Commissioning & Investment,Children's & Education Services,103,Supplies and Services,504,Equipment,5023,Revenue,03.GROCERIES & PROVISIONS
31-Oct-2017,7004158,11.84,CHICKEN JOES LTD T/A LOVE JOES,375810,Commissioning & Investment,Children's & Education Services,103,Supplies and Services,504,Equipment,5023,Revenue,03.GROCERIES & PROVISIONS
31-Oct-2017,7004158,14.74,CHICKEN JOES LTD T/A LOVE JOES,375810,Commissioning & Investment,Children's & Education Services,103,Supplies and Services,504,Equipment,5023,Revenue,03.GROCERIES & PROVISIONS
31-Oct-2017,7004158,24.96,CHICKEN JOES LTD T/A LOVE JOES,375810,Commissioning & Investment,Children's & Education Services,103,Supplies and Services,504,Equipment,5023,Revenue,03.GROCERIES & PROVISIONS
31-Oct-2017,7004158,60.00,CHICKEN JOES LTD T/A LOVE JOES,375810,Commissioning & Investment,Children's & Education Services,103,Supplies and Services,504,Equipment,5023,Revenue,03.GROCERIES & PROVISIONS
31-Oct-2017,7004158,180.00,CHICKEN JOES LTD T/A LOVE JOES,375810,Commissioning & Investment,Children's & Education Services,103,Supplies and Services,504,Equipment,5023,Revenue,03.GROCERIES & PROVISIONS
31-Oct-2017,7004158,15.00,CHICKEN JOES LTD T/A LOVE JOES,375810,Commissioning & Investment,Children's & Education Services,103,Supplies and Services,504,Equipment,5023,Revenue,03.GROCERIES & PROVISIONS
31-Oct-2017,7004158,-18.37,CHICKEN JOES LTD T/A LOVE JOES,375810,Commissioning & Investment,Children's & Education Services,103,Supplies and Services,504,Equipment,5023,Revenue,03.GROCERIES & PROVISIONS
31-Oct-2017,7004158,54.50,CHICKEN JOES LTD T/A LOVE JOES,375810,Commissioning & Investment,Children's & Education Services,103,Supplies and Services,504,Equipment,5023,Revenue,03.GROCERIES & PROVISIONS
31-Oct-2017,7004158,35.52,CHICKEN JOES LTD T/A LOVE JOES,375810,Commissioning & Investment,Children's & Education Services,103,Supplies and Services,504,Equipment,5023,Revenue,03.GROCERIES & PROVISIONS
31-Oct-2017,7004158,9.60,CHICKEN JOES LTD T/A LOVE JOES,375810,Commissioning & Investment,Children's & Education Services,103,Supplies and Services,504,Equipment,5023,Revenue,03.GROCERIES & PROVISIONS
31-Oct-2017,7004158,8.94,CHICKEN JOES LTD T/A LOVE JOES,375810,Commissioning & Investment,Children's & Education Services,103,Supplies and Services,504,Equipment,5023,Revenue,03.GROCERIES & PROVISIONS
31-Oct-2017,7004158,2.08,CHICKEN JOES LTD T/A LOVE JOES,375810,Commissioning & Investment,Children's & Education Services,103,Supplies and Services,504,Equipment,5023,Revenue,03.GROCERIES & PROVISIONS
31-Oct-2017,7004158,19.00,CHICKEN JOES LTD T/A LOVE JOES,375810,Commissioning & Investment,Children's & Education Services,103,Supplies and Services,504,Equipment,5023,Revenue,03.GROCERIES & PROVISIONS
31-Oct-2017,7004158,42.00,CHICKEN JOES LTD T/A LOVE JOES,375810,Commissioning & Investment,Children's & Education Services,103,Supplies and Services,504,Equipment,5023,Revenue,03.GROCERIES & PROVISIONS
31-Oct-2017,7004158,8.32,CHICKEN JOES LTD T/A LOVE JOES,375810,Commissioning & Investment,Children's & Education Services,103,Supplies and Services,504,Equipment,5023,Revenue,03.GROCERIES & PROVISIONS
31-Oct-2017,7004158,41.60,CHICKEN JOES LTD T/A LOVE JOES,375810,Commissioning & Investment,Children's & Education Services,103,Supplies and Services,504,Equipment,5023,Revenue,03.GROCERIES & PROVISIONS
31-Oct-2017,7004158,12.42,CHICKEN JOES LTD T/A LOVE JOES,375810,Commissioning & Investment,Children's & Education Services,103,Supplies and Services,504,Equipment,5023,Revenue,03.GROCERIES & PROVISIONS
31-Oct-2017,7004158,2.08,CHICKEN JOES LTD T/A LOVE JOES,375810,Commissioning & Investment,Children's & Education Services,103,Supplies and Services,504,Equipment,5023,Revenue,03.GROCERIES & PROVISIONS
31-Oct-2017,7004158,12.42,CHICKEN JOES LTD T/A LOVE JOES,375810,Commissioning & Investment,Children's & Education Services,103,Supplies and Services,504,Equipment,5023,Revenue,03.GROCERIES & PROVISIONS
31-Oct-2017,7004158,11.84,CHICKEN JOES LTD T/A LOVE JOES,375810,Commissioning & Investment,Children's & Education Services,103,Supplies and Services,504,Equipment,5023,Revenue,03.GROCERIES & PROVISIONS
31-Oct-2017,7004158,480.00,CHICKEN JOES LTD T/A LOVE JOES,375810,Commissioning & Investment,Children's & Education Services,103,Supplies and Services,504,Equipment,5023,Revenue,03.GROCERIES & PROVISIONS
31-Oct-2017,7004158,8.40,CHICKEN JOES LTD T/A LOVE JOES,375810,Commissioning & Investment,Children's & Education Services,103,Supplies and Services,504,Equipment,5023,Revenue,03.GROCERIES & PROVISIONS
31-Oct-2017,7004158,72.00,CHICKEN JOES LTD T/A LOVE JOES,375810,Commissioning & Investment,Children's & Education Services,103,Supplies and Services,504,Equipment,5023,Revenue,03.GROCERIES & PROVISIONS
31-Oct-2017,7004158,35.52,CHICKEN JOES LTD T/A LOVE JOES,375810,Commissioning & Investment,Children's & Education Services,103,Supplies and Services,504,Equipment,5023,Revenue,03.GROCERIES & PROVISIONS
31-Oct-2017,7004158,20.80,CHICKEN JOES LTD T/A LOVE JOES,375810,Commissioning & Investment,Children's & Education Services,103,Supplies and Services,504,Equipment,5023,Revenue,03.GROCERIES & PROVISIONS
31-Oct-2017,7004158,2.08,CHICKEN JOES LTD T/A LOVE JOES,375810,Commissioning & Investment,Children's & Education Services,103,Supplies and Services,504,Equipment,5023,Revenue,03.GROCERIES & PROVISIONS
31-Oct-2017,7004158,11.84,CHICKEN JOES LTD T/A LOVE JOES,375810,Commissioning & Investment,Children's & Education Services,103,Supplies and Services,504,Equipment,5023,Revenue,03.GROCERIES & PROVISIONS
31-Oct-2017,7004158,60.00,CHICKEN JOES LTD T/A LOVE JOES,375810,Commissioning & Investment,Children's & Education Services,103,Supplies and Services,504,Equipment,5023,Revenue,03.GROCERIES & PROVISIONS
31-Oct-2017,7004158,2.08,CHICKEN JOES LTD T/A LOVE JOES,375810,Commissioning & Investment,Children's & Education Services,103,Supplies and Services,504,Equipment,5023,Revenue,03.GROCERIES & PROVISIONS
31-Oct-2017,7004158,55.11,CHICKEN JOES LTD T/A LOVE JOES,375810,Commissioning & Investment,Children's & Education Services,103,Supplies and Services,504,Equipment,5023,Revenue,03.GROCERIES & PROVISIONS
31-Oct-2017,7004158,8.32,CHICKEN JOES LTD T/A LOVE JOES,375810,Commissioning & Investment,Children's & Education Services,103,Supplies and Services,504,Equipment,5023,Revenue,03.GROCERIES & PROVISIONS
31-Oct-2017,7004158,12.42,CHICKEN JOES LTD T/A LOVE JOES,375810,Commissioning & Investment,Children's & Education Services,103,Supplies and Services,504,Equipment,5023,Revenue,03.GROCERIES & PROVISIONS
31-Oct-2017,7004158,9.19,CHICKEN JOES LTD T/A LOVE JOES,375810,Commissioning & Investment,Children's & Education Services,103,Supplies and Services,504,Equipment,5023,Revenue,03.GROCERIES & PROVISIONS
31-Oct-2017,7004158,11.84,CHICKEN JOES LTD T/A LOVE JOES,375810,Commissioning & Investment,Children's & Education Services,103,Supplies and Services,504,Equipment,5023,Revenue,03.GROCERIES & PROVISIONS
31-Oct-2017,7004158,11.84,CHICKEN JOES LTD T/A LOVE JOES,375810,Commissioning & Investment,Children's & Education Services,103,Supplies and Services,504,Equipment,5023,Revenue,03.GROCERIES & PROVISIONS
31-Oct-2017,7004158,47.36,CHICKEN JOES LTD T/A LOVE JOES,375810,Commissioning & Investment,Children's & Education Services,103,Supplies and Services,504,Equipment,5023,Revenue,03.GROCERIES & PROVISIONS
31-Oct-2017,7004158,36.74,CHICKEN JOES LTD T/A LOVE JOES,375810,Commissioning & Investment,Children's & Education Services,103,Supplies and Services,504,Equipment,5023,Revenue,03.GROCERIES & PROVISIONS
31-Oct-2017,7004158,15.12,CHICKEN JOES LTD T/A LOVE JOES,375810,Commissioning & Investment,Children's & Education Services,103,Supplies and Services,504,Equipment,5023,Revenue,03.GROCERIES & PROVISIONS
31-Oct-2017,7004159,39.58,CHARNLEYS LOCKSMITHS,356745,"Environment, Housing & Leisure",Cultural & Related Services,104,Supplies and Services,504,Equipment,5023,Revenue,02.BUILDING SERVICES
31-Oct-2017,7004160,30.68,PASTA KING (UK) LIMITED,366311,Commissioning & Investment,Children's & Education Services,103,Supplies and Services,504,Equipment,5023,Revenue,03.GROCERIES & PROVISIONS
31-Oct-2017,7004160,30.68,PASTA KING (UK) LIMITED,366311,Commissioning & Investment,Children's & Education Services,103,Supplies and Services,504,Equipment,5023,Revenue,03.GROCERIES & PROVISIONS
31-Oct-2017,7004160,29.50,PASTA KING (UK) LIMITED,366311,Commissioning & Investment,Children's & Education Services,103,Supplies and Services,504,Equipment,5023,Revenue,03.GROCERIES & PROVISIONS
31-Oct-2017,7004160,30.68,PASTA KING (UK) LIMITED,366311,Commissioning & Investment,Children's & Education Services,103,Supplies and Services,504,Equipment,5023,Revenue,03.GROCERIES & PROVISIONS
31-Oct-2017,7004160,49.50,PASTA KING (UK) LIMITED,366311,Commissioning & Investment,Children's & Education Services,103,Supplies and Services,504,Equipment,5023,Revenue,03.GROCERIES & PROVISIONS
31-Oct-2017,7004160,108.00,PASTA KING (UK) LIMITED,366311,Commissioning & Investment,Children's & Education Services,103,Supplies and Services,504,Equipment,5023,Revenue,03.GROCERIES & PROVISIONS
31-Oct-2017,7004160,30.68,PASTA KING (UK) LIMITED,366311,Commissioning & Investment,Children's & Education Services,103,Supplies and Services,504,Equipment,5023,Revenue,03.GROCERIES & PROVISIONS
31-Oct-2017,7004160,29.50,PASTA KING (UK) LIMITED,366311,Commissioning & Investment,Children's & Education Services,103,Supplies and Services,504,Equipment,5023,Revenue,03.GROCERIES & PROVISIONS
31-Oct-2017,7004160,29.50,PASTA KING (UK) LIMITED,366311,Commissioning & Investment,Children's & Education Services,103,Supplies and Services,504,Equipment,5023,Revenue,03.GROCERIES & PROVISIONS
31-Oct-2017,7004160,30.68,PASTA KING (UK) LIMITED,366311,Commissioning & Investment,Children's & Education Services,103,Supplies and Services,504,Equipment,5023,Revenue,03.GROCERIES & PROVISIONS
31-Oct-2017,7004160,29.50,PASTA KING (UK) LIMITED,366311,Commissioning & Investment,Children's & Education Services,103,Supplies and Services,504,Equipment,5023,Revenue,03.GROCERIES & PROVISIONS
31-Oct-2017,7004160,24.75,PASTA KING (UK) LIMITED,366311,Commissioning & Investment,Children's & Education Services,103,Supplies and Services,504,Equipment,5023,Revenue,03.GROCERIES & PROVISIONS
31-Oct-2017,7004160,30.68,PASTA KING (UK) LIMITED,366311,Commissioning & Investment,Children's & Education Services,103,Supplies and Services,504,Equipment,5023,Revenue,03.GROCERIES & PROVISIONS
31-Oct-2017,7004160,29.50,PASTA KING (UK) LIMITED,366311,Commissioning & Investment,Children's & Education Services,103,Supplies and Services,504,Equipment,5023,Revenue,03.GROCERIES & PROVISIONS
31-Oct-2017,7004160,61.36,PASTA KING (UK) LIMITED,366311,Commissioning & Investment,Children's & Education Services,103,Supplies and Services,504,Equipment,5023,Revenue,03.GROCERIES & PROVISIONS
31-Oct-2017,7004160,30.68,PASTA KING (UK) LIMITED,366311,Commissioning & Investment,Children's & Education Services,103,Supplies and Services,504,Equipment,5023,Revenue,03.GROCERIES & PROVISIONS
31-Oct-2017,7004160,30.68,PASTA KING (UK) LIMITED,366311,Commissioning & Investment,Children's & Education Services,103,Supplies and Services,504,Equipment,5023,Revenue,03.GROCERIES & PROVISIONS
31-Oct-2017,7004160,50.00,PASTA KING (UK) LIMITED,366311,Commissioning & Investment,Children's & Education Services,103,Supplies and Services,504,Equipment,5023,Revenue,03.GROCERIES & PROVISIONS
31-Oct-2017,7004160,27.00,PASTA KING (UK) LIMITED,366311,Commissioning & Investment,Children's & Education Services,103,Supplies and Services,504,Equipment,5023,Revenue,03.GROCERIES & PROVISIONS
31-Oct-2017,7004160,29.50,PASTA KING (UK) LIMITED,366311,Commissioning & Investment,Children's & Education Services,103,Supplies and Services,504,Equipment,5023,Revenue,03.GROCERIES & PROVISIONS
31-Oct-2017,7004160,48.00,PASTA KING (UK) LIMITED,366311,Commissioning & Investment,Children's & Education Services,103,Supplies and Services,504,Equipment,5023,Revenue,03.GROCERIES & PROVISIONS
31-Oct-2017,7004160,30.68,PASTA KING (UK) LIMITED,366311,Commissioning & Investment,Children's & Education Services,103,Supplies and Services,504,Equipment,5023,Revenue,03.GROCERIES & PROVISIONS
31-Oct-2017,7004160,105.00,PASTA KING (UK) LIMITED,366311,Commissioning & Investment,Children's & Education Services,103,Supplies and Services,504,Equipment,5023,Revenue,03.GROCERIES & PROVISIONS
31-Oct-2017,7004160,29.50,PASTA KING (UK) LIMITED,366311,Commissioning & Investment,Children's & Education Services,103,Supplies and Services,504,Equipment,5023,Revenue,03.GROCERIES & PROVISIONS
31-Oct-2017,7004160,29.50,PASTA KING (UK) LIMITED,366311,Commissioning & Investment,Children's & Education Services,103,Supplies and Services,504,Equipment,5023,Revenue,03.GROCERIES & PROVISIONS
31-Oct-2017,7004160,29.50,PASTA KING (UK) LIMITED,366311,Commissioning & Investment,Children's & Education Services,103,Supplies and Services,504,Equipment,5023,Revenue,03.GROCERIES & PROVISIONS
31-Oct-2017,7004160,54.00,PASTA KING (UK) LIMITED,366311,Commissioning & Investment,Children's & Education Services,103,Supplies and Services,504,Equipment,5023,Revenue,03.GROCERIES & PROVISIONS
31-Oct-2017,7004160,30.68,PASTA KING (UK) LIMITED,366311,Commissioning & Investment,Children's & Education Services,103,Supplies and Services,504,Equipment,5023,Revenue,03.GROCERIES & PROVISIONS
31-Oct-2017,7004160,30.68,PASTA KING (UK) LIMITED,366311,Commissioning & Investment,Children's & Education Services,103,Supplies and Services,504,Equipment,5023,Revenue,03.GROCERIES & PROVISIONS
31-Oct-2017,7004160,49.50,PASTA KING (UK) LIMITED,366311,Commissioning & Investment,Children's & Education Services,103,Supplies and Services,504,Equipment,5023,Revenue,03.GROCERIES & PROVISIONS
31-Oct-2017,7004160,30.68,PASTA KING (UK) LIMITED,366311,Commissioning & Investment,Children's & Education Services,103,Supplies and Services,504,Equipment,5023,Revenue,03.GROCERIES & PROVISIONS
31-Oct-2017,7004160,29.50,PASTA KING (UK) LIMITED,366311,Commissioning & Investment,Children's & Education Services,103,Supplies and Services,504,Equipment,5023,Revenue,03.GROCERIES & PROVISIONS
31-Oct-2017,7004160,28.08,PASTA KING (UK) LIMITED,366311,Commissioning & Investment,Children's & Education Services,103,Supplies and Services,504,Equipment,5023,Revenue,03.GROCERIES & PROVISIONS
31-Oct-2017,7004160,30.68,PASTA KING (UK) LIMITED,366311,Commissioning & Investment,Children's & Education Services,103,Supplies and Services,504,Equipment,5023,Revenue,03.GROCERIES & PROVISIONS
31-Oct-2017,7004160,61.36,PASTA KING (UK) LIMITED,366311,Commissioning & Investment,Children's & Education Services,103,Supplies and Services,504,Equipment,5023,Revenue,03.GROCERIES & PROVISIONS
31-Oct-2017,7004160,30.68,PASTA KING (UK) LIMITED,366311,Commissioning & Investment,Children's & Education Services,103,Supplies and Services,504,Equipment,5023,Revenue,03.GROCERIES & PROVISIONS
31-Oct-2017,7004160,28.08,PASTA KING (UK) LIMITED,366311,Commissioning & Investment,Children's & Education Services,103,Supplies and Services,504,Equipment,5023,Revenue,03.GROCERIES & PROVISIONS
31-Oct-2017,7004160,29.50,PASTA KING (UK) LIMITED,366311,Commissioning & Investment,Children's & Education Services,103,Supplies and Services,504,Equipment,5023,Revenue,03.GROCERIES & PROVISIONS
31-Oct-2017,7004160,29.12,PASTA KING (UK) LIMITED,366311,Commissioning & Investment,Children's & Education Services,103,Supplies and Services,504,Equipment,5023,Revenue,03.GROCERIES & PROVISIONS
31-Oct-2017,7004160,27.00,PASTA KING (UK) LIMITED,366311,Commissioning & Investment,Children's & Education Services,103,Supplies and Services,504,Equipment,5023,Revenue,03.GROCERIES & PROVISIONS
31-Oct-2017,7004160,30.68,PASTA KING (UK) LIMITED,366311,Commissioning & Investment,Children's & Education Services,103,Supplies and Services,504,Equipment,5023,Revenue,03.GROCERIES & PROVISIONS
31-Oct-2017,7004160,29.96,PASTA KING (UK) LIMITED,366311,Commissioning & Investment,Children's & Education Services,103,Supplies and Services,504,Equipment,5023,Revenue,03.GROCERIES & PROVISIONS
31-Oct-2017,7004160,30.68,PASTA KING (UK) LIMITED,366311,Commissioning & Investment,Children's & Education Services,103,Supplies and Services,504,Equipment,5023,Revenue,03.GROCERIES & PROVISIONS
31-Oct-2017,7004160,61.36,PASTA KING (UK) LIMITED,366311,Commissioning & Investment,Children's & Education Services,103,Supplies and Services,504,Equipment,5023,Revenue,03.GROCERIES & PROVISIONS
31-Oct-2017,7004160,29.50,PASTA KING (UK) LIMITED,366311,Commissioning & Investment,Children's & Education Services,103,Supplies and Services,504,Equipment,5023,Revenue,03.GROCERIES & PROVISIONS
31-Oct-2017,7004160,31.12,PASTA KING (UK) LIMITED,366311,Commissioning & Investment,Children's & Education Services,103,Supplies and Services,504,Equipment,5023,Revenue,03.GROCERIES & PROVISIONS
31-Oct-2017,7004160,30.68,PASTA KING (UK) LIMITED,366311,Commissioning & Investment,Children's & Education Services,103,Supplies and Services,504,Equipment,5023,Revenue,03.GROCERIES & PROVISIONS
31-Oct-2017,7004160,30.68,PASTA KING (UK) LIMITED,366311,Commissioning & Investment,Children's & Education Services,103,Supplies and Services,504,Equipment,5023,Revenue,03.GROCERIES & PROVISIONS
31-Oct-2017,7004160,30.68,PASTA KING (UK) LIMITED,366311,Commissioning & Investment,Children's & Education Services,103,Supplies and Services,504,Equipment,5023,Revenue,03.GROCERIES & PROVISIONS
31-Oct-2017,7004160,30.00,PASTA KING (UK) LIMITED,366311,Commissioning & Investment,Children's & Education Services,103,Supplies and Services,504,Equipment,5023,Revenue,03.GROCERIES & PROVISIONS
31-Oct-2017,7004160,30.68,PASTA KING (UK) LIMITED,366311,Commissioning & Investment,Children's & Education Services,103,Supplies and Services,504,Equipment,5023,Revenue,03.GROCERIES & PROVISIONS
31-Oct-2017,7004160,60.00,PASTA KING (UK) LIMITED,366311,Commissioning & Investment,Children's & Education Services,103,Supplies and Services,504,Equipment,5023,Revenue,03.GROCERIES & PROVISIONS
31-Oct-2017,7004160,90.00,PASTA KING (UK) LIMITED,366311,Commissioning & Investment,Children's & Education Services,103,Supplies and Services,504,Equipment,5023,Revenue,03.GROCERIES & PROVISIONS
31-Oct-2017,7004160,30.68,PASTA KING (UK) LIMITED,366311,Commissioning & Investment,Children's & Education Services,103,Supplies and Services,504,Equipment,5023,Revenue,03.GROCERIES & PROVISIONS
31-Oct-2017,7004160,29.50,PASTA KING (UK) LIMITED,366311,Commissioning & Investment,Children's & Education Services,103,Supplies and Services,504,Equipment,5023,Revenue,03.GROCERIES & PROVISIONS
31-Oct-2017,7004160,29.50,PASTA KING (UK) LIMITED,366311,Commissioning & Investment,Children's & Education Services,103,Supplies and Services,504,Equipment,5023,Revenue,03.GROCERIES & PROVISIONS
31-Oct-2017,7004160,27.00,PASTA KING (UK) LIMITED,366311,Commissioning & Investment,Children's & Education Services,103,Supplies and Services,504,Equipment,5023,Revenue,03.GROCERIES & PROVISIONS
31-Oct-2017,7004160,61.36,PASTA KING (UK) LIMITED,366311,Commissioning & Investment,Children's & Education Services,103,Supplies and Services,504,Equipment,5023,Revenue,03.GROCERIES & PROVISIONS
31-Oct-2017,7004160,28.00,PASTA KING (UK) LIMITED,366311,Commissioning & Investment,Children's & Education Services,103,Supplies and Services,504,Equipment,5023,Revenue,03.GROCERIES & PROVISIONS
31-Oct-2017,7004160,30.68,PASTA KING (UK) LIMITED,366311,Commissioning & Investment,Children's & Education Services,103,Supplies and Services,504,Equipment,5023,Revenue,03.GROCERIES & PROVISIONS
31-Oct-2017,7004160,29.50,PASTA KING (UK) LIMITED,366311,Commissioning & Investment,Children's & Education Services,103,Supplies and Services,504,Equipment,5023,Revenue,03.GROCERIES & PROVISIONS
31-Oct-2017,7004160,21.00,PASTA KING (UK) LIMITED,366311,Commissioning & Investment,Children's & Education Services,103,Supplies and Services,504,Equipment,5023,Revenue,03.GROCERIES & PROVISIONS
31-Oct-2017,7004160,29.50,PASTA KING (UK) LIMITED,366311,Commissioning & Investment,Children's & Education Services,103,Supplies and Services,504,Equipment,5023,Revenue,03.GROCERIES & PROVISIONS
31-Oct-2017,7004160,59.00,PASTA KING (UK) LIMITED,366311,Commissioning & Investment,Children's & Education Services,103,Supplies and Services,504,Equipment,5023,Revenue,03.GROCERIES & PROVISIONS
31-Oct-2017,7004160,27.00,PASTA KING (UK) LIMITED,366311,Commissioning & Investment,Children's & Education Services,103,Supplies and Services,504,Equipment,5023,Revenue,03.GROCERIES & PROVISIONS
31-Oct-2017,7004160,15.00,PASTA KING (UK) LIMITED,366311,Commissioning & Investment,Children's & Education Services,103,Supplies and Services,504,Equipment,5023,Revenue,03.GROCERIES & PROVISIONS
31-Oct-2017,7004160,30.68,PASTA KING (UK) LIMITED,366311,Commissioning & Investment,Children's & Education Services,103,Supplies and Services,504,Equipment,5023,Revenue,03.GROCERIES & PROVISIONS
31-Oct-2017,7004160,75.00,PASTA KING (UK) LIMITED,366311,Commissioning & Investment,Children's & Education Services,103,Supplies and Services,504,Equipment,5023,Revenue,03.GROCERIES & PROVISIONS
31-Oct-2017,7004160,30.00,PASTA KING (UK) LIMITED,366311,Commissioning & Investment,Children's & Education Services,103,Supplies and Services,504,Equipment,5023,Revenue,03.GROCERIES & PROVISIONS
31-Oct-2017,7004160,27.00,PASTA KING (UK) LIMITED,366311,Commissioning & Investment,Children's & Education Services,103,Supplies and Services,504,Equipment,5023,Revenue,03.GROCERIES & PROVISIONS
31-Oct-2017,7004160,60.00,PASTA KING (UK) LIMITED,366311,Commissioning & Investment,Children's & Education Services,103,Supplies and Services,504,Equipment,5023,Revenue,03.GROCERIES & PROVISIONS
31-Oct-2017,7004160,45.00,PASTA KING (UK) LIMITED,366311,Commissioning & Investment,Children's & Education Services,103,Supplies and Services,504,Equipment,5023,Revenue,03.GROCERIES & PROVISIONS
31-Oct-2017,7004160,210.00,PASTA KING (UK) LIMITED,366311,Commissioning & Investment,Children's & Education Services,103,Supplies and Services,504,Equipment,5023,Revenue,03.GROCERIES & PROVISIONS
31-Oct-2017,7004160,28.00,PASTA KING (UK) LIMITED,366311,Commissioning & Investment,Children's & Education Services,103,Supplies and Services,504,Equipment,5023,Revenue,03.GROCERIES & PROVISIONS
31-Oct-2017,7004160,30.68,PASTA KING (UK) LIMITED,366311,Commissioning & Investment,Children's & Education Services,103,Supplies and Services,504,Equipment,5023,Revenue,03.GROCERIES & PROVISIONS
31-Oct-2017,7004160,29.12,PASTA KING (UK) LIMITED,366311,Commissioning & Investment,Children's & Education Services,103,Supplies and Services,504,Equipment,5023,Revenue,03.GROCERIES & PROVISIONS
31-Oct-2017,7004160,28.08,PASTA KING (UK) LIMITED,366311,Commissioning & Investment,Children's & Education Services,103,Supplies and Services,504,Equipment,5023,Revenue,03.GROCERIES & PROVISIONS
31-Oct-2017,7004160,90.00,PASTA KING (UK) LIMITED,366311,Commissioning & Investment,Children's & Education Services,103,Supplies and Services,504,Equipment,5023,Revenue,03.GROCERIES & PROVISIONS
31-Oct-2017,7004160,28.08,PASTA KING (UK) LIMITED,366311,Commissioning & Investment,Children's & Education Services,103,Supplies and Services,504,Equipment,5023,Revenue,03.GROCERIES & PROVISIONS
31-Oct-2017,7004160,30.68,PASTA KING (UK) LIMITED,366311,Commissioning & Investment,Children's & Education Services,103,Supplies and Services,504,Equipment,5023,Revenue,03.GROCERIES & PROVISIONS
31-Oct-2017,7004160,118.00,PASTA KING (UK) LIMITED,366311,Commissioning & Investment,Children's & Education Services,103,Supplies and Services,504,Equipment,5023,Revenue,03.GROCERIES & PROVISIONS
31-Oct-2017,7004160,29.50,PASTA KING (UK) LIMITED,366311,Commissioning & Investment,Children's & Education Services,103,Supplies and Services,504,Equipment,5023,Revenue,03.GROCERIES & PROVISIONS
31-Oct-2017,7004160,29.50,PASTA KING (UK) LIMITED,366311,Commissioning & Investment,Children's & Education Services,103,Supplies and Services,504,Equipment,5023,Revenue,03.GROCERIES & PROVISIONS
31-Oct-2017,7004160,29.50,PASTA KING (UK) LIMITED,366311,Commissioning & Investment,Children's & Education Services,103,Supplies and Services,504,Equipment,5023,Revenue,03.GROCERIES & PROVISIONS
31-Oct-2017,7004160,29.50,PASTA KING (UK) LIMITED,366311,Commissioning & Investment,Children's & Education Services,103,Supplies and Services,504,Equipment,5023,Revenue,03.GROCERIES & PROVISIONS
31-Oct-2017,7004160,31.60,PASTA KING (UK) LIMITED,366311,Commissioning & Investment,Children's & Education Services,103,Supplies and Services,504,Equipment,5023,Revenue,03.GROCERIES & PROVISIONS
31-Oct-2017,7004160,29.12,PASTA KING (UK) LIMITED,366311,Commissioning & Investment,Children's & Education Services,103,Supplies and Services,504,Equipment,5023,Revenue,03.GROCERIES & PROVISIONS
31-Oct-2017,7004160,30.68,PASTA KING (UK) LIMITED,366311,Commissioning & Investment,Children's & Education Services,103,Supplies and Services,504,Equipment,5023,Revenue,03.GROCERIES & PROVISIONS
31-Oct-2017,7004160,30.68,PASTA KING (UK) LIMITED,366311,Commissioning & Investment,Children's & Education Services,103,Supplies and Services,504,Equipment,5023,Revenue,03.GROCERIES & PROVISIONS
31-Oct-2017,7004160,29.50,PASTA KING (UK) LIMITED,366311,Commissioning & Investment,Children's & Education Services,103,Supplies and Services,504,Equipment,5023,Revenue,03.GROCERIES & PROVISIONS
31-Oct-2017,7004160,29.50,PASTA KING (UK) LIMITED,366311,Commissioning & Investment,Children's & Education Services,103,Supplies and Services,504,Equipment,5023,Revenue,03.GROCERIES & PROVISIONS
31-Oct-2017,7004160,29.12,PASTA KING (UK) LIMITED,366311,Commissioning & Investment,Children's & Education Services,103,Supplies and Services,504,Equipment,5023,Revenue,03.GROCERIES & PROVISIONS
31-Oct-2017,7004160,30.68,PASTA KING (UK) LIMITED,366311,Commissioning & Investment,Children's & Education Services,103,Supplies and Services,504,Equipment,5023,Revenue,03.GROCERIES & PROVISIONS
31-Oct-2017,7004160,28.88,PASTA KING (UK) LIMITED,366311,Commissioning & Investment,Children's & Education Services,103,Supplies and Services,504,Equipment,5023,Revenue,03.GROCERIES & PROVISIONS
31-Oct-2017,7004160,30.68,PASTA KING (UK) LIMITED,366311,Commissioning & Investment,Children's & Education Services,103,Supplies and Services,504,Equipment,5023,Revenue,03.GROCERIES & PROVISIONS
31-Oct-2017,7004160,29.50,PASTA KING (UK) LIMITED,366311,Commissioning & Investment,Children's & Education Services,103,Supplies and Services,504,Equipment,5023,Revenue,03.GROCERIES & PROVISIONS
31-Oct-2017,7004160,49.50,PASTA KING (UK) LIMITED,366311,Commissioning & Investment,Children's & Education Services,103,Supplies and Services,504,Equipment,5023,Revenue,03.GROCERIES & PROVISIONS
31-Oct-2017,7004160,30.68,PASTA KING (UK) LIMITED,366311,Commissioning & Investment,Children's & Education Services,103,Supplies and Services,504,Equipment,5023,Revenue,03.GROCERIES & PROVISIONS
31-Oct-2017,7004160,30.68,PASTA KING (UK) LIMITED,366311,Commissioning & Investment,Children's & Education Services,103,Supplies and Services,504,Equipment,5023,Revenue,03.GROCERIES & PROVISIONS
31-Oct-2017,7004160,28.88,PASTA KING (UK) LIMITED,366311,Commissioning & Investment,Children's & Education Services,103,Supplies and Services,504,Equipment,5023,Revenue,03.GROCERIES & PROVISIONS
31-Oct-2017,7004160,60.00,PASTA KING (UK) LIMITED,366311,Commissioning & Investment,Children's & Education Services,103,Supplies and Services,504,Equipment,5023,Revenue,03.GROCERIES & PROVISIONS
31-Oct-2017,7004160,30.68,PASTA KING (UK) LIMITED,366311,Commissioning & Investment,Children's & Education Services,103,Supplies and Services,504,Equipment,5023,Revenue,03.GROCERIES & PROVISIONS
31-Oct-2017,7004160,29.50,PASTA KING (UK) LIMITED,366311,Commissioning & Investment,Children's & Education Services,103,Supplies and Services,504,Equipment,5023,Revenue,03.GROCERIES & PROVISIONS
31-Oct-2017,7004160,30.00,PASTA KING (UK) LIMITED,366311,Commissioning & Investment,Children's & Education Services,103,Supplies and Services,504,Equipment,5023,Revenue,03.GROCERIES & PROVISIONS
31-Oct-2017,7004160,59.00,PASTA KING (UK) LIMITED,366311,Commissioning & Investment,Children's & Education Services,103,Supplies and Services,504,Equipment,5023,Revenue,03.GROCERIES & PROVISIONS
31-Oct-2017,7004160,27.00,PASTA KING (UK) LIMITED,366311,Commissioning & Investment,Children's & Education Services,103,Supplies and Services,504,Equipment,5023,Revenue,03.GROCERIES & PROVISIONS
31-Oct-2017,7004160,29.50,PASTA KING (UK) LIMITED,366311,Commissioning & Investment,Children's & Education Services,103,Supplies and Services,504,Equipment,5023,Revenue,03.GROCERIES & PROVISIONS
31-Oct-2017,7004160,45.00,PASTA KING (UK) LIMITED,366311,Commissioning & Investment,Children's & Education Services,103,Supplies and Services,504,Equipment,5023,Revenue,03.GROCERIES & PROVISIONS
31-Oct-2017,7004160,29.50,PASTA KING (UK) LIMITED,366311,Commissioning & Investment,Children's & Education Services,103,Supplies and Services,504,Equipment,5023,Revenue,03.GROCERIES & PROVISIONS
31-Oct-2017,7004160,30.68,PASTA KING (UK) LIMITED,366311,Commissioning & Investment,Children's & Education Services,103,Supplies and Services,504,Equipment,5023,Revenue,03.GROCERIES & PROVISIONS
31-Oct-2017,7004160,30.68,PASTA KING (UK) LIMITED,366311,Commissioning & Investment,Children's & Education Services,103,Supplies and Services,504,Equipment,5023,Revenue,03.GROCERIES & PROVISIONS
31-Oct-2017,7004160,180.00,PASTA KING (UK) LIMITED,366311,Commissioning & Investment,Children's & Education Services,103,Supplies and Services,504,Equipment,5023,Revenue,03.GROCERIES & PROVISIONS
31-Oct-2017,7004160,30.68,PASTA KING (UK) LIMITED,366311,Commissioning & Investment,Children's & Education Services,103,Supplies and Services,504,Equipment,5023,Revenue,03.GROCERIES & PROVISIONS
31-Oct-2017,7004160,28.00,PASTA KING (UK) LIMITED,366311,Commissioning & Investment,Children's & Education Services,103,Supplies and Services,504,Equipment,5023,Revenue,03.GROCERIES & PROVISIONS
31-Oct-2017,7004160,30.68,PASTA KING (UK) LIMITED,366311,Commissioning & Investment,Children's & Education Services,103,Supplies and Services,504,Equipment,5023,Revenue,03.GROCERIES & PROVISIONS
31-Oct-2017,7004160,60.00,PASTA KING (UK) LIMITED,366311,Commissioning & Investment,Children's & Education Services,103,Supplies and Services,504,Equipment,5023,Revenue,03.GROCERIES & PROVISIONS
31-Oct-2017,7004160,59.00,PASTA KING (UK) LIMITED,366311,Commissioning & Investment,Children's & Education Services,103,Supplies and Services,504,Equipment,5023,Revenue,03.GROCERIES & PROVISIONS
31-Oct-2017,7004160,28.35,PASTA KING (UK) LIMITED,366311,Commissioning & Investment,Children's & Education Services,103,Supplies and Services,504,Equipment,5023,Revenue,03.GROCERIES & PROVISIONS
31-Oct-2017,7004160,30.68,PASTA KING (UK) LIMITED,366311,Commissioning & Investment,Children's & Education Services,103,Supplies and Services,504,Equipment,5023,Revenue,03.GROCERIES & PROVISIONS
31-Oct-2017,7004160,75.00,PASTA KING (UK) LIMITED,366311,Commissioning & Investment,Children's & Education Services,103,Supplies and Services,504,Equipment,5023,Revenue,03.GROCERIES & PROVISIONS
31-Oct-2017,7004160,28.08,PASTA KING (UK) LIMITED,366311,Commissioning & Investment,Children's & Education Services,103,Supplies and Services,504,Equipment,5023,Revenue,03.GROCERIES & PROVISIONS
31-Oct-2017,7004160,30.68,PASTA KING (UK) LIMITED,366311,Commissioning & Investment,Children's & Education Services,103,Supplies and Services,504,Equipment,5023,Revenue,03.GROCERIES & PROVISIONS
31-Oct-2017,7004160,29.50,PASTA KING (UK) LIMITED,366311,Commissioning & Investment,Children's & Education Services,103,Supplies and Services,504,Equipment,5023,Revenue,03.GROCERIES & PROVISIONS
31-Oct-2017,7004160,49.50,PASTA KING (UK) LIMITED,366311,Commissioning & Investment,Children's & Education Services,103,Supplies and Services,504,Equipment,5023,Revenue,03.GROCERIES & PROVISIONS
31-Oct-2017,7004160,31.60,PASTA KING (UK) LIMITED,366311,Commissioning & Investment,Children's & Education Services,103,Supplies and Services,504,Equipment,5023,Revenue,03.GROCERIES & PROVISIONS
31-Oct-2017,7004160,29.12,PASTA KING (UK) LIMITED,366311,Commissioning & Investment,Children's & Education Services,103,Supplies and Services,504,Equipment,5023,Revenue,03.GROCERIES & PROVISIONS
31-Oct-2017,7004160,28.00,PASTA KING (UK) LIMITED,366311,Commissioning & Investment,Children's & Education Services,103,Supplies and Services,504,Equipment,5023,Revenue,03.GROCERIES & PROVISIONS
31-Oct-2017,7004160,29.50,PASTA KING (UK) LIMITED,366311,Commissioning & Investment,Children's & Education Services,103,Supplies and Services,504,Equipment,5023,Revenue,03.GROCERIES & PROVISIONS
31-Oct-2017,7004160,30.00,PASTA KING (UK) LIMITED,366311,Commissioning & Investment,Children's & Education Services,103,Supplies and Services,504,Equipment,5023,Revenue,03.GROCERIES & PROVISIONS
31-Oct-2017,7004160,30.68,PASTA KING (UK) LIMITED,366311,Commissioning & Investment,Children's & Education Services,103,Supplies and Services,504,Equipment,5023,Revenue,03.GROCERIES & PROVISIONS
31-Oct-2017,7004160,60.00,PASTA KING (UK) LIMITED,366311,Commissioning & Investment,Children's & Education Services,103,Supplies and Services,504,Equipment,5023,Revenue,03.GROCERIES & PROVISIONS
31-Oct-2017,7004160,29.50,PASTA KING (UK) LIMITED,366311,Commissioning & Investment,Children's & Education Services,103,Supplies and Services,504,Equipment,5023,Revenue,03.GROCERIES & PROVISIONS
31-Oct-2017,7004160,30.68,PASTA KING (UK) LIMITED,366311,Commissioning & Investment,Children's & Education Services,103,Supplies and Services,504,Equipment,5023,Revenue,03.GROCERIES & PROVISIONS
31-Oct-2017,7004160,29.50,PASTA KING (UK) LIMITED,366311,Commissioning & Investment,Children's & Education Services,103,Supplies and Services,504,Equipment,5023,Revenue,03.GROCERIES & PROVISIONS
31-Oct-2017,7004160,29.50,PASTA KING (UK) LIMITED,366311,Commissioning & Investment,Children's & Education Services,103,Supplies and Services,504,Equipment,5023,Revenue,03.GROCERIES & PROVISIONS
31-Oct-2017,7004160,29.50,PASTA KING (UK) LIMITED,366311,Commissioning & Investment,Children's & Education Services,103,Supplies and Services,504,Equipment,5023,Revenue,03.GROCERIES & PROVISIONS
31-Oct-2017,7004160,30.68,PASTA KING (UK) LIMITED,366311,Commissioning & Investment,Children's & Education Services,103,Supplies and Services,504,Equipment,5023,Revenue,03.GROCERIES & PROVISIONS
31-Oct-2017,7004160,15.00,PASTA KING (UK) LIMITED,366311,Commissioning & Investment,Children's & Education Services,103,Supplies and Services,504,Equipment,5023,Revenue,03.GROCERIES & PROVISIONS
31-Oct-2017,7004160,30.68,PASTA KING (UK) LIMITED,366311,Commissioning & Investment,Children's & Education Services,103,Supplies and Services,504,Equipment,5023,Revenue,03.GROCERIES & PROVISIONS
31-Oct-2017,7004160,30.00,PASTA KING (UK) LIMITED,366311,Commissioning & Investment,Children's & Education Services,103,Supplies and Services,504,Equipment,5023,Revenue,03.GROCERIES & PROVISIONS
31-Oct-2017,7004160,48.00,PASTA KING (UK) LIMITED,366311,Commissioning & Investment,Children's & Education Services,103,Supplies and Services,504,Equipment,5023,Revenue,03.GROCERIES & PROVISIONS
31-Oct-2017,7004160,30.68,PASTA KING (UK) LIMITED,366311,Commissioning & Investment,Children's & Education Services,103,Supplies and Services,504,Equipment,5023,Revenue,03.GROCERIES & PROVISIONS
31-Oct-2017,7004160,60.00,PASTA KING (UK) LIMITED,366311,Commissioning & Investment,Children's & Education Services,103,Supplies and Services,504,Equipment,5023,Revenue,03.GROCERIES & PROVISIONS
31-Oct-2017,7004160,15.00,PASTA KING (UK) LIMITED,366311,Commissioning & Investment,Children's & Education Services,103,Supplies and Services,504,Equipment,5023,Revenue,03.GROCERIES & PROVISIONS
31-Oct-2017,7004160,42.00,PASTA KING (UK) LIMITED,366311,Commissioning & Investment,Children's & Education Services,103,Supplies and Services,504,Equipment,5023,Revenue,03.GROCERIES & PROVISIONS
31-Oct-2017,7004160,30.68,PASTA KING (UK) LIMITED,366311,Commissioning & Investment,Children's & Education Services,103,Supplies and Services,504,Equipment,5023,Revenue,03.GROCERIES & PROVISIONS
31-Oct-2017,7004160,27.00,PASTA KING (UK) LIMITED,366311,Commissioning & Investment,Children's & Education Services,103,Supplies and Services,504,Equipment,5023,Revenue,03.GROCERIES & PROVISIONS
31-Oct-2017,7004160,49.50,PASTA KING (UK) LIMITED,366311,Commissioning & Investment,Children's & Education Services,103,Supplies and Services,504,Equipment,5023,Revenue,03.GROCERIES & PROVISIONS
31-Oct-2017,7004160,30.68,PASTA KING (UK) LIMITED,366311,Commissioning & Investment,Children's & Education Services,103,Supplies and Services,504,Equipment,5023,Revenue,03.GROCERIES & PROVISIONS
31-Oct-2017,7004160,29.50,PASTA KING (UK) LIMITED,366311,Commissioning & Investment,Children's & Education Services,103,Supplies and Services,504,Equipment,5023,Revenue,03.GROCERIES & PROVISIONS
31-Oct-2017,7004160,30.68,PASTA KING (UK) LIMITED,366311,Commissioning & Investment,Children's & Education Services,103,Supplies and Services,504,Equipment,5023,Revenue,03.GROCERIES & PROVISIONS
31-Oct-2017,7004160,29.12,PASTA KING (UK) LIMITED,366311,Commissioning & Investment,Children's & Education Services,103,Supplies and Services,504,Equipment,5023,Revenue,03.GROCERIES & PROVISIONS
31-Oct-2017,7004160,29.50,PASTA KING (UK) LIMITED,366311,Commissioning & Investment,Children's & Education Services,103,Supplies and Services,504,Equipment,5023,Revenue,03.GROCERIES & PROVISIONS
31-Oct-2017,7004160,49.50,PASTA KING (UK) LIMITED,366311,Commissioning & Investment,Children's & Education Services,103,Supplies and Services,504,Equipment,5023,Revenue,03.GROCERIES & PROVISIONS
31-Oct-2017,7004160,29.50,PASTA KING (UK) LIMITED,366311,Commissioning & Investment,Children's & Education Services,103,Supplies and Services,504,Equipment,5023,Revenue,03.GROCERIES & PROVISIONS
31-Oct-2017,7004160,90.00,PASTA KING (UK) LIMITED,366311,Commissioning & Investment,Children's & Education Services,103,Supplies and Services,504,Equipment,5023,Revenue,03.GROCERIES & PROVISIONS
31-Oct-2017,7004160,59.00,PASTA KING (UK) LIMITED,366311,Commissioning & Investment,Children's & Education Services,103,Supplies and Services,504,Equipment,5023,Revenue,03.GROCERIES & PROVISIONS
31-Oct-2017,7004160,30.68,PASTA KING (UK) LIMITED,366311,Commissioning & Investment,Children's & Education Services,103,Supplies and Services,504,Equipment,5023,Revenue,03.GROCERIES & PROVISIONS
31-Oct-2017,7004160,30.68,PASTA KING (UK) LIMITED,366311,Commissioning & Investment,Children's & Education Services,103,Supplies and Services,504,Equipment,5023,Revenue,03.GROCERIES & PROVISIONS
31-Oct-2017,7004160,27.00,PASTA KING (UK) LIMITED,366311,Commissioning & Investment,Children's & Education Services,103,Supplies and Services,504,Equipment,5023,Revenue,03.GROCERIES & PROVISIONS
31-Oct-2017,7004160,30.68,PASTA KING (UK) LIMITED,366311,Commissioning & Investment,Children's & Education Services,103,Supplies and Services,504,Equipment,5023,Revenue,03.GROCERIES & PROVISIONS
31-Oct-2017,7004160,60.00,PASTA KING (UK) LIMITED,366311,Commissioning & Investment,Children's & Education Services,103,Supplies and Services,504,Equipment,5023,Revenue,03.GROCERIES & PROVISIONS
31-Oct-2017,7004160,10.40,PASTA KING (UK) LIMITED,366311,Commissioning & Investment,Children's & Education Services,103,Supplies and Services,504,Equipment,5023,Revenue,03.GROCERIES & PROVISIONS
31-Oct-2017,7004160,29.50,PASTA KING (UK) LIMITED,366311,Commissioning & Investment,Children's & Education Services,103,Supplies and Services,504,Equipment,5023,Revenue,03.GROCERIES & PROVISIONS
31-Oct-2017,7004160,45.00,PASTA KING (UK) LIMITED,366311,Commissioning & Investment,Children's & Education Services,103,Supplies and Services,504,Equipment,5023,Revenue,03.GROCERIES & PROVISIONS
31-Oct-2017,7004160,30.68,PASTA KING (UK) LIMITED,366311,Commissioning & Investment,Children's & Education Services,103,Supplies and Services,504,Equipment,5023,Revenue,03.GROCERIES & PROVISIONS
31-Oct-2017,7004160,59.00,PASTA KING (UK) LIMITED,366311,Commissioning & Investment,Children's & Education Services,103,Supplies and Services,504,Equipment,5023,Revenue,03.GROCERIES & PROVISIONS
31-Oct-2017,7004160,27.00,PASTA KING (UK) LIMITED,366311,Commissioning & Investment,Children's & Education Services,103,Supplies and Services,504,Equipment,5023,Revenue,03.GROCERIES & PROVISIONS
31-Oct-2017,7004160,30.68,PASTA KING (UK) LIMITED,366311,Commissioning & Investment,Children's & Education Services,103,Supplies and Services,504,Equipment,5023,Revenue,03.GROCERIES & PROVISIONS
31-Oct-2017,7004160,30.00,PASTA KING (UK) LIMITED,366311,Commissioning & Investment,Children's & Education Services,103,Supplies and Services,504,Equipment,5023,Revenue,03.GROCERIES & PROVISIONS
31-Oct-2017,7004160,30.68,PASTA KING (UK) LIMITED,366311,Commissioning & Investment,Children's & Education Services,103,Supplies and Services,504,Equipment,5023,Revenue,03.GROCERIES & PROVISIONS
31-Oct-2017,7004160,30.68,PASTA KING (UK) LIMITED,366311,Commissioning & Investment,Children's & Education Services,103,Supplies and Services,504,Equipment,5023,Revenue,03.GROCERIES & PROVISIONS
31-Oct-2017,7004160,30.68,PASTA KING (UK) LIMITED,366311,Commissioning & Investment,Children's & Education Services,103,Supplies and Services,504,Equipment,5023,Revenue,03.GROCERIES & PROVISIONS
31-Oct-2017,7004160,45.00,PASTA KING (UK) LIMITED,366311,Commissioning & Investment,Children's & Education Services,103,Supplies and Services,504,Equipment,5023,Revenue,03.GROCERIES & PROVISIONS
31-Oct-2017,7004160,10.40,PASTA KING (UK) LIMITED,366311,Commissioning & Investment,Children's & Education Services,103,Supplies and Services,504,Equipment,5023,Revenue,03.GROCERIES & PROVISIONS
31-Oct-2017,7004160,30.68,PASTA KING (UK) LIMITED,366311,Commissioning & Investment,Children's & Education Services,103,Supplies and Services,504,Equipment,5023,Revenue,03.GROCERIES & PROVISIONS
31-Oct-2017,7004160,59.00,PASTA KING (UK) LIMITED,366311,Commissioning & Investment,Children's & Education Services,103,Supplies and Services,504,Equipment,5023,Revenue,03.GROCERIES & PROVISIONS
31-Oct-2017,7004160,29.50,PASTA KING (UK) LIMITED,366311,Commissioning & Investment,Children's & Education Services,103,Supplies and Services,504,Equipment,5023,Revenue,03.GROCERIES & PROVISIONS
31-Oct-2017,7004160,59.00,PASTA KING (UK) LIMITED,366311,Commissioning & Investment,Children's & Education Services,103,Supplies and Services,504,Equipment,5023,Revenue,03.GROCERIES & PROVISIONS
31-Oct-2017,7004160,30.68,PASTA KING (UK) LIMITED,366311,Commissioning & Investment,Children's & Education Services,103,Supplies and Services,504,Equipment,5023,Revenue,03.GROCERIES & PROVISIONS
31-Oct-2017,7004160,31.60,PASTA KING (UK) LIMITED,366311,Commissioning & Investment,Children's & Education Services,103,Supplies and Services,504,Equipment,5023,Revenue,03.GROCERIES & PROVISIONS
31-Oct-2017,7004160,29.50,PASTA KING (UK) LIMITED,366311,Commissioning & Investment,Children's & Education Services,103,Supplies and Services,504,Equipment,5023,Revenue,03.GROCERIES & PROVISIONS
31-Oct-2017,7004160,30.68,PASTA KING (UK) LIMITED,366311,Commissioning & Investment,Children's & Education Services,103,Supplies and Services,504,Equipment,5023,Revenue,03.GROCERIES & PROVISIONS
31-Oct-2017,7004160,29.50,PASTA KING (UK) LIMITED,366311,Commissioning & Investment,Children's & Education Services,103,Supplies and Services,504,Equipment,5023,Revenue,03.GROCERIES & PROVISIONS
31-Oct-2017,7004160,61.36,PASTA KING (UK) LIMITED,366311,Commissioning & Investment,Children's & Education Services,103,Supplies and Services,504,Equipment,5023,Revenue,03.GROCERIES & PROVISIONS
31-Oct-2017,7004160,30.00,PASTA KING (UK) LIMITED,366311,Commissioning & Investment,Children's & Education Services,103,Supplies and Services,504,Equipment,5023,Revenue,03.GROCERIES & PROVISIONS
31-Oct-2017,7004160,29.50,PASTA KING (UK) LIMITED,366311,Commissioning & Investment,Children's & Education Services,103,Supplies and Services,504,Equipment,5023,Revenue,03.GROCERIES & PROVISIONS
31-Oct-2017,7004160,27.00,PASTA KING (UK) LIMITED,366311,Commissioning & Investment,Children's & Education Services,103,Supplies and Services,504,Equipment,5023,Revenue,03.GROCERIES & PROVISIONS
31-Oct-2017,7004160,28.08,PASTA KING (UK) LIMITED,366311,Commissioning & Investment,Children's & Education Services,103,Supplies and Services,504,Equipment,5023,Revenue,03.GROCERIES & PROVISIONS
31-Oct-2017,7004160,28.08,PASTA KING (UK) LIMITED,366311,Commissioning & Investment,Children's & Education Services,103,Supplies and Services,504,Equipment,5023,Revenue,03.GROCERIES & PROVISIONS
31-Oct-2017,7004160,29.50,PASTA KING (UK) LIMITED,366311,Commissioning & Investment,Children's & Education Services,103,Supplies and Services,504,Equipment,5023,Revenue,03.GROCERIES & PROVISIONS
31-Oct-2017,7004160,30.68,PASTA KING (UK) LIMITED,366311,Commissioning & Investment,Children's & Education Services,103,Supplies and Services,504,Equipment,5023,Revenue,03.GROCERIES & PROVISIONS
31-Oct-2017,7004160,49.50,PASTA KING (UK) LIMITED,366311,Commissioning & Investment,Children's & Education Services,103,Supplies and Services,504,Equipment,5023,Revenue,03.GROCERIES & PROVISIONS
31-Oct-2017,7004160,30.68,PASTA KING (UK) LIMITED,366311,Commissioning & Investment,Children's & Education Services,103,Supplies and Services,504,Equipment,5023,Revenue,03.GROCERIES & PROVISIONS
31-Oct-2017,7004160,17.20,PASTA KING (UK) LIMITED,366311,Commissioning & Investment,Children's & Education Services,103,Supplies and Services,504,Equipment,5023,Revenue,03.GROCERIES & PROVISIONS
31-Oct-2017,7004160,45.00,PASTA KING (UK) LIMITED,366311,Commissioning & Investment,Children's & Education Services,103,Supplies and Services,504,Equipment,5023,Revenue,03.GROCERIES & PROVISIONS
31-Oct-2017,7004160,30.68,PASTA KING (UK) LIMITED,366311,Commissioning & Investment,Children's & Education Services,103,Supplies and Services,504,Equipment,5023,Revenue,03.GROCERIES & PROVISIONS
31-Oct-2017,7004160,88.50,PASTA KING (UK) LIMITED,366311,Commissioning & Investment,Children's & Education Services,103,Supplies and Services,504,Equipment,5023,Revenue,03.GROCERIES & PROVISIONS
31-Oct-2017,7004160,29.50,PASTA KING (UK) LIMITED,366311,Commissioning & Investment,Children's & Education Services,103,Supplies and Services,504,Equipment,5023,Revenue,03.GROCERIES & PROVISIONS
31-Oct-2017,7004160,28.08,PASTA KING (UK) LIMITED,366311,Commissioning & Investment,Children's & Education Services,103,Supplies and Services,504,Equipment,5023,Revenue,03.GROCERIES & PROVISIONS
31-Oct-2017,7004160,31.20,PASTA KING (UK) LIMITED,366311,Commissioning & Investment,Children's & Education Services,103,Supplies and Services,504,Equipment,5023,Revenue,03.GROCERIES & PROVISIONS
31-Oct-2017,7004160,30.68,PASTA KING (UK) LIMITED,366311,Commissioning & Investment,Children's & Education Services,103,Supplies and Services,504,Equipment,5023,Revenue,03.GROCERIES & PROVISIONS
31-Oct-2017,7004160,27.00,PASTA KING (UK) LIMITED,366311,Commissioning & Investment,Children's & Education Services,103,Supplies and Services,504,Equipment,5023,Revenue,03.GROCERIES & PROVISIONS
31-Oct-2017,7004160,30.68,PASTA KING (UK) LIMITED,366311,Commissioning & Investment,Children's & Education Services,103,Supplies and Services,504,Equipment,5023,Revenue,03.GROCERIES & PROVISIONS
31-Oct-2017,7004160,30.68,PASTA KING (UK) LIMITED,366311,Commissioning & Investment,Children's & Education Services,103,Supplies and Services,504,Equipment,5023,Revenue,03.GROCERIES & PROVISIONS
31-Oct-2017,7004160,30.68,PASTA KING (UK) LIMITED,366311,Commissioning & Investment,Children's & Education Services,103,Supplies and Services,504,Equipment,5023,Revenue,03.GROCERIES & PROVISIONS
31-Oct-2017,7004160,56.16,PASTA KING (UK) LIMITED,366311,Commissioning & Investment,Children's & Education Services,103,Supplies and Services,504,Equipment,5023,Revenue,03.GROCERIES & PROVISIONS
31-Oct-2017,7004160,30.68,PASTA KING (UK) LIMITED,366311,Commissioning & Investment,Children's & Education Services,103,Supplies and Services,504,Equipment,5023,Revenue,03.GROCERIES & PROVISIONS
31-Oct-2017,7004160,75.00,PASTA KING (UK) LIMITED,366311,Commissioning & Investment,Children's & Education Services,103,Supplies and Services,504,Equipment,5023,Revenue,03.GROCERIES & PROVISIONS
31-Oct-2017,7004160,29.50,PASTA KING (UK) LIMITED,366311,Commissioning & Investment,Children's & Education Services,103,Supplies and Services,504,Equipment,5023,Revenue,03.GROCERIES & PROVISIONS
31-Oct-2017,7004160,30.68,PASTA KING (UK) LIMITED,366311,Commissioning & Investment,Children's & Education Services,103,Supplies and Services,504,Equipment,5023,Revenue,03.GROCERIES & PROVISIONS
31-Oct-2017,7004160,30.68,PASTA KING (UK) LIMITED,366311,Commissioning & Investment,Children's & Education Services,103,Supplies and Services,504,Equipment,5023,Revenue,03.GROCERIES & PROVISIONS
31-Oct-2017,7004160,30.68,PASTA KING (UK) LIMITED,366311,Commissioning & Investment,Children's & Education Services,103,Supplies and Services,504,Equipment,5023,Revenue,03.GROCERIES & PROVISIONS
31-Oct-2017,7004160,30.68,PASTA KING (UK) LIMITED,366311,Commissioning & Investment,Children's & Education Services,103,Supplies and Services,504,Equipment,5023,Revenue,03.GROCERIES & PROVISIONS
31-Oct-2017,7004160,30.68,PASTA KING (UK) LIMITED,366311,Commissioning & Investment,Children's & Education Services,103,Supplies and Services,504,Equipment,5023,Revenue,03.GROCERIES & PROVISIONS
31-Oct-2017,7004160,30.68,PASTA KING (UK) LIMITED,366311,Commissioning & Investment,Children's & Education Services,103,Supplies and Services,504,Equipment,5023,Revenue,03.GROCERIES & PROVISIONS
31-Oct-2017,7004160,27.00,PASTA KING (UK) LIMITED,366311,Commissioning & Investment,Children's & Education Services,103,Supplies and Services,504,Equipment,5023,Revenue,03.GROCERIES & PROVISIONS
31-Oct-2017,7004160,27.00,PASTA KING (UK) LIMITED,366311,Commissioning & Investment,Children's & Education Services,103,Supplies and Services,504,Equipment,5023,Revenue,03.GROCERIES & PROVISIONS
31-Oct-2017,7004160,29.96,PASTA KING (UK) LIMITED,366311,Commissioning & Investment,Children's & Education Services,103,Supplies and Services,504,Equipment,5023,Revenue,03.GROCERIES & PROVISIONS
31-Oct-2017,7004160,28.08,PASTA KING (UK) LIMITED,366311,Commissioning & Investment,Children's & Education Services,103,Supplies and Services,504,Equipment,5023,Revenue,03.GROCERIES & PROVISIONS
31-Oct-2017,7004160,30.68,PASTA KING (UK) LIMITED,366311,Commissioning & Investment,Children's & Education Services,103,Supplies and Services,504,Equipment,5023,Revenue,03.GROCERIES & PROVISIONS
31-Oct-2017,7004160,90.00,PASTA KING (UK) LIMITED,366311,Commissioning & Investment,Children's & Education Services,103,Supplies and Services,504,Equipment,5023,Revenue,03.GROCERIES & PROVISIONS
31-Oct-2017,7004160,45.00,PASTA KING (UK) LIMITED,366311,Commissioning & Investment,Children's & Education Services,103,Supplies and Services,504,Equipment,5023,Revenue,03.GROCERIES & PROVISIONS
31-Oct-2017,7004160,61.36,PASTA KING (UK) LIMITED,366311,Commissioning & Investment,Children's & Education Services,103,Supplies and Services,504,Equipment,5023,Revenue,03.GROCERIES & PROVISIONS
31-Oct-2017,7004160,29.50,PASTA KING (UK) LIMITED,366311,Commissioning & Investment,Children's & Education Services,103,Supplies and Services,504,Equipment,5023,Revenue,03.GROCERIES & PROVISIONS
31-Oct-2017,7004160,90.00,PASTA KING (UK) LIMITED,366311,Commissioning & Investment,Children's & Education Services,103,Supplies and Services,504,Equipment,5023,Revenue,03.GROCERIES & PROVISIONS
31-Oct-2017,7004160,27.00,PASTA KING (UK) LIMITED,366311,Commissioning & Investment,Children's & Education Services,103,Supplies and Services,504,Equipment,5023,Revenue,03.GROCERIES & PROVISIONS
31-Oct-2017,7004160,90.00,PASTA KING (UK) LIMITED,366311,Commissioning & Investment,Children's & Education Services,103,Supplies and Services,504,Equipment,5023,Revenue,03.GROCERIES & PROVISIONS
31-Oct-2017,7004160,45.00,PASTA KING (UK) LIMITED,366311,Commissioning & Investment,Children's & Education Services,103,Supplies and Services,504,Equipment,5023,Revenue,03.GROCERIES & PROVISIONS
31-Oct-2017,7004160,15.00,PASTA KING (UK) LIMITED,366311,Commissioning & Investment,Children's & Education Services,103,Supplies and Services,504,Equipment,5023,Revenue,03.GROCERIES & PROVISIONS
31-Oct-2017,7004160,29.12,PASTA KING (UK) LIMITED,366311,Commissioning & Investment,Children's & Education Services,103,Supplies and Services,504,Equipment,5023,Revenue,03.GROCERIES & PROVISIONS
31-Oct-2017,7004160,30.68,PASTA KING (UK) LIMITED,366311,Commissioning & Investment,Children's & Education Services,103,Supplies and Services,504,Equipment,5023,Revenue,03.GROCERIES & PROVISIONS
31-Oct-2017,7004160,30.68,PASTA KING (UK) LIMITED,366311,Commissioning & Investment,Children's & Education Services,103,Supplies and Services,504,Equipment,5023,Revenue,03.GROCERIES & PROVISIONS
31-Oct-2017,7004160,28.00,PASTA KING (UK) LIMITED,366311,Commissioning & Investment,Children's & Education Services,103,Supplies and Services,504,Equipment,5023,Revenue,03.GROCERIES & PROVISIONS
31-Oct-2017,7004160,29.50,PASTA KING (UK) LIMITED,366311,Commissioning & Investment,Children's & Education Services,103,Supplies and Services,504,Equipment,5023,Revenue,03.GROCERIES & PROVISIONS
31-Oct-2017,7004160,9.90,PASTA KING (UK) LIMITED,366311,Commissioning & Investment,Children's & Education Services,103,Supplies and Services,504,Equipment,5023,Revenue,03.GROCERIES & PROVISIONS
31-Oct-2017,7004160,21.00,PASTA KING (UK) LIMITED,366311,Commissioning & Investment,Children's & Education Services,103,Supplies and Services,504,Equipment,5023,Revenue,03.GROCERIES & PROVISIONS
31-Oct-2017,7004160,28.00,PASTA KING (UK) LIMITED,366311,Commissioning & Investment,Children's & Education Services,103,Supplies and Services,504,Equipment,5023,Revenue,03.GROCERIES & PROVISIONS
31-Oct-2017,7004160,61.36,PASTA KING (UK) LIMITED,366311,Commissioning & Investment,Children's & Education Services,103,Supplies and Services,504,Equipment,5023,Revenue,03.GROCERIES & PROVISIONS
31-Oct-2017,7004160,56.16,PASTA KING (UK) LIMITED,366311,Commissioning & Investment,Children's & Education Services,103,Supplies and Services,504,Equipment,5023,Revenue,03.GROCERIES & PROVISIONS
31-Oct-2017,7004160,30.68,PASTA KING (UK) LIMITED,366311,Commissioning & Investment,Children's & Education Services,103,Supplies and Services,504,Equipment,5023,Revenue,03.GROCERIES & PROVISIONS
31-Oct-2017,7004160,29.12,PASTA KING (UK) LIMITED,366311,Commissioning & Investment,Children's & Education Services,103,Supplies and Services,504,Equipment,5023,Revenue,03.GROCERIES & PROVISIONS
31-Oct-2017,7004160,28.00,PASTA KING (UK) LIMITED,366311,Commissioning & Investment,Children's & Education Services,103,Supplies and Services,504,Equipment,5023,Revenue,03.GROCERIES & PROVISIONS
31-Oct-2017,7004160,28.08,PASTA KING (UK) LIMITED,366311,Commissioning & Investment,Children's & Education Services,103,Supplies and Services,504,Equipment,5023,Revenue,03.GROCERIES & PROVISIONS
31-Oct-2017,7004160,30.68,PASTA KING (UK) LIMITED,366311,Commissioning & Investment,Children's & Education Services,103,Supplies and Services,504,Equipment,5023,Revenue,03.GROCERIES & PROVISIONS
31-Oct-2017,7004160,29.50,PASTA KING (UK) LIMITED,366311,Commissioning & Investment,Children's & Education Services,103,Supplies and Services,504,Equipment,5023,Revenue,03.GROCERIES & PROVISIONS
31-Oct-2017,7004160,81.00,PASTA KING (UK) LIMITED,366311,Commissioning & Investment,Children's & Education Services,103,Supplies and Services,504,Equipment,5023,Revenue,03.GROCERIES & PROVISIONS
31-Oct-2017,7004160,21.00,PASTA KING (UK) LIMITED,366311,Commissioning & Investment,Children's & Education Services,103,Supplies and Services,504,Equipment,5023,Revenue,03.GROCERIES & PROVISIONS
31-Oct-2017,7004160,30.00,PASTA KING (UK) LIMITED,366311,Commissioning & Investment,Children's & Education Services,103,Supplies and Services,504,Equipment,5023,Revenue,03.GROCERIES & PROVISIONS
31-Oct-2017,7004160,180.00,PASTA KING (UK) LIMITED,366311,Commissioning & Investment,Children's & Education Services,103,Supplies and Services,504,Equipment,5023,Revenue,03.GROCERIES & PROVISIONS
31-Oct-2017,7004160,30.68,PASTA KING (UK) LIMITED,366311,Commissioning & Investment,Children's & Education Services,103,Supplies and Services,504,Equipment,5023,Revenue,03.GROCERIES & PROVISIONS
31-Oct-2017,7004160,30.68,PASTA KING (UK) LIMITED,366311,Commissioning & Investment,Children's & Education Services,103,Supplies and Services,504,Equipment,5023,Revenue,03.GROCERIES & PROVISIONS
31-Oct-2017,7004160,29.50,PASTA KING (UK) LIMITED,366311,Commissioning & Investment,Children's & Education Services,103,Supplies and Services,504,Equipment,5023,Revenue,03.GROCERIES & PROVISIONS
31-Oct-2017,7004160,45.00,PASTA KING (UK) LIMITED,366311,Commissioning & Investment,Children's & Education Services,103,Supplies and Services,504,Equipment,5023,Revenue,03.GROCERIES & PROVISIONS
31-Oct-2017,7004160,49.50,PASTA KING (UK) LIMITED,366311,Commissioning & Investment,Children's & Education Services,103,Supplies and Services,504,Equipment,5023,Revenue,03.GROCERIES & PROVISIONS
31-Oct-2017,7004160,84.24,PASTA KING (UK) LIMITED,366311,Commissioning & Investment,Children's & Education Services,103,Supplies and Services,504,Equipment,5023,Revenue,03.GROCERIES & PROVISIONS
31-Oct-2017,7004160,49.50,PASTA KING (UK) LIMITED,366311,Commissioning & Investment,Children's & Education Services,103,Supplies and Services,504,Equipment,5023,Revenue,03.GROCERIES & PROVISIONS
31-Oct-2017,7004160,85.60,PASTA KING (UK) LIMITED,366311,Commissioning & Investment,Children's & Education Services,103,Supplies and Services,504,Equipment,5023,Revenue,03.GROCERIES & PROVISIONS
31-Oct-2017,7004160,92.04,PASTA KING (UK) LIMITED,366311,Commissioning & Investment,Children's & Education Services,103,Supplies and Services,504,Equipment,5023,Revenue,03.GROCERIES & PROVISIONS
31-Oct-2017,7004160,15.00,PASTA KING (UK) LIMITED,366311,Commissioning & Investment,Children's & Education Services,103,Supplies and Services,504,Equipment,5023,Revenue,03.GROCERIES & PROVISIONS
31-Oct-2017,7004160,75.00,PASTA KING (UK) LIMITED,366311,Commissioning & Investment,Children's & Education Services,103,Supplies and Services,504,Equipment,5023,Revenue,03.GROCERIES & PROVISIONS
31-Oct-2017,7004160,29.50,PASTA KING (UK) LIMITED,366311,Commissioning & Investment,Children's & Education Services,103,Supplies and Services,504,Equipment,5023,Revenue,03.GROCERIES & PROVISIONS
31-Oct-2017,7004160,30.68,PASTA KING (UK) LIMITED,366311,Commissioning & Investment,Children's & Education Services,103,Supplies and Services,504,Equipment,5023,Revenue,03.GROCERIES & PROVISIONS
31-Oct-2017,7004160,30.68,PASTA KING (UK) LIMITED,366311,Commissioning & Investment,Children's & Education Services,103,Supplies and Services,504,Equipment,5023,Revenue,03.GROCERIES & PROVISIONS
31-Oct-2017,7004160,54.00,PASTA KING (UK) LIMITED,366311,Commissioning & Investment,Children's & Education Services,103,Supplies and Services,504,Equipment,5023,Revenue,03.GROCERIES & PROVISIONS
31-Oct-2017,7004160,21.00,PASTA KING (UK) LIMITED,366311,Commissioning & Investment,Children's & Education Services,103,Supplies and Services,504,Equipment,5023,Revenue,03.GROCERIES & PROVISIONS
31-Oct-2017,7004160,24.75,PASTA KING (UK) LIMITED,366311,Commissioning & Investment,Children's & Education Services,103,Supplies and Services,504,Equipment,5023,Revenue,03.GROCERIES & PROVISIONS
31-Oct-2017,7004160,90.00,PASTA KING (UK) LIMITED,366311,Commissioning & Investment,Children's & Education Services,103,Supplies and Services,504,Equipment,5023,Revenue,03.GROCERIES & PROVISIONS
31-Oct-2017,7004160,30.68,PASTA KING (UK) LIMITED,366311,Commissioning & Investment,Children's & Education Services,103,Supplies and Services,504,Equipment,5023,Revenue,03.GROCERIES & PROVISIONS
31-Oct-2017,7004160,122.72,PASTA KING (UK) LIMITED,366311,Commissioning & Investment,Children's & Education Services,103,Supplies and Services,504,Equipment,5023,Revenue,03.GROCERIES & PROVISIONS
31-Oct-2017,7004160,49.50,PASTA KING (UK) LIMITED,366311,Commissioning & Investment,Children's & Education Services,103,Supplies and Services,504,Equipment,5023,Revenue,03.GROCERIES & PROVISIONS
31-Oct-2017,7004160,30.68,PASTA KING (UK) LIMITED,366311,Commissioning & Investment,Children's & Education Services,103,Supplies and Services,504,Equipment,5023,Revenue,03.GROCERIES & PROVISIONS
31-Oct-2017,7004160,30.68,PASTA KING (UK) LIMITED,366311,Commissioning & Investment,Children's & Education Services,103,Supplies and Services,504,Equipment,5023,Revenue,03.GROCERIES & PROVISIONS
31-Oct-2017,7004160,29.50,PASTA KING (UK) LIMITED,366311,Commissioning & Investment,Children's & Education Services,103,Supplies and Services,504,Equipment,5023,Revenue,03.GROCERIES & PROVISIONS
31-Oct-2017,7004160,30.68,PASTA KING (UK) LIMITED,366311,Commissioning & Investment,Children's & Education Services,103,Supplies and Services,504,Equipment,5023,Revenue,03.GROCERIES & PROVISIONS
31-Oct-2017,7004160,30.68,PASTA KING (UK) LIMITED,366311,Commissioning & Investment,Children's & Education Services,103,Supplies and Services,504,Equipment,5023,Revenue,03.GROCERIES & PROVISIONS
31-Oct-2017,7004160,49.50,PASTA KING (UK) LIMITED,366311,Commissioning & Investment,Children's & Education Services,103,Supplies and Services,504,Equipment,5023,Revenue,03.GROCERIES & PROVISIONS
31-Oct-2017,7004160,30.00,PASTA KING (UK) LIMITED,366311,Commissioning & Investment,Children's & Education Services,103,Supplies and Services,504,Equipment,5023,Revenue,03.GROCERIES & PROVISIONS
31-Oct-2017,7004160,28.08,PASTA KING (UK) LIMITED,366311,Commissioning & Investment,Children's & Education Services,103,Supplies and Services,504,Equipment,5023,Revenue,03.GROCERIES & PROVISIONS
31-Oct-2017,7004160,29.50,PASTA KING (UK) LIMITED,366311,Commissioning & Investment,Children's & Education Services,103,Supplies and Services,504,Equipment,5023,Revenue,03.GROCERIES & PROVISIONS
31-Oct-2017,7004160,54.00,PASTA KING (UK) LIMITED,366311,Commissioning & Investment,Children's & Education Services,103,Supplies and Services,504,Equipment,5023,Revenue,03.GROCERIES & PROVISIONS
31-Oct-2017,7004160,30.68,PASTA KING (UK) LIMITED,366311,Commissioning & Investment,Children's & Education Services,103,Supplies and Services,504,Equipment,5023,Revenue,03.GROCERIES & PROVISIONS
31-Oct-2017,7004160,15.34,PASTA KING (UK) LIMITED,366311,Commissioning & Investment,Children's & Education Services,103,Supplies and Services,504,Equipment,5023,Revenue,03.GROCERIES & PROVISIONS
31-Oct-2017,7004160,30.68,PASTA KING (UK) LIMITED,366311,Commissioning & Investment,Children's & Education Services,103,Supplies and Services,504,Equipment,5023,Revenue,03.GROCERIES & PROVISIONS
31-Oct-2017,7004160,28.00,PASTA KING (UK) LIMITED,366311,Commissioning & Investment,Children's & Education Services,103,Supplies and Services,504,Equipment,5023,Revenue,03.GROCERIES & PROVISIONS
31-Oct-2017,7004160,29.50,PASTA KING (UK) LIMITED,366311,Commissioning & Investment,Children's & Education Services,103,Supplies and Services,504,Equipment,5023,Revenue,03.GROCERIES & PROVISIONS
31-Oct-2017,7004160,29.50,PASTA KING (UK) LIMITED,366311,Commissioning & Investment,Children's & Education Services,103,Supplies and Services,504,Equipment,5023,Revenue,03.GROCERIES & PROVISIONS
31-Oct-2017,7004160,5.20,PASTA KING (UK) LIMITED,366311,Commissioning & Investment,Children's & Education Services,103,Supplies and Services,504,Equipment,5023,Revenue,03.GROCERIES & PROVISIONS
31-Oct-2017,7004160,30.68,PASTA KING (UK) LIMITED,366311,Commissioning & Investment,Children's & Education Services,103,Supplies and Services,504,Equipment,5023,Revenue,03.GROCERIES & PROVISIONS
31-Oct-2017,7004160,28.35,PASTA KING (UK) LIMITED,366311,Commissioning & Investment,Children's & Education Services,103,Supplies and Services,504,Equipment,5023,Revenue,03.GROCERIES & PROVISIONS
31-Oct-2017,7004160,60.00,PASTA KING (UK) LIMITED,366311,Commissioning & Investment,Children's & Education Services,103,Supplies and Services,504,Equipment,5023,Revenue,03.GROCERIES & PROVISIONS
31-Oct-2017,7004160,42.00,PASTA KING (UK) LIMITED,366311,Commissioning & Investment,Children's & Education Services,103,Supplies and Services,504,Equipment,5023,Revenue,03.GROCERIES & PROVISIONS
31-Oct-2017,7004160,30.68,PASTA KING (UK) LIMITED,366311,Commissioning & Investment,Children's & Education Services,103,Supplies and Services,504,Equipment,5023,Revenue,03.GROCERIES & PROVISIONS
31-Oct-2017,7004160,99.00,PASTA KING (UK) LIMITED,366311,Commissioning & Investment,Children's & Education Services,103,Supplies and Services,504,Equipment,5023,Revenue,03.GROCERIES & PROVISIONS
31-Oct-2017,7004160,90.00,PASTA KING (UK) LIMITED,366311,Commissioning & Investment,Children's & Education Services,103,Supplies and Services,504,Equipment,5023,Revenue,03.GROCERIES & PROVISIONS
31-Oct-2017,7004160,30.68,PASTA KING (UK) LIMITED,366311,Commissioning & Investment,Children's & Education Services,103,Supplies and Services,504,Equipment,5023,Revenue,03.GROCERIES & PROVISIONS
31-Oct-2017,7004160,29.50,PASTA KING (UK) LIMITED,366311,Commissioning & Investment,Children's & Education Services,103,Supplies and Services,504,Equipment,5023,Revenue,03.GROCERIES & PROVISIONS
31-Oct-2017,7004160,90.00,PASTA KING (UK) LIMITED,366311,Commissioning & Investment,Children's & Education Services,103,Supplies and Services,504,Equipment,5023,Revenue,03.GROCERIES & PROVISIONS
31-Oct-2017,7004160,61.36,PASTA KING (UK) LIMITED,366311,Commissioning & Investment,Children's & Education Services,103,Supplies and Services,504,Equipment,5023,Revenue,03.GROCERIES & PROVISIONS
31-Oct-2017,7004160,48.00,PASTA KING (UK) LIMITED,366311,Commissioning & Investment,Children's & Education Services,103,Supplies and Services,504,Equipment,5023,Revenue,03.GROCERIES & PROVISIONS
31-Oct-2017,7004160,29.50,PASTA KING (UK) LIMITED,366311,Commissioning & Investment,Children's & Education Services,103,Supplies and Services,504,Equipment,5023,Revenue,03.GROCERIES & PROVISIONS
31-Oct-2017,7004160,54.00,PASTA KING (UK) LIMITED,366311,Commissioning & Investment,Children's & Education Services,103,Supplies and Services,504,Equipment,5023,Revenue,03.GROCERIES & PROVISIONS
31-Oct-2017,7004160,30.68,PASTA KING (UK) LIMITED,366311,Commissioning & Investment,Children's & Education Services,103,Supplies and Services,504,Equipment,5023,Revenue,03.GROCERIES & PROVISIONS
31-Oct-2017,7004160,30.68,PASTA KING (UK) LIMITED,366311,Commissioning & Investment,Children's & Education Services,103,Supplies and Services,504,Equipment,5023,Revenue,03.GROCERIES & PROVISIONS
31-Oct-2017,7004160,30.68,PASTA KING (UK) LIMITED,366311,Commissioning & Investment,Children's & Education Services,103,Supplies and Services,504,Equipment,5023,Revenue,03.GROCERIES & PROVISIONS
31-Oct-2017,7004160,27.00,PASTA KING (UK) LIMITED,366311,Commissioning & Investment,Children's & Education Services,103,Supplies and Services,504,Equipment,5023,Revenue,03.GROCERIES & PROVISIONS
31-Oct-2017,7004160,30.68,PASTA KING (UK) LIMITED,366311,Commissioning & Investment,Children's & Education Services,103,Supplies and Services,504,Equipment,5023,Revenue,03.GROCERIES & PROVISIONS
31-Oct-2017,7004160,30.68,PASTA KING (UK) LIMITED,366311,Commissioning & Investment,Children's & Education Services,103,Supplies and Services,504,Equipment,5023,Revenue,03.GROCERIES & PROVISIONS
31-Oct-2017,7004160,30.68,PASTA KING (UK) LIMITED,366311,Commissioning & Investment,Children's & Education Services,103,Supplies and Services,504,Equipment,5023,Revenue,03.GROCERIES & PROVISIONS
31-Oct-2017,7004160,30.68,PASTA KING (UK) LIMITED,366311,Commissioning & Investment,Children's & Education Services,103,Supplies and Services,504,Equipment,5023,Revenue,03.GROCERIES & PROVISIONS
31-Oct-2017,7004160,30.68,PASTA KING (UK) LIMITED,366311,Commissioning & Investment,Children's & Education Services,103,Supplies and Services,504,Equipment,5023,Revenue,03.GROCERIES & PROVISIONS
31-Oct-2017,7004160,56.16,PASTA KING (UK) LIMITED,366311,Commissioning & Investment,Children's & Education Services,103,Supplies and Services,504,Equipment,5023,Revenue,03.GROCERIES & PROVISIONS
31-Oct-2017,7004160,21.00,PASTA KING (UK) LIMITED,366311,Commissioning & Investment,Children's & Education Services,103,Supplies and Services,504,Equipment,5023,Revenue,03.GROCERIES & PROVISIONS
31-Oct-2017,7004161,24.00,NORTHUMBERLAND COUNTY COUNCIL,319694,"Health, Education, Care and Safeguarding",Children's & Education Services,103,Supplies and Services,504,Miscellaneous Expenses,5034,Revenue,00.PUBLIC SECTOR
31-Oct-2017,7004162,38.98,VISTAPRINT.COM LTD,335406,"Environment, Housing & Leisure",Adult Social Care,101,Supplies and Services,504,"Printing, Stationery and General Office Expenses",5026,Revenue,PRINT PRINT
31-Oct-2017,7004163,34.20,VALUE PRODUCTS,385361,"Environment, Housing & Leisure",Cultural & Related Services,104,Supplies and Services,504,Equipment,5023,Revenue,18.EQUIPMENT
31-Oct-2017,7004163,18.65,VALUE PRODUCTS,385361,"Environment, Housing & Leisure",Cultural & Related Services,104,Supplies and Services,504,Equipment,5023,Revenue,18.EQUIPMENT
31-Oct-2017,7004164,57.92,NIKE FACTORY STORE,385357,Capital,Children's & Education Services,103,Supplies and Services,504,"Clothing, Uniforms and Laundry",5025,Capital,CLOTH ADULT
31-Oct-2017,7004164,92.92,NIKE FACTORY STORE,385357,"Health, Education, Care and Safeguarding",Children's & Education Services,103,Supplies and Services,504,"Clothing, Uniforms and Laundry",5025,Revenue,CLOTH ADULT
31-Oct-2017,7004165,470.63,DELICE DE FRANCE PLC,374547,"Environment, Housing & Leisure",Adult Social Care,101,Supplies and Services,504,Equipment,5023,Revenue,03.GROCERIES & PROVISIONS
31-Oct-2017,7004165,380.31,DELICE DE FRANCE PLC,374547,"Environment, Housing & Leisure",Cultural & Related Services,104,Supplies and Services,504,Equipment,5023,Revenue,03.GROCERIES & PROVISIONS
31-Oct-2017,7004165,301.33,DELICE DE FRANCE PLC,374547,"Environment, Housing & Leisure",Cultural & Related Services,104,Supplies and Services,504,Equipment,5023,Revenue,03.GROCERIES & PROVISIONS
31-Oct-2017,7004165,244.20,DELICE DE FRANCE PLC,374547,"Environment, Housing & Leisure",Cultural & Related Services,104,Supplies and Services,504,Equipment,5023,Revenue,03.GROCERIES & PROVISIONS
31-Oct-2017,7004166,18.50,HER MAJESTY'S PASSPORT OFFICE,342302,"Health, Education, Care and Safeguarding",Children's & Education Services,103,Supplies and Services,504,Miscellaneous Expenses,5034,Revenue,00.NON INFLUENCIBLE
31-Oct-2017,7004166,23.40,HER MAJESTY'S PASSPORT OFFICE,342302,"Health, Education, Care and Safeguarding",Children's & Education Services,103,Supplies and Services,504,Miscellaneous Expenses,5034,Revenue,00.NON INFLUENCIBLE
31-Oct-2017,7004166,72.50,HER MAJESTY'S PASSPORT OFFICE,342302,"Health, Education, Care and Safeguarding",Children's & Education Services,103,Supplies and Services,504,Miscellaneous Expenses,5034,Revenue,00.NON INFLUENCIBLE
31-Oct-2017,7004166,29.85,HER MAJESTY'S PASSPORT OFFICE,342302,"Health, Education, Care and Safeguarding",Children's & Education Services,103,Third Party Payments,505,Other Establishments,5041,Revenue,00.NON INFLUENCIBLE
31-Oct-2017,7004166,9.25,HER MAJESTY'S PASSPORT OFFICE,342302,"Health, Education, Care and Safeguarding",Children's & Education Services,103,Supplies and Services,504,Miscellaneous Expenses,5034,Revenue,00.NON INFLUENCIBLE
31-Oct-2017,7004166,46.80,HER MAJESTY'S PASSPORT OFFICE,342302,"Health, Education, Care and Safeguarding",Children's & Education Services,103,Supplies and Services,504,Miscellaneous Expenses,5034,Revenue,00.NON INFLUENCIBLE
31-Oct-2017,7004166,-9.25,HER MAJESTY'S PASSPORT OFFICE,342302,"Health, Education, Care and Safeguarding",Children's & Education Services,103,Supplies and Services,504,Miscellaneous Expenses,5034,Revenue,00.NON INFLUENCIBLE
31-Oct-2017,7004166,75.00,HER MAJESTY'S PASSPORT OFFICE,342302,"Health, Education, Care and Safeguarding",Children's & Education Services,103,Supplies and Services,504,Miscellaneous Expenses,5034,Revenue,00.NON INFLUENCIBLE
31-Oct-2017,7004166,72.50,HER MAJESTY'S PASSPORT OFFICE,342302,"Health, Education, Care and Safeguarding",Children's & Education Services,103,Third Party Payments,505,Other Establishments,5041,Revenue,00.NON INFLUENCIBLE
31-Oct-2017,7004166,-9.25,HER MAJESTY'S PASSPORT OFFICE,342302,"Health, Education, Care and Safeguarding",Children's & Education Services,103,Supplies and Services,504,Miscellaneous Expenses,5034,Revenue,00.NON INFLUENCIBLE
31-Oct-2017,7004166,9.25,HER MAJESTY'S PASSPORT OFFICE,342302,"Health, Education, Care and Safeguarding",Children's & Education Services,103,Supplies and Services,504,Miscellaneous Expenses,5034,Revenue,00.NON INFLUENCIBLE
31-Oct-2017,7004166,-9.25,HER MAJESTY'S PASSPORT OFFICE,342302,"Health, Education, Care and Safeguarding",Children's & Education Services,103,Supplies and Services,504,Miscellaneous Expenses,5034,Revenue,00.NON INFLUENCIBLE
31-Oct-2017,7004167,10.80,HERON FROZEN FOODS LTD,375626,"Health, Education, Care and Safeguarding",Children's & Education Services,103,Third Party Payments,505,Other Establishments,5041,Revenue,03.GROCERIES & PROVISIONS
31-Oct-2017,7004167,8.07,HERON FROZEN FOODS LTD,375626,"Health, Education, Care and Safeguarding",Children's & Education Services,103,Third Party Payments,505,Other Establishments,5041,Revenue,03.GROCERIES & PROVISIONS
31-Oct-2017,7004168,242.50,DVLA,322925,"Environment, Housing & Leisure",Unallocated,N/A,Transport,503,Direct Transport Costs,5016,Revenue,00.NON INFLUENCIBLE
31-Oct-2017,7004168,652.50,DVLA,322925,"Environment, Housing & Leisure",Unallocated,N/A,Transport,503,Direct Transport Costs,5016,Revenue,00.NON INFLUENCIBLE
31-Oct-2017,7004168,652.50,DVLA,322925,"Environment, Housing & Leisure",Unallocated,N/A,Transport,503,Direct Transport Costs,5016,Revenue,00.NON INFLUENCIBLE
31-Oct-2017,7004168,652.50,DVLA,322925,"Environment, Housing & Leisure",Unallocated,N/A,Transport,503,Direct Transport Costs,5016,Revenue,00.NON INFLUENCIBLE
31-Oct-2017,7004168,242.50,DVLA,322925,"Environment, Housing & Leisure",Unallocated,N/A,Transport,503,Direct Transport Costs,5016,Revenue,00.NON INFLUENCIBLE
31-Oct-2017,7004168,242.50,DVLA,322925,"Environment, Housing & Leisure",Unallocated,N/A,Transport,503,Direct Transport Costs,5016,Revenue,00.NON INFLUENCIBLE
31-Oct-2017,7004168,652.50,DVLA,322925,"Environment, Housing & Leisure",Unallocated,N/A,Transport,503,Direct Transport Costs,5016,Revenue,00.NON INFLUENCIBLE
31-Oct-2017,7004168,652.50,DVLA,322925,"Environment, Housing & Leisure",Unallocated,N/A,Transport,503,Direct Transport Costs,5016,Revenue,00.NON INFLUENCIBLE
31-Oct-2017,7004168,242.50,DVLA,322925,"Environment, Housing & Leisure",Unallocated,N/A,Transport,503,Direct Transport Costs,5016,Revenue,00.NON INFLUENCIBLE
31-Oct-2017,7004168,167.50,DVLA,322925,"Environment, Housing & Leisure",Unallocated,N/A,Transport,503,Direct Transport Costs,5016,Revenue,00.NON INFLUENCIBLE
31-Oct-2017,7004168,652.50,DVLA,322925,"Environment, Housing & Leisure",Unallocated,N/A,Transport,503,Direct Transport Costs,5016,Revenue,00.NON INFLUENCIBLE
31-Oct-2017,7004168,652.50,DVLA,322925,"Environment, Housing & Leisure",Unallocated,N/A,Transport,503,Direct Transport Costs,5016,Revenue,00.NON INFLUENCIBLE
31-Oct-2017,7004168,242.50,DVLA,322925,"Environment, Housing & Leisure",Unallocated,N/A,Transport,503,Direct Transport Costs,5016,Revenue,00.NON INFLUENCIBLE
31-Oct-2017,7004169,14.91,SPORTS DIRECT,373833,"Environment, Housing & Leisure",Cultural & Related Services,104,Supplies and Services,504,Equipment,5023,Revenue,CLOTH ADULT
31-Oct-2017,7004169,11.66,SPORTS DIRECT,373833,"Environment, Housing & Leisure",Cultural & Related Services,104,Supplies and Services,504,Equipment,5023,Revenue,CLOTH ADULT
31-Oct-2017,7004169,16.66,SPORTS DIRECT,373833,"Environment, Housing & Leisure",Environmental & Regulatory Services,105,Supplies and Services,504,Equipment,5023,Revenue,CLOTH ADULT
31-Oct-2017,7004170,250.00,HOPWELLS LTD,384683,Commissioning & Investment,Children's & Education Services,103,Supplies and Services,504,Equipment,5023,Revenue,03.GROCERIES & PROVISIONS
31-Oct-2017,7004170,263.71,HOPWELLS LTD,384683,Commissioning & Investment,Children's & Education Services,103,Supplies and Services,504,Equipment,5023,Revenue,03.GROCERIES & PROVISIONS
31-Oct-2017,7004171,79.28,PEROS LTD,374301,"Environment, Housing & Leisure",Adult Social Care,101,Supplies and Services,504,Equipment,5023,Revenue,03.GROCERIES & PROVISIONS
31-Oct-2017,7004171,47.76,PEROS LTD,374301,"Environment, Housing & Leisure",Adult Social Care,101,Supplies and Services,504,Equipment,5023,Revenue,03.GROCERIES & PROVISIONS
31-Oct-2017,7004172,65.35,JTF WHOLESALE,368725,"Environment, Housing & Leisure",Environmental & Regulatory Services,105,Supplies and Services,504,Equipment,5023,Revenue,03.GROCERIES & PROVISIONS
31-Oct-2017,7004172,49.39,JTF WHOLESALE,368725,"Health, Education, Care and Safeguarding",Children's & Education Services,103,Supplies and Services,504,Equipment,5023,Revenue,03.GROCERIES & PROVISIONS
31-Oct-2017,7004172,19.18,JTF WHOLESALE,368725,"Environment, Housing & Leisure",Environmental & Regulatory Services,105,Supplies and Services,504,Equipment,5023,Revenue,03.GROCERIES & PROVISIONS
31-Oct-2017,7004172,114.15,JTF WHOLESALE,368725,"Health, Education, Care and Safeguarding",Children's & Education Services,103,Supplies and Services,504,Equipment,5023,Revenue,03.GROCERIES & PROVISIONS
31-Oct-2017,7004172,11.94,JTF WHOLESALE,368725,"Environment, Housing & Leisure",Environmental & Regulatory Services,105,Supplies and Services,504,Equipment,5023,Revenue,03.GROCERIES & PROVISIONS
31-Oct-2017,7004172,7.98,JTF WHOLESALE,368725,"Environment, Housing & Leisure",Environmental & Regulatory Services,105,Supplies and Services,504,Equipment,5023,Revenue,03.GROCERIES & PROVISIONS
31-Oct-2017,7004172,2.99,JTF WHOLESALE,368725,"Health, Education, Care and Safeguarding",Adult Social Care,101,Supplies and Services,504,Equipment,5023,Revenue,03.GROCERIES & PROVISIONS
31-Oct-2017,7004173,100.00,KITS 4 ALL INC.PLANET SPORTS TROPHIES LTD,355564,Capital,Capital,Capital,Capital Expenditure,Capital,Capital Expenditure,Capital,Capital,EDUC SUPP
31-Oct-2017,7004174,8.94,GM PACKAGING (UK) LTD,312623,Commissioning & Investment,Children's & Education Services,103,Supplies and Services,504,Equipment,5023,Revenue,03.DISPOSABLES
31-Oct-2017,7004174,1.48,GM PACKAGING (UK) LTD,312623,Commissioning & Investment,Children's & Education Services,103,Supplies and Services,504,Equipment,5023,Revenue,03.DISPOSABLES
31-Oct-2017,7004174,104.70,GM PACKAGING (UK) LTD,312623,Commissioning & Investment,Children's & Education Services,103,Supplies and Services,504,Equipment,5023,Revenue,03.DISPOSABLES
31-Oct-2017,7004174,28.42,GM PACKAGING (UK) LTD,312623,Commissioning & Investment,Children's & Education Services,103,Supplies and Services,504,Equipment,5023,Revenue,03.DISPOSABLES
31-Oct-2017,7004174,7.40,GM PACKAGING (UK) LTD,312623,Commissioning & Investment,Children's & Education Services,103,Supplies and Services,504,Equipment,5023,Revenue,03.DISPOSABLES
31-Oct-2017,7004174,52.31,GM PACKAGING (UK) LTD,312623,Commissioning & Investment,Children's & Education Services,103,Supplies and Services,504,Equipment,5023,Revenue,03.DISPOSABLES
31-Oct-2017,7004174,23.20,GM PACKAGING (UK) LTD,312623,Commissioning & Investment,Children's & Education Services,103,Supplies and Services,504,Equipment,5023,Revenue,03.DISPOSABLES
31-Oct-2017,7004174,122.36,GM PACKAGING (UK) LTD,312623,Commissioning & Investment,Children's & Education Services,103,Supplies and Services,504,Equipment,5023,Revenue,03.DISPOSABLES
31-Oct-2017,7004174,48.67,GM PACKAGING (UK) LTD,312623,Commissioning & Investment,Children's & Education Services,103,Supplies and Services,504,Equipment,5023,Revenue,03.DISPOSABLES
31-Oct-2017,7004174,101.90,GM PACKAGING (UK) LTD,312623,Commissioning & Investment,Children's & Education Services,103,Supplies and Services,504,Equipment,5023,Revenue,03.DISPOSABLES
31-Oct-2017,7004174,23.74,GM PACKAGING (UK) LTD,312623,Commissioning & Investment,Children's & Education Services,103,Supplies and Services,504,Equipment,5023,Revenue,03.DISPOSABLES
31-Oct-2017,7004174,34.86,GM PACKAGING (UK) LTD,312623,Commissioning & Investment,Children's & Education Services,103,Supplies and Services,504,Equipment,5023,Revenue,03.DISPOSABLES
31-Oct-2017,7004174,8.94,GM PACKAGING (UK) LTD,312623,Commissioning & Investment,Children's & Education Services,103,Supplies and Services,504,Equipment,5023,Revenue,03.DISPOSABLES
31-Oct-2017,7004174,8.94,GM PACKAGING (UK) LTD,312623,Commissioning & Investment,Children's & Education Services,103,Supplies and Services,504,Equipment,5023,Revenue,03.DISPOSABLES
31-Oct-2017,7004174,89.73,GM PACKAGING (UK) LTD,312623,"Environment, Housing & Leisure",Cultural & Related Services,104,Supplies and Services,504,Equipment,5023,Revenue,03.DISPOSABLES
31-Oct-2017,7004174,16.88,GM PACKAGING (UK) LTD,312623,Commissioning & Investment,Children's & Education Services,103,Supplies and Services,504,Equipment,5023,Revenue,03.DISPOSABLES
31-Oct-2017,7004174,250.58,GM PACKAGING (UK) LTD,312623,Commissioning & Investment,Children's & Education Services,103,Supplies and Services,504,Equipment,5023,Revenue,03.DISPOSABLES
31-Oct-2017,7004174,10.79,GM PACKAGING (UK) LTD,312623,Commissioning & Investment,Children's & Education Services,103,Supplies and Services,504,Equipment,5023,Revenue,03.DISPOSABLES
31-Oct-2017,7004174,8.94,GM PACKAGING (UK) LTD,312623,Commissioning & Investment,Children's & Education Services,103,Supplies and Services,504,Equipment,5023,Revenue,03.DISPOSABLES
31-Oct-2017,7004174,47.85,GM PACKAGING (UK) LTD,312623,Commissioning & Investment,Children's & Education Services,103,Supplies and Services,504,Equipment,5023,Revenue,03.DISPOSABLES
31-Oct-2017,7004174,54.04,GM PACKAGING (UK) LTD,312623,Commissioning & Investment,Children's & Education Services,103,Supplies and Services,504,Equipment,5023,Revenue,03.DISPOSABLES
31-Oct-2017,7004174,174.16,GM PACKAGING (UK) LTD,312623,Commissioning & Investment,Children's & Education Services,103,Supplies and Services,504,Equipment,5023,Revenue,03.DISPOSABLES
31-Oct-2017,7004174,4.98,GM PACKAGING (UK) LTD,312623,Commissioning & Investment,Children's & Education Services,103,Supplies and Services,504,Equipment,5023,Revenue,03.DISPOSABLES
31-Oct-2017,7004174,8.94,GM PACKAGING (UK) LTD,312623,Commissioning & Investment,Children's & Education Services,103,Supplies and Services,504,Equipment,5023,Revenue,03.DISPOSABLES
31-Oct-2017,7004174,19.92,GM PACKAGING (UK) LTD,312623,Commissioning & Investment,Children's & Education Services,103,Supplies and Services,504,Equipment,5023,Revenue,03.DISPOSABLES
31-Oct-2017,7004174,49.08,GM PACKAGING (UK) LTD,312623,Commissioning & Investment,Children's & Education Services,103,Supplies and Services,504,Equipment,5023,Revenue,03.DISPOSABLES
31-Oct-2017,7004174,55.68,GM PACKAGING (UK) LTD,312623,Commissioning & Investment,Children's & Education Services,103,Supplies and Services,504,Equipment,5023,Revenue,03.DISPOSABLES
31-Oct-2017,7004174,53.79,GM PACKAGING (UK) LTD,312623,Commissioning & Investment,Children's & Education Services,103,Supplies and Services,504,Equipment,5023,Revenue,03.DISPOSABLES
31-Oct-2017,7004174,9.96,GM PACKAGING (UK) LTD,312623,Commissioning & Investment,Children's & Education Services,103,Supplies and Services,504,Equipment,5023,Revenue,03.DISPOSABLES
31-Oct-2017,7004174,23.35,GM PACKAGING (UK) LTD,312623,Commissioning & Investment,Children's & Education Services,103,Supplies and Services,504,Equipment,5023,Revenue,03.DISPOSABLES
31-Oct-2017,7004174,8.94,GM PACKAGING (UK) LTD,312623,Commissioning & Investment,Children's & Education Services,103,Supplies and Services,504,Equipment,5023,Revenue,03.DISPOSABLES
31-Oct-2017,7004174,555.20,GM PACKAGING (UK) LTD,312623,Commissioning & Investment,Children's & Education Services,103,Supplies and Services,504,Equipment,5023,Revenue,03.DISPOSABLES
31-Oct-2017,7004174,-0.01,GM PACKAGING (UK) LTD,312623,Commissioning & Investment,Children's & Education Services,103,Supplies and Services,504,Equipment,5023,Revenue,03.DISPOSABLES
31-Oct-2017,7004174,48.39,GM PACKAGING (UK) LTD,312623,Commissioning & Investment,Children's & Education Services,103,Supplies and Services,504,Equipment,5023,Revenue,03.DISPOSABLES
31-Oct-2017,7004174,31.14,GM PACKAGING (UK) LTD,312623,Commissioning & Investment,Children's & Education Services,103,Supplies and Services,504,Equipment,5023,Revenue,03.DISPOSABLES
31-Oct-2017,7004174,248.59,GM PACKAGING (UK) LTD,312623,Commissioning & Investment,Children's & Education Services,103,Supplies and Services,504,Equipment,5023,Revenue,03.DISPOSABLES
31-Oct-2017,7004174,14.72,GM PACKAGING (UK) LTD,312623,Commissioning & Investment,Children's & Education Services,103,Supplies and Services,504,Equipment,5023,Revenue,03.DISPOSABLES
31-Oct-2017,7004174,37.24,GM PACKAGING (UK) LTD,312623,Commissioning & Investment,Children's & Education Services,103,Supplies and Services,504,Equipment,5023,Revenue,03.DISPOSABLES
31-Oct-2017,7004174,427.23,GM PACKAGING (UK) LTD,312623,Commissioning & Investment,Children's & Education Services,103,Supplies and Services,504,Equipment,5023,Revenue,03.DISPOSABLES
31-Oct-2017,7004174,83.44,GM PACKAGING (UK) LTD,312623,Commissioning & Investment,Children's & Education Services,103,Supplies and Services,504,Equipment,5023,Revenue,03.DISPOSABLES
31-Oct-2017,7004174,125.59,GM PACKAGING (UK) LTD,312623,Commissioning & Investment,Children's & Education Services,103,Supplies and Services,504,Equipment,5023,Revenue,03.DISPOSABLES
31-Oct-2017,7004174,74.46,GM PACKAGING (UK) LTD,312623,Commissioning & Investment,Children's & Education Services,103,Supplies and Services,504,Equipment,5023,Revenue,03.DISPOSABLES
31-Oct-2017,7004174,250.92,GM PACKAGING (UK) LTD,312623,Commissioning & Investment,Children's & Education Services,103,Supplies and Services,504,Equipment,5023,Revenue,03.DISPOSABLES
31-Oct-2017,7004174,8.94,GM PACKAGING (UK) LTD,312623,Commissioning & Investment,Children's & Education Services,103,Supplies and Services,504,Equipment,5023,Revenue,03.DISPOSABLES
31-Oct-2017,7004174,12.48,GM PACKAGING (UK) LTD,312623,Commissioning & Investment,Children's & Education Services,103,Supplies and Services,504,Equipment,5023,Revenue,03.DISPOSABLES
31-Oct-2017,7004174,8.94,GM PACKAGING (UK) LTD,312623,Commissioning & Investment,Children's & Education Services,103,Supplies and Services,504,Equipment,5023,Revenue,03.DISPOSABLES
31-Oct-2017,7004174,8.94,GM PACKAGING (UK) LTD,312623,Commissioning & Investment,Children's & Education Services,103,Supplies and Services,504,Equipment,5023,Revenue,03.DISPOSABLES
31-Oct-2017,7004174,38.16,GM PACKAGING (UK) LTD,312623,Commissioning & Investment,Children's & Education Services,103,Supplies and Services,504,Equipment,5023,Revenue,03.DISPOSABLES
31-Oct-2017,7004174,8.94,GM PACKAGING (UK) LTD,312623,Commissioning & Investment,Children's & Education Services,103,Supplies and Services,504,Equipment,5023,Revenue,03.DISPOSABLES
31-Oct-2017,7004174,52.31,GM PACKAGING (UK) LTD,312623,Commissioning & Investment,Children's & Education Services,103,Supplies and Services,504,Equipment,5023,Revenue,03.DISPOSABLES
31-Oct-2017,7004174,30.23,GM PACKAGING (UK) LTD,312623,Commissioning & Investment,Children's & Education Services,103,Supplies and Services,504,Equipment,5023,Revenue,03.DISPOSABLES
31-Oct-2017,7004174,195.02,GM PACKAGING (UK) LTD,312623,Commissioning & Investment,Children's & Education Services,103,Supplies and Services,504,Equipment,5023,Revenue,03.DISPOSABLES
31-Oct-2017,7004174,107.86,GM PACKAGING (UK) LTD,312623,Commissioning & Investment,Children's & Education Services,103,Supplies and Services,504,Equipment,5023,Revenue,03.DISPOSABLES
31-Oct-2017,7004174,78.54,GM PACKAGING (UK) LTD,312623,Commissioning & Investment,Children's & Education Services,103,Supplies and Services,504,Equipment,5023,Revenue,03.DISPOSABLES
31-Oct-2017,7004174,11.10,GM PACKAGING (UK) LTD,312623,Commissioning & Investment,Children's & Education Services,103,Supplies and Services,504,Equipment,5023,Revenue,03.DISPOSABLES
31-Oct-2017,7004174,46.54,GM PACKAGING (UK) LTD,312623,Commissioning & Investment,Children's & Education Services,103,Supplies and Services,504,Equipment,5023,Revenue,03.DISPOSABLES
31-Oct-2017,7004174,62.32,GM PACKAGING (UK) LTD,312623,Commissioning & Investment,Children's & Education Services,103,Supplies and Services,504,Equipment,5023,Revenue,03.DISPOSABLES
31-Oct-2017,7004174,29.87,GM PACKAGING (UK) LTD,312623,Commissioning & Investment,Children's & Education Services,103,Supplies and Services,504,Equipment,5023,Revenue,03.DISPOSABLES
31-Oct-2017,7004174,26.00,GM PACKAGING (UK) LTD,312623,Commissioning & Investment,Children's & Education Services,103,Supplies and Services,504,Equipment,5023,Revenue,03.DISPOSABLES
31-Oct-2017,7004174,59.45,GM PACKAGING (UK) LTD,312623,Commissioning & Investment,Children's & Education Services,103,Supplies and Services,504,Equipment,5023,Revenue,03.DISPOSABLES
31-Oct-2017,7004174,123.01,GM PACKAGING (UK) LTD,312623,Commissioning & Investment,Children's & Education Services,103,Supplies and Services,504,Equipment,5023,Revenue,03.DISPOSABLES
31-Oct-2017,7004174,74.44,GM PACKAGING (UK) LTD,312623,Commissioning & Investment,Children's & Education Services,103,Supplies and Services,504,Equipment,5023,Revenue,03.DISPOSABLES
31-Oct-2017,7004174,122.10,GM PACKAGING (UK) LTD,312623,Commissioning & Investment,Children's & Education Services,103,Supplies and Services,504,Equipment,5023,Revenue,03.DISPOSABLES
31-Oct-2017,7004174,23.77,GM PACKAGING (UK) LTD,312623,Commissioning & Investment,Children's & Education Services,103,Supplies and Services,504,Equipment,5023,Revenue,03.DISPOSABLES
31-Oct-2017,7004174,44.80,GM PACKAGING (UK) LTD,312623,"Environment, Housing & Leisure",Adult Social Care,101,Supplies and Services,504,Equipment,5023,Revenue,03.DISPOSABLES
31-Oct-2017,7004174,8.94,GM PACKAGING (UK) LTD,312623,Commissioning & Investment,Children's & Education Services,103,Supplies and Services,504,Equipment,5023,Revenue,03.DISPOSABLES
31-Oct-2017,7004174,48.14,GM PACKAGING (UK) LTD,312623,Commissioning & Investment,Children's & Education Services,103,Supplies and Services,504,Equipment,5023,Revenue,03.DISPOSABLES
31-Oct-2017,7004174,31.16,GM PACKAGING (UK) LTD,312623,Commissioning & Investment,Children's & Education Services,103,Supplies and Services,504,Equipment,5023,Revenue,03.DISPOSABLES
31-Oct-2017,7004174,32.60,GM PACKAGING (UK) LTD,312623,Commissioning & Investment,Children's & Education Services,103,Supplies and Services,504,Equipment,5023,Revenue,03.DISPOSABLES
31-Oct-2017,7004174,78.70,GM PACKAGING (UK) LTD,312623,Commissioning & Investment,Children's & Education Services,103,Supplies and Services,504,Equipment,5023,Revenue,03.DISPOSABLES
31-Oct-2017,7004174,83.70,GM PACKAGING (UK) LTD,312623,Commissioning & Investment,Children's & Education Services,103,Supplies and Services,504,Equipment,5023,Revenue,03.DISPOSABLES
31-Oct-2017,7004174,25.96,GM PACKAGING (UK) LTD,312623,Commissioning & Investment,Children's & Education Services,103,Supplies and Services,504,Equipment,5023,Revenue,03.DISPOSABLES
31-Oct-2017,7004174,50.38,GM PACKAGING (UK) LTD,312623,Commissioning & Investment,Children's & Education Services,103,Supplies and Services,504,Equipment,5023,Revenue,03.DISPOSABLES
31-Oct-2017,7004174,43.99,GM PACKAGING (UK) LTD,312623,"Environment, Housing & Leisure",Cultural & Related Services,104,Supplies and Services,504,Equipment,5023,Revenue,03.DISPOSABLES
31-Oct-2017,7004174,36.44,GM PACKAGING (UK) LTD,312623,Commissioning & Investment,Children's & Education Services,103,Supplies and Services,504,Equipment,5023,Revenue,03.DISPOSABLES
31-Oct-2017,7004174,18.22,GM PACKAGING (UK) LTD,312623,Commissioning & Investment,Children's & Education Services,103,Supplies and Services,504,Equipment,5023,Revenue,03.DISPOSABLES
31-Oct-2017,7004174,32.50,GM PACKAGING (UK) LTD,312623,"Environment, Housing & Leisure",Cultural & Related Services,104,Supplies and Services,504,Equipment,5023,Revenue,03.DISPOSABLES
31-Oct-2017,7004174,214.72,GM PACKAGING (UK) LTD,312623,Commissioning & Investment,Children's & Education Services,103,Supplies and Services,504,Equipment,5023,Revenue,03.DISPOSABLES
31-Oct-2017,7004174,5.55,GM PACKAGING (UK) LTD,312623,Commissioning & Investment,Children's & Education Services,103,Supplies and Services,504,Equipment,5023,Revenue,03.DISPOSABLES
31-Oct-2017,7004174,41.21,GM PACKAGING (UK) LTD,312623,Commissioning & Investment,Children's & Education Services,103,Supplies and Services,504,Equipment,5023,Revenue,03.DISPOSABLES
31-Oct-2017,7004174,42.83,GM PACKAGING (UK) LTD,312623,Commissioning & Investment,Children's & Education Services,103,Supplies and Services,504,Equipment,5023,Revenue,03.DISPOSABLES
31-Oct-2017,7004174,-0.01,GM PACKAGING (UK) LTD,312623,Commissioning & Investment,Children's & Education Services,103,Supplies and Services,504,Equipment,5023,Revenue,03.DISPOSABLES
31-Oct-2017,7004174,24.90,GM PACKAGING (UK) LTD,312623,Commissioning & Investment,Children's & Education Services,103,Supplies and Services,504,Equipment,5023,Revenue,03.DISPOSABLES
31-Oct-2017,7004174,8.94,GM PACKAGING (UK) LTD,312623,Commissioning & Investment,Children's & Education Services,103,Supplies and Services,504,Equipment,5023,Revenue,03.DISPOSABLES
31-Oct-2017,7004174,47.75,GM PACKAGING (UK) LTD,312623,Commissioning & Investment,Children's & Education Services,103,Supplies and Services,504,Equipment,5023,Revenue,03.DISPOSABLES
31-Oct-2017,7004174,63.00,GM PACKAGING (UK) LTD,312623,"Environment, Housing & Leisure",Adult Social Care,101,Supplies and Services,504,Equipment,5023,Revenue,03.DISPOSABLES
31-Oct-2017,7004174,49.39,GM PACKAGING (UK) LTD,312623,Commissioning & Investment,Children's & Education Services,103,Supplies and Services,504,Equipment,5023,Revenue,03.DISPOSABLES
31-Oct-2017,7004174,22.18,GM PACKAGING (UK) LTD,312623,Commissioning & Investment,Children's & Education Services,103,Supplies and Services,504,Equipment,5023,Revenue,03.DISPOSABLES
31-Oct-2017,7004174,81.04,GM PACKAGING (UK) LTD,312623,Commissioning & Investment,Children's & Education Services,103,Supplies and Services,504,Equipment,5023,Revenue,03.DISPOSABLES
31-Oct-2017,7004174,133.22,GM PACKAGING (UK) LTD,312623,Commissioning & Investment,Children's & Education Services,103,Supplies and Services,504,Equipment,5023,Revenue,03.DISPOSABLES
31-Oct-2017,7004174,391.16,GM PACKAGING (UK) LTD,312623,Commissioning & Investment,Children's & Education Services,103,Supplies and Services,504,Equipment,5023,Revenue,03.DISPOSABLES
31-Oct-2017,7004174,15.95,GM PACKAGING (UK) LTD,312623,Commissioning & Investment,Children's & Education Services,103,Supplies and Services,504,Equipment,5023,Revenue,03.DISPOSABLES
31-Oct-2017,7004174,28.22,GM PACKAGING (UK) LTD,312623,Commissioning & Investment,Children's & Education Services,103,Supplies and Services,504,Equipment,5023,Revenue,03.DISPOSABLES
31-Oct-2017,7004174,8.94,GM PACKAGING (UK) LTD,312623,Commissioning & Investment,Children's & Education Services,103,Supplies and Services,504,Equipment,5023,Revenue,03.DISPOSABLES
31-Oct-2017,7004174,8.94,GM PACKAGING (UK) LTD,312623,Commissioning & Investment,Children's & Education Services,103,Supplies and Services,504,Equipment,5023,Revenue,03.DISPOSABLES
31-Oct-2017,7004174,28.98,GM PACKAGING (UK) LTD,312623,Commissioning & Investment,Children's & Education Services,103,Supplies and Services,504,Equipment,5023,Revenue,03.DISPOSABLES
31-Oct-2017,7004174,27.46,GM PACKAGING (UK) LTD,312623,Commissioning & Investment,Children's & Education Services,103,Supplies and Services,504,Equipment,5023,Revenue,03.DISPOSABLES
31-Oct-2017,7004174,29.36,GM PACKAGING (UK) LTD,312623,Commissioning & Investment,Children's & Education Services,103,Supplies and Services,504,Equipment,5023,Revenue,03.DISPOSABLES
31-Oct-2017,7004174,27.27,GM PACKAGING (UK) LTD,312623,"Environment, Housing & Leisure",Cultural & Related Services,104,Supplies and Services,504,Equipment,5023,Revenue,03.DISPOSABLES
31-Oct-2017,7004174,85.61,GM PACKAGING (UK) LTD,312623,Commissioning & Investment,Children's & Education Services,103,Supplies and Services,504,Equipment,5023,Revenue,03.DISPOSABLES
31-Oct-2017,7004174,11.78,GM PACKAGING (UK) LTD,312623,Commissioning & Investment,Children's & Education Services,103,Supplies and Services,504,Equipment,5023,Revenue,03.DISPOSABLES
31-Oct-2017,7004174,9.24,GM PACKAGING (UK) LTD,312623,Commissioning & Investment,Children's & Education Services,103,Supplies and Services,504,Equipment,5023,Revenue,03.DISPOSABLES
31-Oct-2017,7004174,30.00,GM PACKAGING (UK) LTD,312623,Commissioning & Investment,Children's & Education Services,103,Supplies and Services,504,Equipment,5023,Revenue,03.DISPOSABLES
31-Oct-2017,7004174,49.18,GM PACKAGING (UK) LTD,312623,Commissioning & Investment,Children's & Education Services,103,Supplies and Services,504,Equipment,5023,Revenue,03.DISPOSABLES
31-Oct-2017,7004174,384.63,GM PACKAGING (UK) LTD,312623,Commissioning & Investment,Children's & Education Services,103,Supplies and Services,504,Equipment,5023,Revenue,03.DISPOSABLES
31-Oct-2017,7004175,10.00,WILKO RETAIL LIMITED,280813,"Environment, Housing & Leisure",Environmental & Regulatory Services,105,Supplies and Services,504,Equipment,5023,Revenue,00.REDECORATION GRANTS
31-Oct-2017,7004175,29.21,WILKO RETAIL LIMITED,280813,Housing Revenue Account,Housing Revenue Account,N/A,Supplies and Services,504,Equipment,5023,Revenue,00.REDECORATION GRANTS
31-Oct-2017,7004175,11.46,WILKO RETAIL LIMITED,280813,"Environment, Housing & Leisure",Environmental & Regulatory Services,105,Supplies and Services,504,Equipment,5023,Revenue,00.REDECORATION GRANTS
31-Oct-2017,7004175,6.67,WILKO RETAIL LIMITED,280813,"Environment, Housing & Leisure",Environmental & Regulatory Services,105,Supplies and Services,504,Equipment,5023,Revenue,00.REDECORATION GRANTS
31-Oct-2017,7004175,6.58,WILKO RETAIL LIMITED,280813,"Environment, Housing & Leisure",Environmental & Regulatory Services,105,Supplies and Services,504,Equipment,5023,Revenue,00.REDECORATION GRANTS
31-Oct-2017,7004175,19.21,WILKO RETAIL LIMITED,280813,"Health, Education, Care and Safeguarding",Children's & Education Services,103,Supplies and Services,504,Equipment,5023,Revenue,00.REDECORATION GRANTS
31-Oct-2017,7004175,28.33,WILKO RETAIL LIMITED,280813,Housing Revenue Account,Housing Revenue Account,N/A,Supplies and Services,504,Equipment,5023,Revenue,00.REDECORATION GRANTS
31-Oct-2017,7004176,105.00,MONEY CLAIM ONLINE,371608,Housing Revenue Account,Housing Services,108,Supplies and Services,504,Members' Allowances,5029,Revenue,16.LEGAL SERVICES
31-Oct-2017,7004176,70.00,MONEY CLAIM ONLINE,371608,Housing Revenue Account,Housing Services,108,Supplies and Services,504,Miscellaneous Expenses,5034,Revenue,16.LEGAL SERVICES
31-Oct-2017,7004176,25.00,MONEY CLAIM ONLINE,371608,Housing Revenue Account,Housing Services,108,Supplies and Services,504,Miscellaneous Expenses,5034,Revenue,16.LEGAL SERVICES
31-Oct-2017,7004176,60.00,MONEY CLAIM ONLINE,371608,Housing Revenue Account,Housing Services,108,Supplies and Services,504,Miscellaneous Expenses,5034,Revenue,16.LEGAL SERVICES
31-Oct-2017,7004177,115.83,WHITLEY BAY CARPET CENTRE LTD,363266,"Health, Education, Care and Safeguarding",Children's & Education Services,103,Supplies and Services,504,"Printing, Stationery and General Office Expenses",5026,Revenue,10.BLINDS CARPETS CURTAIN
31-Oct-2017,7004178,5.49,FASTHOSTS INTERNET LIMITED,367002,"Health, Education, Care and Safeguarding",Children's & Education Services,103,Supplies and Services,504,Communications & Computing,5028,Revenue,15.SOFTWARE
31-Oct-2017,7004178,5.49,FASTHOSTS INTERNET LIMITED,367002,"Health, Education, Care and Safeguarding",Children's & Education Services,103,Supplies and Services,504,Communications & Computing,5028,Revenue,15.SOFTWARE
31-Oct-2017,7004178,5.49,FASTHOSTS INTERNET LIMITED,367002,"Health, Education, Care and Safeguarding",Children's & Education Services,103,Supplies and Services,504,Communications & Computing,5028,Revenue,15.SOFTWARE
31-Oct-2017,7004178,5.49,FASTHOSTS INTERNET LIMITED,367002,"Health, Education, Care and Safeguarding",Children's & Education Services,103,Supplies and Services,504,Communications & Computing,5028,Revenue,15.SOFTWARE
31-Oct-2017,7004178,1.99,FASTHOSTS INTERNET LIMITED,367002,"Health, Education, Care and Safeguarding",Children's & Education Services,103,Supplies and Services,504,Communications & Computing,5028,Revenue,15.SOFTWARE
31-Oct-2017,7004178,1.49,FASTHOSTS INTERNET LIMITED,367002,"Health, Education, Care and Safeguarding",Children's & Education Services,103,Supplies and Services,504,Communications & Computing,5028,Revenue,15.SOFTWARE
31-Oct-2017,7004178,6.99,FASTHOSTS INTERNET LIMITED,367002,"Health, Education, Care and Safeguarding",Children's & Education Services,103,Supplies and Services,504,Communications & Computing,5028,Revenue,15.SOFTWARE
31-Oct-2017,7004178,1.49,FASTHOSTS INTERNET LIMITED,367002,"Health, Education, Care and Safeguarding",Children's & Education Services,103,Supplies and Services,504,Communications & Computing,5028,Revenue,15.SOFTWARE
31-Oct-2017,7004178,13.98,FASTHOSTS INTERNET LIMITED,367002,"Health, Education, Care and Safeguarding",Children's & Education Services,103,Supplies and Services,504,Communications & Computing,5028,Revenue,15.SOFTWARE
31-Oct-2017,7004178,1.49,FASTHOSTS INTERNET LIMITED,367002,"Health, Education, Care and Safeguarding",Children's & Education Services,103,Supplies and Services,504,Communications & Computing,5028,Revenue,15.SOFTWARE
31-Oct-2017,7004178,6.99,FASTHOSTS INTERNET LIMITED,367002,"Health, Education, Care and Safeguarding",Children's & Education Services,103,Supplies and Services,504,Communications & Computing,5028,Revenue,15.SOFTWARE
31-Oct-2017,7004179,4.49,VIKING DIRECT,022334,"Environment, Housing & Leisure",Cultural & Related Services,104,Supplies and Services,504,"Printing, Stationery and General Office Expenses",5026,Revenue,23.STATIONERY
31-Oct-2017,7004179,27.98,VIKING DIRECT,022334,"Health, Education, Care and Safeguarding",Children's & Education Services,103,Supplies and Services,504,Miscellaneous Expenses,5034,Revenue,23.STATIONERY
31-Oct-2017,7004179,12.98,VIKING DIRECT,022334,"Environment, Housing & Leisure",Cultural & Related Services,104,Supplies and Services,504,"Printing, Stationery and General Office Expenses",5026,Revenue,23.STATIONERY
31-Oct-2017,7004179,5.49,VIKING DIRECT,022334,"Environment, Housing & Leisure",Cultural & Related Services,104,Supplies and Services,504,"Printing, Stationery and General Office Expenses",5026,Revenue,23.STATIONERY
31-Oct-2017,7004179,8.99,VIKING DIRECT,022334,"Environment, Housing & Leisure",Cultural & Related Services,104,Supplies and Services,504,"Printing, Stationery and General Office Expenses",5026,Revenue,23.STATIONERY
31-Oct-2017,7004179,5.49,VIKING DIRECT,022334,"Environment, Housing & Leisure",Cultural & Related Services,104,Supplies and Services,504,"Printing, Stationery and General Office Expenses",5026,Revenue,23.STATIONERY
31-Oct-2017,7004179,3.08,VIKING DIRECT,022334,"Environment, Housing & Leisure",Cultural & Related Services,104,Supplies and Services,504,"Printing, Stationery and General Office Expenses",5026,Revenue,23.STATIONERY
31-Oct-2017,7004180,24.00,NORTH TYNESIDE COUNCIL,102767,"Health, Education, Care and Safeguarding",Children's & Education Services,103,Third Party Payments,505,Other Establishments,5041,Revenue,00.PUBLIC SECTOR
31-Oct-2017,7004180,24.00,NORTH TYNESIDE COUNCIL,102767,"Health, Education, Care and Safeguarding",Children's & Education Services,103,Third Party Payments,505,Other Establishments,5041,Revenue,00.PUBLIC SECTOR
31-Oct-2017,7004180,88.52,NORTH TYNESIDE COUNCIL,102767,"Health, Education, Care and Safeguarding",Children's & Education Services,103,Third Party Payments,505,Other Establishments,5041,Revenue,00.PUBLIC SECTOR
31-Oct-2017,7004180,83.21,NORTH TYNESIDE COUNCIL,102767,"Health, Education, Care and Safeguarding",Children's & Education Services,103,Third Party Payments,505,Other Establishments,5041,Revenue,00.PUBLIC SECTOR
31-Oct-2017,7004180,40.00,NORTH TYNESIDE COUNCIL,102767,"Health, Education, Care and Safeguarding",Children's & Education Services,103,Third Party Payments,505,Other Establishments,5041,Revenue,00.PUBLIC SECTOR
31-Oct-2017,7004180,146.00,NORTH TYNESIDE COUNCIL,102767,"Health, Education, Care and Safeguarding",Children's & Education Services,103,Third Party Payments,505,Other Establishments,5041,Revenue,00.PUBLIC SECTOR
31-Oct-2017,7004180,40.00,NORTH TYNESIDE COUNCIL,102767,"Health, Education, Care and Safeguarding",Children's & Education Services,103,Third Party Payments,505,Other Establishments,5041,Revenue,00.PUBLIC SECTOR
31-Oct-2017,7004180,65.00,NORTH TYNESIDE COUNCIL,102767,"Health, Education, Care and Safeguarding",Children's & Education Services,103,Third Party Payments,505,Other Establishments,5041,Revenue,00.PUBLIC SECTOR
31-Oct-2017,7004180,40.00,NORTH TYNESIDE COUNCIL,102767,"Health, Education, Care and Safeguarding",Children's & Education Services,103,Third Party Payments,505,Other Establishments,5041,Revenue,00.PUBLIC SECTOR
31-Oct-2017,7004180,22.00,NORTH TYNESIDE COUNCIL,102767,"Health, Education, Care and Safeguarding",Children's & Education Services,103,Third Party Payments,505,Other Establishments,5041,Revenue,00.PUBLIC SECTOR
31-Oct-2017,7004180,15.00,NORTH TYNESIDE COUNCIL,102767,"Health, Education, Care and Safeguarding",Children's & Education Services,103,Third Party Payments,505,Other Establishments,5041,Revenue,00.PUBLIC SECTOR
31-Oct-2017,7004180,54.38,NORTH TYNESIDE COUNCIL,102767,"Health, Education, Care and Safeguarding",Children's & Education Services,103,Supplies and Services,504,Equipment,5023,Revenue,00.PUBLIC SECTOR
31-Oct-2017,7004180,22.00,NORTH TYNESIDE COUNCIL,102767,"Health, Education, Care and Safeguarding",Adult Social Care,101,Supplies and Services,504,Miscellaneous Expenses,5034,Revenue,00.PUBLIC SECTOR
31-Oct-2017,7004180,45.00,NORTH TYNESIDE COUNCIL,102767,"Health, Education, Care and Safeguarding",Children's & Education Services,103,Third Party Payments,505,Other Establishments,5041,Revenue,00.PUBLIC SECTOR
31-Oct-2017,7004181,93.42,IKEA LTD,231453,"Health, Education, Care and Safeguarding",Children's & Education Services,103,Supplies and Services,504,Equipment,5023,Revenue,10.HOUSEHOLD
31-Oct-2017,7004182,171.57,NORTHUMBRIAN WATER LIMITED,014360,"Health, Education, Care and Safeguarding",Children's & Education Services,103,Third Party Payments,505,Other Establishments,5041,Revenue,27.WATER
31-Oct-2017,7004182,91.19,NORTHUMBRIAN WATER LIMITED,014360,"Health, Education, Care and Safeguarding",Children's & Education Services,103,Third Party Payments,505,Other Establishments,5041,Revenue,27.WATER
31-Oct-2017,7004182,32.61,NORTHUMBRIAN WATER LIMITED,014360,"Health, Education, Care and Safeguarding",Children's & Education Services,103,Third Party Payments,505,Other Establishments,5041,Revenue,27.WATER
31-Oct-2017,7004182,112.46,NORTHUMBRIAN WATER LIMITED,014360,"Health, Education, Care and Safeguarding",Children's & Education Services,103,Third Party Payments,505,Other Establishments,5041,Revenue,27.WATER
31-Oct-2017,7004182,69.92,NORTHUMBRIAN WATER LIMITED,014360,"Health, Education, Care and Safeguarding",Children's & Education Services,103,Third Party Payments,505,Other Establishments,5041,Revenue,27.WATER
31-Oct-2017,7004182,37.33,NORTHUMBRIAN WATER LIMITED,014360,"Health, Education, Care and Safeguarding",Children's & Education Services,103,Third Party Payments,505,Other Establishments,5041,Revenue,27.WATER
31-Oct-2017,7004183,80.00,H M COURT SERVICES,379509,Housing Revenue Account,Housing Revenue Account,N/A,Supplies and Services,504,Expenses,5030,Revenue,00.NON INFLUENCIBLE
31-Oct-2017,7004183,60.00,H M COURT SERVICES,379509,Housing Revenue Account,Housing Revenue Account,N/A,Supplies and Services,504,Expenses,5030,Revenue,00.NON INFLUENCIBLE
31-Oct-2017,7004183,105.00,H M COURT SERVICES,379509,"Health, Education, Care and Safeguarding",Adult Social Care,101,Supplies and Services,504,Miscellaneous Expenses,5034,Revenue,00.NON INFLUENCIBLE
31-Oct-2017,7004183,60.00,H M COURT SERVICES,379509,Housing Revenue Account,Housing Revenue Account,N/A,Supplies and Services,504,Expenses,5030,Revenue,00.NON INFLUENCIBLE
31-Oct-2017,7004184,16.10,POUNDWORLD,381648,Housing Revenue Account,Adult Social Care,101,Supplies and Services,504,Equipment,5023,Revenue,10.BLINDS CARPETS CURTAIN
31-Oct-2017,7004185,76.20,HARTLEY HIRE,382623,"Health, Education, Care and Safeguarding",Children's & Education Services,103,Premises-Related Expenditure,502,"Repairs, alterations and maintenance of buildings",5005,Revenue,01.HEAVY PLANT
31-Oct-2017,7004186,30.81,NEW LOOK,382612,"Health, Education, Care and Safeguarding",Children's & Education Services,103,Third Party Payments,505,Other Establishments,5041,Revenue,CLOTH ADULT
31-Oct-2017,7004187,350.00,WM MORRISON SUPERMARKETS PLC,013562,"Environment, Housing & Leisure",Cultural & Related Services,104,Supplies and Services,504,Miscellaneous Expenses,5034,Revenue,03.GROCERIES & PROVISIONS
31-Oct-2017,7004187,10.50,WM MORRISON SUPERMARKETS PLC,013562,Commissioning & Investment,Children's & Education Services,103,Supplies and Services,504,Equipment,5023,Revenue,03.GROCERIES & PROVISIONS
31-Oct-2017,7004187,30.48,WM MORRISON SUPERMARKETS PLC,013562,"Health, Education, Care and Safeguarding",Children's & Education Services,103,Supplies and Services,504,Equipment,5023,Revenue,03.GROCERIES & PROVISIONS
31-Oct-2017,7004187,27.29,WM MORRISON SUPERMARKETS PLC,013562,Commissioning & Investment,Children's & Education Services,103,Supplies and Services,504,Equipment,5023,Revenue,03.GROCERIES & PROVISIONS
31-Oct-2017,7004187,17.55,WM MORRISON SUPERMARKETS PLC,013562,Commissioning & Investment,Children's & Education Services,103,Supplies and Services,504,Equipment,5023,Revenue,03.GROCERIES & PROVISIONS
31-Oct-2017,7004187,11.12,WM MORRISON SUPERMARKETS PLC,013562,"Health, Education, Care and Safeguarding",Children's & Education Services,103,Supplies and Services,504,Catering,5024,Revenue,03.GROCERIES & PROVISIONS
31-Oct-2017,7004187,4.67,WM MORRISON SUPERMARKETS PLC,013562,"Environment, Housing & Leisure",Cultural & Related Services,104,Supplies and Services,504,Miscellaneous Expenses,5034,Revenue,03.GROCERIES & PROVISIONS
31-Oct-2017,7004187,4.62,WM MORRISON SUPERMARKETS PLC,013562,"Health, Education, Care and Safeguarding",Children's & Education Services,103,Supplies and Services,504,Miscellaneous Expenses,5034,Revenue,03.GROCERIES & PROVISIONS
31-Oct-2017,7004187,17.72,WM MORRISON SUPERMARKETS PLC,013562,"Environment, Housing & Leisure",Cultural & Related Services,104,Supplies and Services,504,Equipment,5023,Revenue,03.GROCERIES & PROVISIONS
31-Oct-2017,7004187,21.75,WM MORRISON SUPERMARKETS PLC,013562,"Environment, Housing & Leisure",Cultural & Related Services,104,Supplies and Services,504,Miscellaneous Expenses,5034,Revenue,03.GROCERIES & PROVISIONS
31-Oct-2017,7004187,46.58,WM MORRISON SUPERMARKETS PLC,013562,Commissioning & Investment,Children's & Education Services,103,Supplies and Services,504,Equipment,5023,Revenue,03.GROCERIES & PROVISIONS
31-Oct-2017,7004187,7.62,WM MORRISON SUPERMARKETS PLC,013562,"Health, Education, Care and Safeguarding",Children's & Education Services,103,Supplies and Services,504,Equipment,5023,Revenue,03.GROCERIES & PROVISIONS
31-Oct-2017,7004188,13.21,TESCO STORES LTD,336585,"Health, Education, Care and Safeguarding",Children's & Education Services,103,Supplies and Services,504,Equipment,5023,Revenue,03.GROCERIES & PROVISIONS
31-Oct-2017,7004188,12.49,TESCO STORES LTD,336585,"Health, Education, Care and Safeguarding",Children's & Education Services,103,Supplies and Services,504,Equipment,5023,Revenue,03.GROCERIES & PROVISIONS
31-Oct-2017,7004188,124.17,TESCO STORES LTD,336585,"Health, Education, Care and Safeguarding",Children's & Education Services,103,Third Party Payments,505,Other Establishments,5041,Revenue,03.GROCERIES & PROVISIONS
31-Oct-2017,7004188,5.00,TESCO STORES LTD,336585,"Health, Education, Care and Safeguarding",Children's & Education Services,103,Third Party Payments,505,Other Establishments,5041,Revenue,03.GROCERIES & PROVISIONS
31-Oct-2017,7004188,3.94,TESCO STORES LTD,336585,Corporate Strategy,Children's & Education Services,103,Supplies and Services,504,Catering,5024,Revenue,03.GROCERIES & PROVISIONS
31-Oct-2017,7004188,251.25,TESCO STORES LTD,336585,"Health, Education, Care and Safeguarding",Children's & Education Services,103,Third Party Payments,505,Other Establishments,5041,Revenue,03.GROCERIES & PROVISIONS
31-Oct-2017,7004189,59.16,HOMEBASE LIMITED,329060,"Health, Education, Care and Safeguarding",Children's & Education Services,103,Supplies and Services,504,Miscellaneous Expenses,5034,Revenue,BUILD GEN
31-Oct-2017,7004190,19.68,AF BLAKEMORE & SON LIMITED T/A LOWRIES CASH & CARRY,332872,Commissioning & Investment,Children's & Education Services,103,Supplies and Services,504,Equipment,5023,Revenue,03.GROCERIES & PROVISIONS
31-Oct-2017,7004190,2.56,AF BLAKEMORE & SON LIMITED T/A LOWRIES CASH & CARRY,332872,Commissioning & Investment,Children's & Education Services,103,Supplies and Services,504,Equipment,5023,Revenue,03.GROCERIES & PROVISIONS
31-Oct-2017,7004190,4.48,AF BLAKEMORE & SON LIMITED T/A LOWRIES CASH & CARRY,332872,Commissioning & Investment,Children's & Education Services,103,Supplies and Services,504,Equipment,5023,Revenue,03.GROCERIES & PROVISIONS
31-Oct-2017,7004190,2.96,AF BLAKEMORE & SON LIMITED T/A LOWRIES CASH & CARRY,332872,Commissioning & Investment,Children's & Education Services,103,Supplies and Services,504,Equipment,5023,Revenue,03.GROCERIES & PROVISIONS
31-Oct-2017,7004190,8.98,AF BLAKEMORE & SON LIMITED T/A LOWRIES CASH & CARRY,332872,Commissioning & Investment,Children's & Education Services,103,Supplies and Services,504,Equipment,5023,Revenue,03.GROCERIES & PROVISIONS
31-Oct-2017,7004190,-7.00,AF BLAKEMORE & SON LIMITED T/A LOWRIES CASH & CARRY,332872,Commissioning & Investment,Children's & Education Services,103,Supplies and Services,504,Equipment,5023,Revenue,03.GROCERIES & PROVISIONS
31-Oct-2017,7004190,13.88,AF BLAKEMORE & SON LIMITED T/A LOWRIES CASH & CARRY,332872,Commissioning & Investment,Children's & Education Services,103,Supplies and Services,504,Equipment,5023,Revenue,03.GROCERIES & PROVISIONS
31-Oct-2017,7004190,15.54,AF BLAKEMORE & SON LIMITED T/A LOWRIES CASH & CARRY,332872,Commissioning & Investment,Children's & Education Services,103,Supplies and Services,504,Equipment,5023,Revenue,03.GROCERIES & PROVISIONS
31-Oct-2017,7004190,1.54,AF BLAKEMORE & SON LIMITED T/A LOWRIES CASH & CARRY,332872,Commissioning & Investment,Children's & Education Services,103,Supplies and Services,504,Equipment,5023,Revenue,03.GROCERIES & PROVISIONS
31-Oct-2017,7004190,8.00,AF BLAKEMORE & SON LIMITED T/A LOWRIES CASH & CARRY,332872,Commissioning & Investment,Children's & Education Services,103,Supplies and Services,504,Equipment,5023,Revenue,03.GROCERIES & PROVISIONS
31-Oct-2017,7004190,8.37,AF BLAKEMORE & SON LIMITED T/A LOWRIES CASH & CARRY,332872,Commissioning & Investment,Children's & Education Services,103,Supplies and Services,504,Equipment,5023,Revenue,03.GROCERIES & PROVISIONS
31-Oct-2017,7004190,7.70,AF BLAKEMORE & SON LIMITED T/A LOWRIES CASH & CARRY,332872,Commissioning & Investment,Children's & Education Services,103,Supplies and Services,504,Equipment,5023,Revenue,03.GROCERIES & PROVISIONS
31-Oct-2017,7004190,12.46,AF BLAKEMORE & SON LIMITED T/A LOWRIES CASH & CARRY,332872,Commissioning & Investment,Children's & Education Services,103,Supplies and Services,504,Equipment,5023,Revenue,03.GROCERIES & PROVISIONS
31-Oct-2017,7004190,8.80,AF BLAKEMORE & SON LIMITED T/A LOWRIES CASH & CARRY,332872,Commissioning & Investment,Children's & Education Services,103,Supplies and Services,504,Equipment,5023,Revenue,03.GROCERIES & PROVISIONS
31-Oct-2017,7004190,52.02,AF BLAKEMORE & SON LIMITED T/A LOWRIES CASH & CARRY,332872,Commissioning & Investment,Children's & Education Services,103,Supplies and Services,504,Equipment,5023,Revenue,03.GROCERIES & PROVISIONS
31-Oct-2017,7004190,69.84,AF BLAKEMORE & SON LIMITED T/A LOWRIES CASH & CARRY,332872,Commissioning & Investment,Children's & Education Services,103,Supplies and Services,504,Equipment,5023,Revenue,03.GROCERIES & PROVISIONS
31-Oct-2017,7004190,53.76,AF BLAKEMORE & SON LIMITED T/A LOWRIES CASH & CARRY,332872,Commissioning & Investment,Children's & Education Services,103,Supplies and Services,504,Equipment,5023,Revenue,03.GROCERIES & PROVISIONS
31-Oct-2017,7004190,1.47,AF BLAKEMORE & SON LIMITED T/A LOWRIES CASH & CARRY,332872,Commissioning & Investment,Children's & Education Services,103,Supplies and Services,504,Equipment,5023,Revenue,03.GROCERIES & PROVISIONS
31-Oct-2017,7004190,-13.99,AF BLAKEMORE & SON LIMITED T/A LOWRIES CASH & CARRY,332872,Commissioning & Investment,Children's & Education Services,103,Supplies and Services,504,Equipment,5023,Revenue,03.GROCERIES & PROVISIONS
31-Oct-2017,7004190,10.30,AF BLAKEMORE & SON LIMITED T/A LOWRIES CASH & CARRY,332872,Commissioning & Investment,Children's & Education Services,103,Supplies and Services,504,Equipment,5023,Revenue,03.GROCERIES & PROVISIONS
31-Oct-2017,7004190,7.08,AF BLAKEMORE & SON LIMITED T/A LOWRIES CASH & CARRY,332872,Commissioning & Investment,Children's & Education Services,103,Supplies and Services,504,Equipment,5023,Revenue,03.GROCERIES & PROVISIONS
31-Oct-2017,7004190,2.56,AF BLAKEMORE & SON LIMITED T/A LOWRIES CASH & CARRY,332872,Commissioning & Investment,Children's & Education Services,103,Supplies and Services,504,Equipment,5023,Revenue,03.GROCERIES & PROVISIONS
31-Oct-2017,7004190,5.70,AF BLAKEMORE & SON LIMITED T/A LOWRIES CASH & CARRY,332872,Commissioning & Investment,Children's & Education Services,103,Supplies and Services,504,Equipment,5023,Revenue,03.GROCERIES & PROVISIONS
31-Oct-2017,7004190,13.41,AF BLAKEMORE & SON LIMITED T/A LOWRIES CASH & CARRY,332872,Commissioning & Investment,Children's & Education Services,103,Supplies and Services,504,Equipment,5023,Revenue,03.GROCERIES & PROVISIONS
31-Oct-2017,7004190,6.58,AF BLAKEMORE & SON LIMITED T/A LOWRIES CASH & CARRY,332872,Commissioning & Investment,Children's & Education Services,103,Supplies and Services,504,Equipment,5023,Revenue,03.GROCERIES & PROVISIONS
31-Oct-2017,7004190,25.75,AF BLAKEMORE & SON LIMITED T/A LOWRIES CASH & CARRY,332872,Commissioning & Investment,Children's & Education Services,103,Supplies and Services,504,Equipment,5023,Revenue,03.GROCERIES & PROVISIONS
31-Oct-2017,7004190,1.72,AF BLAKEMORE & SON LIMITED T/A LOWRIES CASH & CARRY,332872,Commissioning & Investment,Children's & Education Services,103,Supplies and Services,504,Equipment,5023,Revenue,03.GROCERIES & PROVISIONS
31-Oct-2017,7004190,36.20,AF BLAKEMORE & SON LIMITED T/A LOWRIES CASH & CARRY,332872,Commissioning & Investment,Children's & Education Services,103,Supplies and Services,504,Equipment,5023,Revenue,03.GROCERIES & PROVISIONS
31-Oct-2017,7004190,7.39,AF BLAKEMORE & SON LIMITED T/A LOWRIES CASH & CARRY,332872,Commissioning & Investment,Children's & Education Services,103,Supplies and Services,504,Equipment,5023,Revenue,03.GROCERIES & PROVISIONS
31-Oct-2017,7004190,8.20,AF BLAKEMORE & SON LIMITED T/A LOWRIES CASH & CARRY,332872,Commissioning & Investment,Children's & Education Services,103,Supplies and Services,504,Equipment,5023,Revenue,03.GROCERIES & PROVISIONS
31-Oct-2017,7004190,2.20,AF BLAKEMORE & SON LIMITED T/A LOWRIES CASH & CARRY,332872,Commissioning & Investment,Children's & Education Services,103,Supplies and Services,504,Equipment,5023,Revenue,03.GROCERIES & PROVISIONS
31-Oct-2017,7004190,27.98,AF BLAKEMORE & SON LIMITED T/A LOWRIES CASH & CARRY,332872,Commissioning & Investment,Children's & Education Services,103,Supplies and Services,504,Equipment,5023,Revenue,03.GROCERIES & PROVISIONS
31-Oct-2017,7004190,6.58,AF BLAKEMORE & SON LIMITED T/A LOWRIES CASH & CARRY,332872,Commissioning & Investment,Children's & Education Services,103,Supplies and Services,504,Equipment,5023,Revenue,03.GROCERIES & PROVISIONS
31-Oct-2017,7004190,8.16,AF BLAKEMORE & SON LIMITED T/A LOWRIES CASH & CARRY,332872,Commissioning & Investment,Children's & Education Services,103,Supplies and Services,504,Equipment,5023,Revenue,03.GROCERIES & PROVISIONS
31-Oct-2017,7004190,10.88,AF BLAKEMORE & SON LIMITED T/A LOWRIES CASH & CARRY,332872,Commissioning & Investment,Children's & Education Services,103,Supplies and Services,504,Equipment,5023,Revenue,03.GROCERIES & PROVISIONS
31-Oct-2017,7004190,4.50,AF BLAKEMORE & SON LIMITED T/A LOWRIES CASH & CARRY,332872,Commissioning & Investment,Children's & Education Services,103,Supplies and Services,504,Equipment,5023,Revenue,03.GROCERIES & PROVISIONS
31-Oct-2017,7004190,24.60,AF BLAKEMORE & SON LIMITED T/A LOWRIES CASH & CARRY,332872,Commissioning & Investment,Children's & Education Services,103,Supplies and Services,504,Equipment,5023,Revenue,03.GROCERIES & PROVISIONS
31-Oct-2017,7004190,2.97,AF BLAKEMORE & SON LIMITED T/A LOWRIES CASH & CARRY,332872,Commissioning & Investment,Children's & Education Services,103,Supplies and Services,504,Equipment,5023,Revenue,03.GROCERIES & PROVISIONS
31-Oct-2017,7004190,1.52,AF BLAKEMORE & SON LIMITED T/A LOWRIES CASH & CARRY,332872,Commissioning & Investment,Children's & Education Services,103,Supplies and Services,504,Equipment,5023,Revenue,03.GROCERIES & PROVISIONS
31-Oct-2017,7004190,11.27,AF BLAKEMORE & SON LIMITED T/A LOWRIES CASH & CARRY,332872,Commissioning & Investment,Children's & Education Services,103,Supplies and Services,504,Equipment,5023,Revenue,03.GROCERIES & PROVISIONS
31-Oct-2017,7004190,13.53,AF BLAKEMORE & SON LIMITED T/A LOWRIES CASH & CARRY,332872,Commissioning & Investment,Children's & Education Services,103,Supplies and Services,504,Equipment,5023,Revenue,03.GROCERIES & PROVISIONS
31-Oct-2017,7004190,4.22,AF BLAKEMORE & SON LIMITED T/A LOWRIES CASH & CARRY,332872,Commissioning & Investment,Children's & Education Services,103,Supplies and Services,504,Equipment,5023,Revenue,03.GROCERIES & PROVISIONS
31-Oct-2017,7004190,8.90,AF BLAKEMORE & SON LIMITED T/A LOWRIES CASH & CARRY,332872,Commissioning & Investment,Children's & Education Services,103,Supplies and Services,504,Equipment,5023,Revenue,03.GROCERIES & PROVISIONS
31-Oct-2017,7004190,8.40,AF BLAKEMORE & SON LIMITED T/A LOWRIES CASH & CARRY,332872,Commissioning & Investment,Children's & Education Services,103,Supplies and Services,504,Equipment,5023,Revenue,03.GROCERIES & PROVISIONS
31-Oct-2017,7004190,12.30,AF BLAKEMORE & SON LIMITED T/A LOWRIES CASH & CARRY,332872,Commissioning & Investment,Children's & Education Services,103,Supplies and Services,504,Equipment,5023,Revenue,03.GROCERIES & PROVISIONS
31-Oct-2017,7004190,6.64,AF BLAKEMORE & SON LIMITED T/A LOWRIES CASH & CARRY,332872,Commissioning & Investment,Children's & Education Services,103,Supplies and Services,504,Equipment,5023,Revenue,03.GROCERIES & PROVISIONS
31-Oct-2017,7004190,38.40,AF BLAKEMORE & SON LIMITED T/A LOWRIES CASH & CARRY,332872,Commissioning & Investment,Children's & Education Services,103,Supplies and Services,504,Equipment,5023,Revenue,03.GROCERIES & PROVISIONS
31-Oct-2017,7004190,8.39,AF BLAKEMORE & SON LIMITED T/A LOWRIES CASH & CARRY,332872,Commissioning & Investment,Children's & Education Services,103,Supplies and Services,504,Equipment,5023,Revenue,03.GROCERIES & PROVISIONS
31-Oct-2017,7004190,22.29,AF BLAKEMORE & SON LIMITED T/A LOWRIES CASH & CARRY,332872,Commissioning & Investment,Children's & Education Services,103,Supplies and Services,504,Equipment,5023,Revenue,03.GROCERIES & PROVISIONS
31-Oct-2017,7004190,24.28,AF BLAKEMORE & SON LIMITED T/A LOWRIES CASH & CARRY,332872,Commissioning & Investment,Children's & Education Services,103,Supplies and Services,504,Equipment,5023,Revenue,03.GROCERIES & PROVISIONS
31-Oct-2017,7004190,11.28,AF BLAKEMORE & SON LIMITED T/A LOWRIES CASH & CARRY,332872,Commissioning & Investment,Children's & Education Services,103,Supplies and Services,504,Equipment,5023,Revenue,03.GROCERIES & PROVISIONS
31-Oct-2017,7004190,56.34,AF BLAKEMORE & SON LIMITED T/A LOWRIES CASH & CARRY,332872,Commissioning & Investment,Children's & Education Services,103,Supplies and Services,504,Equipment,5023,Revenue,03.GROCERIES & PROVISIONS
31-Oct-2017,7004190,7.39,AF BLAKEMORE & SON LIMITED T/A LOWRIES CASH & CARRY,332872,Commissioning & Investment,Children's & Education Services,103,Supplies and Services,504,Equipment,5023,Revenue,03.GROCERIES & PROVISIONS
31-Oct-2017,7004190,-3.58,AF BLAKEMORE & SON LIMITED T/A LOWRIES CASH & CARRY,332872,Commissioning & Investment,Children's & Education Services,103,Supplies and Services,504,Equipment,5023,Revenue,03.GROCERIES & PROVISIONS
31-Oct-2017,7004190,2.54,AF BLAKEMORE & SON LIMITED T/A LOWRIES CASH & CARRY,332872,Commissioning & Investment,Children's & Education Services,103,Supplies and Services,504,Equipment,5023,Revenue,03.GROCERIES & PROVISIONS
31-Oct-2017,7004190,12.46,AF BLAKEMORE & SON LIMITED T/A LOWRIES CASH & CARRY,332872,Commissioning & Investment,Children's & Education Services,103,Supplies and Services,504,Equipment,5023,Revenue,03.GROCERIES & PROVISIONS
31-Oct-2017,7004190,5.10,AF BLAKEMORE & SON LIMITED T/A LOWRIES CASH & CARRY,332872,Commissioning & Investment,Children's & Education Services,103,Supplies and Services,504,Equipment,5023,Revenue,03.GROCERIES & PROVISIONS
31-Oct-2017,7004190,9.36,AF BLAKEMORE & SON LIMITED T/A LOWRIES CASH & CARRY,332872,Commissioning & Investment,Children's & Education Services,103,Supplies and Services,504,Equipment,5023,Revenue,03.GROCERIES & PROVISIONS
31-Oct-2017,7004190,8.98,AF BLAKEMORE & SON LIMITED T/A LOWRIES CASH & CARRY,332872,Commissioning & Investment,Children's & Education Services,103,Supplies and Services,504,Equipment,5023,Revenue,03.GROCERIES & PROVISIONS
31-Oct-2017,7004190,3.69,AF BLAKEMORE & SON LIMITED T/A LOWRIES CASH & CARRY,332872,Commissioning & Investment,Children's & Education Services,103,Supplies and Services,504,Equipment,5023,Revenue,03.GROCERIES & PROVISIONS
31-Oct-2017,7004190,23.54,AF BLAKEMORE & SON LIMITED T/A LOWRIES CASH & CARRY,332872,Commissioning & Investment,Children's & Education Services,103,Supplies and Services,504,Equipment,5023,Revenue,03.GROCERIES & PROVISIONS
31-Oct-2017,7004190,9.00,AF BLAKEMORE & SON LIMITED T/A LOWRIES CASH & CARRY,332872,Commissioning & Investment,Children's & Education Services,103,Supplies and Services,504,Equipment,5023,Revenue,03.GROCERIES & PROVISIONS
31-Oct-2017,7004190,2.50,AF BLAKEMORE & SON LIMITED T/A LOWRIES CASH & CARRY,332872,Commissioning & Investment,Children's & Education Services,103,Supplies and Services,504,Equipment,5023,Revenue,03.GROCERIES & PROVISIONS
31-Oct-2017,7004190,3.12,AF BLAKEMORE & SON LIMITED T/A LOWRIES CASH & CARRY,332872,Commissioning & Investment,Children's & Education Services,103,Supplies and Services,504,Equipment,5023,Revenue,03.GROCERIES & PROVISIONS
31-Oct-2017,7004190,9.24,AF BLAKEMORE & SON LIMITED T/A LOWRIES CASH & CARRY,332872,Commissioning & Investment,Children's & Education Services,103,Supplies and Services,504,Equipment,5023,Revenue,03.GROCERIES & PROVISIONS
31-Oct-2017,7004190,9.36,AF BLAKEMORE & SON LIMITED T/A LOWRIES CASH & CARRY,332872,Commissioning & Investment,Children's & Education Services,103,Supplies and Services,504,Equipment,5023,Revenue,03.GROCERIES & PROVISIONS
31-Oct-2017,7004190,8.00,AF BLAKEMORE & SON LIMITED T/A LOWRIES CASH & CARRY,332872,Commissioning & Investment,Children's & Education Services,103,Supplies and Services,504,Equipment,5023,Revenue,03.GROCERIES & PROVISIONS
31-Oct-2017,7004190,6.02,AF BLAKEMORE & SON LIMITED T/A LOWRIES CASH & CARRY,332872,Commissioning & Investment,Children's & Education Services,103,Supplies and Services,504,Equipment,5023,Revenue,03.GROCERIES & PROVISIONS
31-Oct-2017,7004190,4.92,AF BLAKEMORE & SON LIMITED T/A LOWRIES CASH & CARRY,332872,Commissioning & Investment,Children's & Education Services,103,Supplies and Services,504,Equipment,5023,Revenue,03.GROCERIES & PROVISIONS
31-Oct-2017,7004190,11.20,AF BLAKEMORE & SON LIMITED T/A LOWRIES CASH & CARRY,332872,Commissioning & Investment,Children's & Education Services,103,Supplies and Services,504,Equipment,5023,Revenue,03.GROCERIES & PROVISIONS
31-Oct-2017,7004190,4.98,AF BLAKEMORE & SON LIMITED T/A LOWRIES CASH & CARRY,332872,Commissioning & Investment,Children's & Education Services,103,Supplies and Services,504,Equipment,5023,Revenue,03.GROCERIES & PROVISIONS
31-Oct-2017,7004190,2.79,AF BLAKEMORE & SON LIMITED T/A LOWRIES CASH & CARRY,332872,Commissioning & Investment,Children's & Education Services,103,Supplies and Services,504,Equipment,5023,Revenue,03.GROCERIES & PROVISIONS
31-Oct-2017,7004190,12.82,AF BLAKEMORE & SON LIMITED T/A LOWRIES CASH & CARRY,332872,Commissioning & Investment,Children's & Education Services,103,Supplies and Services,504,Equipment,5023,Revenue,03.GROCERIES & PROVISIONS
31-Oct-2017,7004190,23.54,AF BLAKEMORE & SON LIMITED T/A LOWRIES CASH & CARRY,332872,Commissioning & Investment,Children's & Education Services,103,Supplies and Services,504,Equipment,5023,Revenue,03.GROCERIES & PROVISIONS
31-Oct-2017,7004190,1.51,AF BLAKEMORE & SON LIMITED T/A LOWRIES CASH & CARRY,332872,Commissioning & Investment,Children's & Education Services,103,Supplies and Services,504,Equipment,5023,Revenue,03.GROCERIES & PROVISIONS
31-Oct-2017,7004190,3.06,AF BLAKEMORE & SON LIMITED T/A LOWRIES CASH & CARRY,332872,Commissioning & Investment,Children's & Education Services,103,Supplies and Services,504,Equipment,5023,Revenue,03.GROCERIES & PROVISIONS
31-Oct-2017,7004190,9.84,AF BLAKEMORE & SON LIMITED T/A LOWRIES CASH & CARRY,332872,Commissioning & Investment,Children's & Education Services,103,Supplies and Services,504,Equipment,5023,Revenue,03.GROCERIES & PROVISIONS
31-Oct-2017,7004190,113.76,AF BLAKEMORE & SON LIMITED T/A LOWRIES CASH & CARRY,332872,Commissioning & Investment,Children's & Education Services,103,Supplies and Services,504,Equipment,5023,Revenue,03.GROCERIES & PROVISIONS
31-Oct-2017,7004190,3.77,AF BLAKEMORE & SON LIMITED T/A LOWRIES CASH & CARRY,332872,Commissioning & Investment,Children's & Education Services,103,Supplies and Services,504,Equipment,5023,Revenue,03.GROCERIES & PROVISIONS
31-Oct-2017,7004190,2.56,AF BLAKEMORE & SON LIMITED T/A LOWRIES CASH & CARRY,332872,Commissioning & Investment,Children's & Education Services,103,Supplies and Services,504,Equipment,5023,Revenue,03.GROCERIES & PROVISIONS
31-Oct-2017,7004190,2.56,AF BLAKEMORE & SON LIMITED T/A LOWRIES CASH & CARRY,332872,Commissioning & Investment,Children's & Education Services,103,Supplies and Services,504,Equipment,5023,Revenue,03.GROCERIES & PROVISIONS
31-Oct-2017,7004190,47.08,AF BLAKEMORE & SON LIMITED T/A LOWRIES CASH & CARRY,332872,Commissioning & Investment,Children's & Education Services,103,Supplies and Services,504,Equipment,5023,Revenue,03.GROCERIES & PROVISIONS
31-Oct-2017,7004190,26.40,AF BLAKEMORE & SON LIMITED T/A LOWRIES CASH & CARRY,332872,Commissioning & Investment,Children's & Education Services,103,Supplies and Services,504,Equipment,5023,Revenue,03.GROCERIES & PROVISIONS
31-Oct-2017,7004190,14.73,AF BLAKEMORE & SON LIMITED T/A LOWRIES CASH & CARRY,332872,Commissioning & Investment,Children's & Education Services,103,Supplies and Services,504,Equipment,5023,Revenue,03.GROCERIES & PROVISIONS
31-Oct-2017,7004190,40.59,AF BLAKEMORE & SON LIMITED T/A LOWRIES CASH & CARRY,332872,Commissioning & Investment,Children's & Education Services,103,Supplies and Services,504,Equipment,5023,Revenue,03.GROCERIES & PROVISIONS
31-Oct-2017,7004190,8.86,AF BLAKEMORE & SON LIMITED T/A LOWRIES CASH & CARRY,332872,Commissioning & Investment,Children's & Education Services,103,Supplies and Services,504,Equipment,5023,Revenue,03.GROCERIES & PROVISIONS
31-Oct-2017,7004190,10.26,AF BLAKEMORE & SON LIMITED T/A LOWRIES CASH & CARRY,332872,Commissioning & Investment,Children's & Education Services,103,Supplies and Services,504,Equipment,5023,Revenue,03.GROCERIES & PROVISIONS
31-Oct-2017,7004190,7.20,AF BLAKEMORE & SON LIMITED T/A LOWRIES CASH & CARRY,332872,Commissioning & Investment,Children's & Education Services,103,Supplies and Services,504,Equipment,5023,Revenue,03.GROCERIES & PROVISIONS
31-Oct-2017,7004190,8.15,AF BLAKEMORE & SON LIMITED T/A LOWRIES CASH & CARRY,332872,Commissioning & Investment,Children's & Education Services,103,Supplies and Services,504,Equipment,5023,Revenue,03.GROCERIES & PROVISIONS
31-Oct-2017,7004190,2.20,AF BLAKEMORE & SON LIMITED T/A LOWRIES CASH & CARRY,332872,Commissioning & Investment,Children's & Education Services,103,Supplies and Services,504,Equipment,5023,Revenue,03.GROCERIES & PROVISIONS
31-Oct-2017,7004190,1.79,AF BLAKEMORE & SON LIMITED T/A LOWRIES CASH & CARRY,332872,Commissioning & Investment,Children's & Education Services,103,Supplies and Services,504,Equipment,5023,Revenue,03.GROCERIES & PROVISIONS
31-Oct-2017,7004190,10.30,AF BLAKEMORE & SON LIMITED T/A LOWRIES CASH & CARRY,332872,Commissioning & Investment,Children's & Education Services,103,Supplies and Services,504,Equipment,5023,Revenue,03.GROCERIES & PROVISIONS
31-Oct-2017,7004190,1.27,AF BLAKEMORE & SON LIMITED T/A LOWRIES CASH & CARRY,332872,Commissioning & Investment,Children's & Education Services,103,Supplies and Services,504,Equipment,5023,Revenue,03.GROCERIES & PROVISIONS
31-Oct-2017,7004190,9.56,AF BLAKEMORE & SON LIMITED T/A LOWRIES CASH & CARRY,332872,Commissioning & Investment,Children's & Education Services,103,Supplies and Services,504,Equipment,5023,Revenue,03.GROCERIES & PROVISIONS
31-Oct-2017,7004190,3.68,AF BLAKEMORE & SON LIMITED T/A LOWRIES CASH & CARRY,332872,Commissioning & Investment,Children's & Education Services,103,Supplies and Services,504,Equipment,5023,Revenue,03.GROCERIES & PROVISIONS
31-Oct-2017,7004190,0.74,AF BLAKEMORE & SON LIMITED T/A LOWRIES CASH & CARRY,332872,Commissioning & Investment,Children's & Education Services,103,Supplies and Services,504,Equipment,5023,Revenue,03.GROCERIES & PROVISIONS
31-Oct-2017,7004190,12.38,AF BLAKEMORE & SON LIMITED T/A LOWRIES CASH & CARRY,332872,Commissioning & Investment,Children's & Education Services,103,Supplies and Services,504,Equipment,5023,Revenue,03.GROCERIES & PROVISIONS
31-Oct-2017,7004190,20.52,AF BLAKEMORE & SON LIMITED T/A LOWRIES CASH & CARRY,332872,Commissioning & Investment,Children's & Education Services,103,Supplies and Services,504,Equipment,5023,Revenue,03.GROCERIES & PROVISIONS
31-Oct-2017,7004190,14.55,AF BLAKEMORE & SON LIMITED T/A LOWRIES CASH & CARRY,332872,Commissioning & Investment,Children's & Education Services,103,Supplies and Services,504,Equipment,5023,Revenue,03.GROCERIES & PROVISIONS
31-Oct-2017,7004190,4.91,AF BLAKEMORE & SON LIMITED T/A LOWRIES CASH & CARRY,332872,Commissioning & Investment,Children's & Education Services,103,Supplies and Services,504,Equipment,5023,Revenue,03.GROCERIES & PROVISIONS
31-Oct-2017,7004190,3.92,AF BLAKEMORE & SON LIMITED T/A LOWRIES CASH & CARRY,332872,Commissioning & Investment,Children's & Education Services,103,Supplies and Services,504,Equipment,5023,Revenue,03.GROCERIES & PROVISIONS
31-Oct-2017,7004190,2.82,AF BLAKEMORE & SON LIMITED T/A LOWRIES CASH & CARRY,332872,Commissioning & Investment,Children's & Education Services,103,Supplies and Services,504,Equipment,5023,Revenue,03.GROCERIES & PROVISIONS
31-Oct-2017,7004190,10.80,AF BLAKEMORE & SON LIMITED T/A LOWRIES CASH & CARRY,332872,Commissioning & Investment,Children's & Education Services,103,Supplies and Services,504,Equipment,5023,Revenue,03.GROCERIES & PROVISIONS
31-Oct-2017,7004190,87.30,AF BLAKEMORE & SON LIMITED T/A LOWRIES CASH & CARRY,332872,Commissioning & Investment,Children's & Education Services,103,Supplies and Services,504,Equipment,5023,Revenue,03.GROCERIES & PROVISIONS
31-Oct-2017,7004190,3.06,AF BLAKEMORE & SON LIMITED T/A LOWRIES CASH & CARRY,332872,Commissioning & Investment,Children's & Education Services,103,Supplies and Services,504,Equipment,5023,Revenue,03.GROCERIES & PROVISIONS
31-Oct-2017,7004190,1.79,AF BLAKEMORE & SON LIMITED T/A LOWRIES CASH & CARRY,332872,Commissioning & Investment,Children's & Education Services,103,Supplies and Services,504,Equipment,5023,Revenue,03.GROCERIES & PROVISIONS
31-Oct-2017,7004190,2.28,AF BLAKEMORE & SON LIMITED T/A LOWRIES CASH & CARRY,332872,Commissioning & Investment,Children's & Education Services,103,Supplies and Services,504,Equipment,5023,Revenue,03.GROCERIES & PROVISIONS
31-Oct-2017,7004190,2.24,AF BLAKEMORE & SON LIMITED T/A LOWRIES CASH & CARRY,332872,Commissioning & Investment,Children's & Education Services,103,Supplies and Services,504,Equipment,5023,Revenue,03.GROCERIES & PROVISIONS
31-Oct-2017,7004190,27.00,AF BLAKEMORE & SON LIMITED T/A LOWRIES CASH & CARRY,332872,Commissioning & Investment,Children's & Education Services,103,Supplies and Services,504,Equipment,5023,Revenue,03.GROCERIES & PROVISIONS
31-Oct-2017,7004190,5.86,AF BLAKEMORE & SON LIMITED T/A LOWRIES CASH & CARRY,332872,Commissioning & Investment,Children's & Education Services,103,Supplies and Services,504,Equipment,5023,Revenue,03.GROCERIES & PROVISIONS
31-Oct-2017,7004190,2.14,AF BLAKEMORE & SON LIMITED T/A LOWRIES CASH & CARRY,332872,Commissioning & Investment,Children's & Education Services,103,Supplies and Services,504,Equipment,5023,Revenue,03.GROCERIES & PROVISIONS
31-Oct-2017,7004190,11.40,AF BLAKEMORE & SON LIMITED T/A LOWRIES CASH & CARRY,332872,Commissioning & Investment,Children's & Education Services,103,Supplies and Services,504,Equipment,5023,Revenue,03.GROCERIES & PROVISIONS
31-Oct-2017,7004190,43.10,AF BLAKEMORE & SON LIMITED T/A LOWRIES CASH & CARRY,332872,"Environment, Housing & Leisure",Adult Social Care,101,Supplies and Services,504,Equipment,5023,Revenue,03.GROCERIES & PROVISIONS
31-Oct-2017,7004190,8.72,AF BLAKEMORE & SON LIMITED T/A LOWRIES CASH & CARRY,332872,Commissioning & Investment,Children's & Education Services,103,Supplies and Services,504,Equipment,5023,Revenue,03.GROCERIES & PROVISIONS
31-Oct-2017,7004190,6.30,AF BLAKEMORE & SON LIMITED T/A LOWRIES CASH & CARRY,332872,Commissioning & Investment,Children's & Education Services,103,Supplies and Services,504,Equipment,5023,Revenue,03.GROCERIES & PROVISIONS
31-Oct-2017,7004190,14.98,AF BLAKEMORE & SON LIMITED T/A LOWRIES CASH & CARRY,332872,Commissioning & Investment,Children's & Education Services,103,Supplies and Services,504,Equipment,5023,Revenue,03.GROCERIES & PROVISIONS
31-Oct-2017,7004190,9.35,AF BLAKEMORE & SON LIMITED T/A LOWRIES CASH & CARRY,332872,Commissioning & Investment,Children's & Education Services,103,Supplies and Services,504,Equipment,5023,Revenue,03.GROCERIES & PROVISIONS
31-Oct-2017,7004190,41.97,AF BLAKEMORE & SON LIMITED T/A LOWRIES CASH & CARRY,332872,Commissioning & Investment,Children's & Education Services,103,Supplies and Services,504,Equipment,5023,Revenue,03.GROCERIES & PROVISIONS
31-Oct-2017,7004190,15.12,AF BLAKEMORE & SON LIMITED T/A LOWRIES CASH & CARRY,332872,Commissioning & Investment,Children's & Education Services,103,Supplies and Services,504,Equipment,5023,Revenue,03.GROCERIES & PROVISIONS
31-Oct-2017,7004190,42.08,AF BLAKEMORE & SON LIMITED T/A LOWRIES CASH & CARRY,332872,Commissioning & Investment,Children's & Education Services,103,Supplies and Services,504,Equipment,5023,Revenue,03.GROCERIES & PROVISIONS
31-Oct-2017,7004190,113.76,AF BLAKEMORE & SON LIMITED T/A LOWRIES CASH & CARRY,332872,Commissioning & Investment,Children's & Education Services,103,Supplies and Services,504,Equipment,5023,Revenue,03.GROCERIES & PROVISIONS
31-Oct-2017,7004190,11.58,AF BLAKEMORE & SON LIMITED T/A LOWRIES CASH & CARRY,332872,Commissioning & Investment,Children's & Education Services,103,Supplies and Services,504,Equipment,5023,Revenue,03.GROCERIES & PROVISIONS
31-Oct-2017,7004190,-0.01,AF BLAKEMORE & SON LIMITED T/A LOWRIES CASH & CARRY,332872,Commissioning & Investment,Children's & Education Services,103,Supplies and Services,504,Equipment,5023,Revenue,03.GROCERIES & PROVISIONS
31-Oct-2017,7004190,5.48,AF BLAKEMORE & SON LIMITED T/A LOWRIES CASH & CARRY,332872,Commissioning & Investment,Children's & Education Services,103,Supplies and Services,504,Equipment,5023,Revenue,03.GROCERIES & PROVISIONS
31-Oct-2017,7004190,8.75,AF BLAKEMORE & SON LIMITED T/A LOWRIES CASH & CARRY,332872,Commissioning & Investment,Children's & Education Services,103,Supplies and Services,504,Equipment,5023,Revenue,03.GROCERIES & PROVISIONS
31-Oct-2017,7004190,16.00,AF BLAKEMORE & SON LIMITED T/A LOWRIES CASH & CARRY,332872,Commissioning & Investment,Children's & Education Services,103,Supplies and Services,504,Equipment,5023,Revenue,03.GROCERIES & PROVISIONS
31-Oct-2017,7004190,36.00,AF BLAKEMORE & SON LIMITED T/A LOWRIES CASH & CARRY,332872,Commissioning & Investment,Children's & Education Services,103,Supplies and Services,504,Equipment,5023,Revenue,03.GROCERIES & PROVISIONS
31-Oct-2017,7004190,32.00,AF BLAKEMORE & SON LIMITED T/A LOWRIES CASH & CARRY,332872,Commissioning & Investment,Children's & Education Services,103,Supplies and Services,504,Equipment,5023,Revenue,03.GROCERIES & PROVISIONS
31-Oct-2017,7004190,2.94,AF BLAKEMORE & SON LIMITED T/A LOWRIES CASH & CARRY,332872,Commissioning & Investment,Children's & Education Services,103,Supplies and Services,504,Equipment,5023,Revenue,03.GROCERIES & PROVISIONS
31-Oct-2017,7004190,44.58,AF BLAKEMORE & SON LIMITED T/A LOWRIES CASH & CARRY,332872,Commissioning & Investment,Children's & Education Services,103,Supplies and Services,504,Equipment,5023,Revenue,03.GROCERIES & PROVISIONS
31-Oct-2017,7004190,4.08,AF BLAKEMORE & SON LIMITED T/A LOWRIES CASH & CARRY,332872,Commissioning & Investment,Children's & Education Services,103,Supplies and Services,504,Equipment,5023,Revenue,03.GROCERIES & PROVISIONS
31-Oct-2017,7004190,2.31,AF BLAKEMORE & SON LIMITED T/A LOWRIES CASH & CARRY,332872,Commissioning & Investment,Children's & Education Services,103,Supplies and Services,504,Equipment,5023,Revenue,03.GROCERIES & PROVISIONS
